{"text_format":"1","workbook":"xlsx","n_sheets":2,"sheets":["Аркуш1","Опис Проекту"],"not_rendered":{"charts":0,"images":2,"macros":1,"external_links":1,"defined_names":17,"comments":0,"pivot_tables":0},"unopened":[],"bounds":{"document_bytes":16777216,"sheet_cells":100000,"rows_first":2000,"rows_last":500,"rows_between":2000,"halvings":0,"cell_chars":16384,"cell_head_chars":4096},"cells_cut":0,"cells_raw":0,"read":"whole","date_system":"1900"}

{"sheet":"Аркуш1","index":0,"n_rows":6,"n_cols":2,"rows_kept":6,"cut":false,"hidden":false,"merged":[[5,1,9,8]]}
[]
[]
[]
[null,"Шановні енергетичні аудитори та представники ОСББ,"]
[]
[null,"Це є тестова версія файлу для заповнення Форми Опису Проекту. Файл знаходиться у дослідній експлуатації. Якщо ви маєте зауваження або пропозиції, будь ласка, напишіть нам: info@eefund.org.ua"]

{"sheet":"Опис Проекту","index":1,"n_rows":933,"n_cols":58,"rows_kept":933,"cut":false,"hidden":false,"merged":[[817,45,818,47],[817,48,818,49],[619,48,627,49],[701,32,703,35],[724,32,727,35],[717,32,720,35],[631,36,632,38],[633,36,633,38],[862,4,862,30],[862,32,862,38],[868,4,868,30],[868,32,868,38],[681,36,681,38],[752,36,752,38],[755,36,755,38],[756,36,756,38],[757,36,757,38],[803,36,805,38],[796,36,798,38],[779,36,781,38],[698,36,698,38],[699,36,699,38],[700,36,700,38],[740,36,740,38],[701,36,703,38],[706,36,708,38],[758,36,760,38],[817,17,818,19],[817,20,818,21],[651,36,652,38],[653,36,654,38],[655,36,656,38],[869,4,870,30],[869,32,869,38],[1,1,1,42],[192,7,193,41],[202,7,203,41],[210,7,211,41],[748,36,749,38],[724,36,727,38],[717,36,720,38],[713,36,716,38],[709,36,712,38],[659,36,661,38],[670,36,672,38],[686,36,688,38],[682,36,683,38],[721,36,723,38],[728,36,730,38],[794,36,795,38],[799,36,800,38],[740,32,740,35],[659,32,661,35],[670,32,672,35],[686,32,688,35],[803,32,805,35],[782,32,785,35],[786,32,789,35],[790,32,793,35],[713,32,716,35],[630,36,630,38],[631,32,632,35],[633,32,633,35],[634,32,635,35],[389,30,390,35],[389,36,390,41],[383,4,384,6],[629,32,629,35],[630,32,630,35],[629,36,629,38],[634,36,635,38],[636,32,638,35],[639,32,641,35],[642,32,644,35],[636,36,638,38],[639,36,641,38],[500,4,505,5],[500,6,505,7],[500,8,505,16],[500,17,505,28],[500,29,505,30],[500,31,505,33],[628,32,628,35],[628,36,628,38],[440,8,443,16],[440,17,443,28],[440,29,443,30],[492,4,499,5],[492,6,499,7],[492,8,499,16],[492,17,499,28],[492,29,499,30],[492,31,499,33],[492,34,499,37],[492,38,499,41],[474,4,480,5],[657,36,658,38],[662,36,663,38],[665,36,666,38],[779,32,781,35],[796,32,798,35],[673,36,674,38],[676,36,677,38],[679,36,680,38],[684,36,685,38],[662,32,663,35],[733,36,735,38],[731,36,732,38],[736,36,737,38],[731,32,732,35],[736,32,737,35],[745,36,747,38],[738,36,739,38],[741,36,742,38],[743,36,744,38],[738,32,739,35],[741,32,742,35],[761,36,763,38],[764,36,766,38],[769,36,771,38],[745,32,747,35],[733,32,735,35],[728,32,730,35],[721,32,723,35],[706,32,708,35],[667,32,667,35],[664,32,664,35],[664,36,664,38],[637,55,638,60],[237,28,238,41],[239,28,239,41],[242,28,244,41],[245,28,247,41],[250,28,253,41],[254,28,254,41],[255,28,257,41],[258,28,258,41],[259,28,261,41],[262,28,262,41],[263,28,263,41],[264,28,264,41],[268,28,268,41],[455,34,458,37],[455,38,458,41],[597,26,598,29],[597,30,598,35],[597,36,598,41],[359,30,360,41],[385,24,386,29],[385,30,386,35],[385,36,386,41],[292,4,295,41],[451,38,454,41],[444,31,450,33],[444,34,450,37],[444,38,450,41],[433,34,439,37],[433,38,439,41],[440,4,443,5],[440,6,443,7],[506,8,509,16],[506,17,509,28],[506,29,509,30],[506,31,509,33],[506,34,509,37],[506,38,509,41],[421,34,426,37],[421,38,426,41],[427,4,432,5],[427,6,432,7],[427,8,432,16],[427,17,432,28],[427,29,432,30],[427,31,432,33],[427,34,432,37],[427,38,432,41],[433,4,439,5],[433,6,439,7],[433,8,439,16],[433,17,439,28],[433,29,439,30],[433,31,439,33],[481,31,491,33],[481,34,491,37],[472,34,473,37],[472,38,473,41],[481,38,491,41],[472,4,473,5],[481,6,491,7],[481,8,491,16],[481,17,491,28],[481,29,491,30],[455,17,458,28],[455,29,458,30],[455,31,458,33],[459,4,464,5],[459,6,464,7],[459,8,464,16],[568,8,573,16],[568,17,573,28],[568,29,573,30],[568,31,573,33],[568,34,573,37],[568,38,573,41],[459,38,464,41],[555,38,560,41],[474,6,480,7],[474,8,480,16],[474,17,480,28],[474,29,480,30],[474,31,480,33],[500,34,505,37],[500,38,505,41],[506,4,509,5],[506,6,509,7],[510,4,516,5],[510,6,516,7],[510,8,516,16],[510,17,516,28],[510,29,516,30],[510,31,516,33],[510,34,516,37],[510,38,516,41],[474,38,480,41],[817,22,818,26],[599,7,600,15],[599,16,600,21],[599,22,600,25],[599,26,600,29],[599,30,600,35],[599,36,600,41],[605,4,606,6],[605,7,606,15],[605,16,606,21],[605,22,606,25],[605,26,606,29],[605,30,606,35],[605,36,606,41],[608,4,616,41],[601,4,602,6],[651,39,656,41],[657,4,663,6],[639,22,641,26],[642,22,644,26],[645,22,646,26],[647,22,648,26],[649,22,650,26],[647,27,648,31],[649,27,650,31],[636,4,644,6],[636,7,644,8],[636,9,644,16],[636,17,644,19],[636,20,644,21],[645,32,646,35],[647,32,648,35],[594,36,596,41],[597,4,598,6],[597,7,598,15],[597,16,598,21],[597,22,598,25],[599,4,600,6],[568,4,573,5],[568,6,573,7],[592,36,593,41],[584,4,585,41],[588,4,591,6],[588,7,591,15],[588,30,591,41],[588,22,591,29],[588,16,591,21],[594,4,596,6],[555,29,560,30],[555,31,560,33],[555,34,560,37],[574,4,576,5],[574,6,576,7],[574,8,576,16],[574,17,576,28],[574,29,576,30],[574,31,576,33],[574,34,576,37],[592,26,593,29],[592,30,593,35],[580,4,581,41],[594,7,596,15],[594,16,596,21],[603,4,604,6],[645,7,650,8],[645,9,650,16],[645,17,650,19],[645,20,650,21],[472,6,473,7],[472,8,473,16],[472,17,473,28],[472,29,473,30],[472,31,473,33],[459,17,464,28],[459,29,464,30],[459,31,464,33],[459,34,464,37],[455,4,458,5],[455,6,458,7],[455,8,458,16],[474,34,480,37],[481,4,491,5],[603,16,604,21],[603,22,604,25],[603,26,604,29],[603,30,604,35],[603,36,604,41],[574,38,576,41],[626,22,627,26],[577,38,578,41],[577,4,578,5],[592,4,593,6],[592,7,593,15],[592,16,593,21],[592,22,593,25],[631,20,635,21],[631,39,635,41],[628,22,628,26],[629,22,629,26],[630,22,630,26],[631,22,632,26],[634,22,635,26],[628,27,628,31],[628,9,630,16],[451,29,454,30],[451,31,454,33],[451,34,454,37],[451,4,454,5],[451,6,454,7],[451,8,454,16],[857,4,858,6],[857,7,858,22],[857,23,858,29],[857,30,858,41],[850,4,851,6],[850,7,851,22],[850,23,851,29],[850,30,851,41],[852,4,853,6],[852,7,853,22],[852,23,853,29],[852,30,853,41],[848,4,849,6],[848,7,849,22],[848,23,849,29],[848,30,849,41],[822,4,833,41],[817,7,818,16],[628,20,630,21],[626,17,627,19],[628,17,630,19],[636,39,644,41],[645,4,650,6],[836,4,836,30],[801,32,802,35],[806,32,807,35],[837,30,841,41],[837,23,841,29],[837,4,841,6],[837,7,841,22],[842,4,843,6],[842,7,843,22],[842,23,843,29],[842,30,843,41],[628,39,630,41],[628,4,630,6],[628,7,630,8],[817,4,818,6],[817,39,818,41],[817,36,818,38],[817,32,818,35],[817,27,818,31],[819,4,820,6],[645,39,650,41],[636,22,638,26],[631,4,635,6],[631,7,635,8],[631,9,635,16],[631,17,635,19],[619,4,625,6],[619,7,625,8],[621,20,625,21],[619,17,620,21],[619,9,625,16],[619,39,625,41],[626,4,627,6],[626,39,627,41],[626,7,627,8],[619,27,625,31],[626,27,627,31],[626,20,627,21],[626,9,627,16],[626,36,627,38],[619,36,625,38],[619,32,625,35],[626,32,627,35],[619,22,625,26],[621,17,625,19],[410,38,413,41],[414,4,420,5],[414,6,420,7],[414,8,420,16],[414,17,420,28],[414,29,420,30],[414,31,420,33],[521,8,522,16],[537,31,543,33],[537,34,543,37],[561,4,567,5],[561,6,567,7],[561,8,567,16],[561,17,567,28],[561,29,567,30],[561,31,567,33],[561,34,567,37],[561,38,567,41],[521,34,522,37],[544,4,554,5],[544,6,554,7],[544,8,554,16],[544,17,554,28],[544,29,554,30],[544,31,554,33],[544,34,554,37],[544,38,554,41],[555,4,560,5],[555,6,560,7],[555,8,560,16],[555,17,560,28],[451,17,454,28],[407,8,409,16],[407,34,409,37],[414,38,420,41],[601,7,602,15],[601,16,602,21],[601,22,602,25],[601,26,602,29],[601,30,602,35],[601,36,602,41],[421,4,426,5],[421,6,426,7],[421,8,426,16],[421,17,426,28],[421,29,426,30],[421,31,426,33],[440,31,443,33],[440,34,443,37],[440,38,443,41],[444,4,450,5],[444,6,450,7],[444,8,450,16],[444,17,450,28],[444,29,450,30],[517,8,520,16],[517,17,520,28],[517,29,520,30],[517,31,520,33],[517,34,520,37],[517,38,520,41],[521,4,522,5],[521,6,522,7],[410,34,413,37],[333,4,335,6],[333,7,335,28],[326,4,328,6],[326,7,328,28],[329,4,330,6],[329,7,330,28],[341,4,344,6],[341,7,344,28],[345,4,347,6],[345,7,347,28],[336,4,337,6],[336,7,337,28],[338,4,340,6],[338,7,340,28],[341,29,344,41],[345,29,347,41],[353,4,354,6],[353,7,354,28],[348,4,350,6],[348,7,350,28],[351,4,352,6],[351,7,352,28],[348,29,350,41],[351,29,352,41],[353,29,354,41],[303,4,304,6],[303,7,304,28],[305,7,307,28],[305,4,307,6],[298,4,300,6],[298,7,300,28],[318,4,319,6],[318,7,319,28],[320,4,322,6],[320,7,322,28],[308,4,311,6],[308,7,311,28],[312,4,314,6],[312,7,314,28],[315,4,317,6],[315,7,317,28],[331,4,332,6],[331,7,332,28],[301,7,302,28],[301,4,302,6],[269,4,271,6],[265,4,268,6],[265,7,268,17],[265,18,268,22],[265,23,268,27],[269,7,271,17],[269,18,271,22],[269,23,271,27],[275,4,280,6],[272,4,274,6],[272,7,274,17],[272,18,274,22],[272,23,274,27],[275,7,280,17],[275,18,280,22],[275,23,280,27],[265,28,267,41],[269,28,270,41],[271,28,271,41],[274,28,274,41],[272,28,273,41],[275,28,278,41],[279,28,280,41],[255,4,258,6],[248,4,249,41],[250,4,254,6],[250,7,254,17],[250,18,254,22],[250,23,254,27],[255,7,258,17],[255,18,258,22],[255,23,258,27],[263,4,264,6],[259,4,262,6],[259,7,262,17],[259,18,262,22],[259,23,262,27],[263,7,264,17],[263,18,264,22],[263,23,264,27],[214,4,215,6],[214,7,215,24],[214,25,215,41],[219,4,221,41],[210,4,211,6],[212,4,213,6],[212,7,213,24],[212,25,213,41],[240,4,241,41],[242,4,247,6],[237,4,239,6],[242,7,247,17],[242,18,247,22],[242,23,247,27],[232,4,233,41],[224,4,231,6],[224,7,231,17],[224,18,231,22],[224,23,231,27],[224,28,231,41],[234,4,236,6],[234,7,236,17],[234,18,236,22],[237,7,239,17],[237,18,239,22],[234,23,236,27],[237,23,239,27],[234,28,235,41],[236,28,236,41],[218,4,218,41],[198,4,199,6],[198,7,199,24],[198,25,199,41],[200,4,201,6],[200,7,201,24],[200,25,201,41],[194,4,195,6],[194,7,195,24],[194,25,195,41],[196,4,197,6],[196,7,197,24],[196,25,197,41],[206,4,207,6],[206,7,207,24],[206,25,207,41],[208,4,209,6],[208,7,209,24],[208,25,209,41],[202,4,203,6],[204,4,205,6],[204,7,205,24],[204,25,205,41],[182,4,183,6],[182,7,183,24],[182,25,183,41],[184,4,185,6],[184,7,185,24],[184,25,185,41],[178,4,179,6],[178,7,179,24],[178,25,179,41],[180,4,181,6],[180,7,181,24],[180,25,181,41],[190,4,191,6],[190,7,191,24],[190,25,191,41],[192,4,193,6],[186,4,187,6],[186,7,187,24],[186,25,187,41],[188,4,189,6],[188,7,189,24],[188,25,189,41],[152,23,153,31],[154,4,157,41],[166,4,167,6],[166,7,167,24],[166,25,167,41],[168,4,169,6],[168,7,169,24],[168,25,169,41],[162,4,163,6],[162,7,163,24],[162,25,163,41],[164,4,165,6],[164,7,165,41],[174,4,175,6],[174,7,175,24],[174,25,175,41],[176,4,177,6],[176,7,177,24],[176,25,177,41],[170,4,171,6],[170,7,171,24],[170,25,171,41],[172,4,173,6],[172,7,173,24],[172,25,173,41],[138,4,139,6],[138,7,139,41],[140,4,141,6],[140,7,141,18],[140,19,141,22],[140,23,141,31],[140,32,145,41],[142,4,143,6],[142,7,143,18],[142,19,143,22],[142,23,143,31],[144,4,145,6],[144,7,145,18],[144,19,145,22],[160,4,161,6],[160,7,161,24],[160,25,161,41],[144,23,145,31],[146,4,147,6],[146,7,147,41],[148,4,149,6],[148,7,149,18],[148,19,149,22],[148,23,149,31],[148,32,153,41],[150,4,151,6],[150,7,151,18],[150,19,151,22],[150,23,151,31],[152,4,153,6],[152,7,153,18],[152,19,153,22],[122,7,123,41],[124,4,125,6],[124,7,125,18],[124,19,125,22],[124,23,125,31],[124,32,127,41],[126,4,127,6],[126,7,127,18],[126,19,127,22],[126,23,127,31],[128,4,129,6],[128,7,129,41],[130,4,131,6],[130,7,131,41],[132,4,133,6],[132,7,133,18],[134,19,135,22],[132,23,133,31],[132,32,137,41],[134,4,135,6],[134,7,135,18],[134,23,135,31],[136,4,137,6],[136,7,137,18],[136,19,137,22],[136,23,137,31],[132,19,133,22],[10,0,11,43],[17,0,18,43],[19,0,20,43],[21,0,22,43],[12,0,13,43],[70,4,70,40],[64,4,66,41],[34,1,35,42],[58,0,58,43],[56,3,56,41],[57,3,57,41],[29,1,30,42],[31,1,33,42],[71,4,72,6],[71,34,72,41],[71,26,72,33],[71,22,72,25],[71,7,72,21],[23,0,24,43],[14,0,15,43],[83,4,84,6],[83,7,84,21],[83,22,84,25],[83,26,84,33],[83,34,84,41],[81,4,82,6],[81,7,82,21],[81,22,82,25],[81,26,82,33],[81,34,82,41],[73,26,74,33],[73,34,74,41],[79,4,80,6],[79,7,80,21],[79,22,80,25],[79,26,80,33],[79,34,80,41],[77,4,78,6],[77,7,78,21],[77,22,78,25],[77,26,78,33],[77,34,78,41],[75,4,76,6],[75,7,76,21],[75,22,76,25],[75,26,76,33],[75,34,76,41],[73,4,74,6],[73,7,74,21],[73,22,74,25],[112,4,113,6],[281,4,291,41],[90,4,92,6],[90,7,92,21],[90,22,92,25],[90,26,92,33],[90,34,92,41],[88,4,89,6],[88,7,89,21],[88,22,89,25],[88,26,89,33],[88,34,89,41],[85,4,87,6],[85,7,87,21],[85,22,87,25],[85,26,87,33],[85,34,87,41],[110,32,113,41],[120,4,121,6],[120,7,121,18],[120,19,121,22],[120,23,121,31],[116,32,121,41],[116,4,117,6],[116,7,117,18],[116,19,117,22],[116,23,117,31],[118,4,119,6],[118,7,119,18],[118,19,119,22],[118,23,119,31],[122,4,123,6],[361,30,366,35],[361,36,366,41],[359,4,366,6],[359,7,366,17],[359,18,366,23],[359,24,366,29],[93,4,95,6],[93,7,95,21],[93,22,95,25],[93,26,95,33],[93,34,95,41],[106,4,107,6],[106,7,107,18],[106,19,107,22],[106,23,107,31],[106,32,107,41],[104,4,105,6],[104,7,105,18],[104,19,105,22],[104,23,105,31],[104,32,105,41],[114,4,115,6],[110,7,111,18],[110,19,111,22],[110,23,111,31],[112,7,113,18],[112,19,113,22],[112,23,113,31],[114,7,115,41],[108,4,109,6],[108,7,109,41],[110,4,111,6],[371,4,372,6],[371,7,372,17],[371,18,371,23],[371,24,371,29],[371,30,371,35],[371,36,371,41],[372,18,372,23],[372,24,372,29],[372,30,372,35],[372,36,372,41],[367,4,368,6],[367,7,368,17],[367,18,368,23],[367,24,368,29],[367,30,368,35],[367,36,368,41],[369,4,370,6],[369,7,370,17],[369,18,369,23],[370,18,370,23],[369,24,369,29],[370,24,370,29],[369,30,369,35],[370,30,370,35],[369,36,369,41],[370,36,370,41],[375,4,376,6],[375,7,376,17],[375,18,375,23],[375,24,375,29],[375,30,375,35],[375,36,375,41],[376,18,376,23],[376,24,376,29],[376,30,376,35],[376,36,376,41],[373,4,374,6],[373,7,374,17],[373,18,373,23],[373,24,373,29],[373,30,373,35],[373,36,373,41],[374,18,374,23],[374,24,374,29],[374,30,374,35],[374,36,374,41],[405,34,406,37],[398,34,404,37],[577,6,578,33],[405,31,406,33],[407,31,409,33],[405,29,406,30],[407,29,409,30],[401,29,404,30],[401,31,404,33],[414,34,420,37],[400,29,400,33],[389,4,390,6],[389,7,390,17],[389,18,390,23],[389,24,390,29],[377,4,378,6],[377,7,378,17],[377,18,377,23],[377,24,377,29],[377,30,377,35],[377,36,377,41],[378,18,378,23],[378,24,378,29],[378,30,378,35],[378,36,378,41],[405,4,406,5],[398,4,404,5],[398,6,404,7],[405,6,406,7],[407,38,409,41],[407,4,409,5],[405,8,406,16],[391,30,393,35],[391,36,393,41],[387,4,388,6],[387,7,388,17],[387,18,388,23],[387,24,388,29],[387,30,388,35],[387,36,388,41],[577,34,578,37],[381,4,382,6],[381,7,382,17],[381,18,382,23],[381,24,382,29],[381,30,382,35],[381,36,382,41],[379,4,380,6],[379,7,380,17],[379,18,379,23],[379,24,379,29],[379,30,379,35],[379,36,379,41],[380,18,380,23],[380,24,380,29],[380,30,380,35],[380,36,380,41],[407,6,409,7],[410,4,413,5],[410,6,413,7],[410,8,413,16],[410,17,413,28],[410,29,413,30],[410,31,413,33],[861,4,861,41],[863,4,864,30],[863,32,863,38],[298,29,300,41],[303,29,304,41],[305,29,307,41],[308,29,311,41],[312,29,314,41],[315,29,317,41],[318,29,319,41],[320,29,322,41],[326,29,328,41],[329,29,330,41],[331,29,332,41],[333,29,335,41],[336,29,337,41],[338,29,340,41],[391,4,393,6],[391,7,393,17],[391,18,393,23],[391,24,393,29],[398,8,404,16],[531,4,536,5],[531,6,536,7],[531,8,536,16],[531,17,536,28],[531,29,536,30],[531,31,536,33],[537,6,543,7],[537,8,543,16],[537,17,543,28],[537,29,543,30],[383,7,384,17],[383,18,384,23],[383,24,384,29],[383,30,384,35],[383,36,384,41],[385,4,386,6],[385,7,386,17],[385,18,386,23],[531,34,536,37],[531,38,536,41],[537,4,543,5],[398,17,399,33],[400,17,404,28],[405,17,406,28],[407,17,409,28],[405,38,406,41],[398,38,404,41],[517,4,520,5],[517,6,520,7],[537,38,543,41],[521,38,522,41],[523,4,530,5],[523,6,530,7],[523,8,530,16],[523,17,530,28],[523,29,530,30],[523,31,530,33],[523,34,530,37],[523,38,530,41],[521,17,522,28],[521,29,522,30],[521,31,522,33],[649,32,650,35],[642,36,644,38],[645,36,646,38]],"merged_total":1601,"flags":["merged_cut"]}
[]
[null,"Додаток 1 до рекомендаційного звіту енергетичного сертифікату будівлі",null,null,null,null,null,null,null,null,null,null,null,null,null,null,null,null,null,null,null,null,null,null,null,null,null,null,null,null,null,null,null,null,null,null,null,null,null,null,null,null,null,null,null,"Оберіть пакет",null,"Б",null,null,null,{"$f":"IF(AV2=\"А\",TRUE,FALSE)","v":false},"А"]
[null,null,null,null,null,null,null,null,null,null,null,null,null,null,null,null,null,null,null,null,null,null,null,null,null,null,null,null,null,null,null,null,null,null,null,null,null,null,null,null,null,null,null,null,null,null,null,null,null,null,null,null,"Б"]
[]
[]
[]
[]
[]
[]
[]
["ОПИС ПРОЕКТУ"]
[]
["(ВИСНОВОК ЕНЕРГЕТИЧНОГО АУДИТУ)"]
[]
[]
[]
[]
[{"$f":"IF(AZ2=TRUE,\"У ВІДПОВІДНОСТІ ДО ПАКЕТУ ЗАХОДІВ ''А''\",\"У ВІДПОВІДНОСТІ ДО ПАКЕТУ ЗАХОДІВ ''Б''\")","v":"У ВІДПОВІДНОСТІ ДО ПАКЕТУ ЗАХОДІВ ''Б''"}]
[]
["ПРОГРАМИ ПІДТРИМКИ ЕНЕРГОМОДЕРНІЗАЦІЇ"]
[]
["БАГАТОКВАРТИРНИХ БУДИНКІВ"]
[]
["«ЕНЕРГОДІМ»"]
[]
[]
[]
[]
[]
[null,"Об’єднання співвласників багатоквартирного будинку: "]
[]
[null,"ОСББ \"______________\", ____________________________"]
["___________________________________________________________________"]
[]
[null,"(Найменування ОСББ, адреса будинку)"]
[]
[]
[]
[]
[]
[]
[]
[]
[]
[]
[]
[]
[]
[]
[]
[]
[]
[]
[]
[]
[]
[]
[]
[]
[]
[]
[]
[]
[]
[null,null,null,null,{"$f":"IF(AZ2=TRUE,\"ПРОПОЗИЦІЇ ЩОДО РЕАЛІЗАЦІЇ ЕНЕРГОЕФЕКТИВНИХ ЗАХОДІВ ВІДПОВІДНО ДО ПАКЕТУ ЗАХОДІВ ''А''\",\"ПРОПОЗИЦІЇ ЩОДО РЕАЛІЗАЦІЇ ЕНЕРГОЕФЕКТИВНИХ ЗАХОДІВ ВІДПОВІДНО ДО ПАКЕТУ ЗАХОДІВ ''Б''\")","v":"ПРОПОЗИЦІЇ ЩОДО РЕАЛІЗАЦІЇ ЕНЕРГОЕФЕКТИВНИХ ЗАХОДІВ ВІДПОВІДНО ДО ПАКЕТУ ЗАХОДІВ ''Б''"}]
[]
[]
[]
[]
[]
[null,null,null,null,"1.     ЗАГАЛЬНІ ХАРАКТЕРИСТИКИ БУДИНКУ"]
[null,null,null,null,"№",null,null,"Назва",null,null,null,null,null,null,null,null,null,null,null,null,null,null,"Од.     виміру",null,null,null,"Кількість/опис",null,null,null,null,null,null,null,"Примітки"]
[]
[null,null,null,null,1,null,null,2,null,null,null,null,null,null,null,null,null,null,null,null,null,null,3,null,null,null,4,null,null,null,null,null,null,null,5]
[]
[null,null,null,null,"1.1",null,null,"Рік введення в експлуатацію"]
[]
[null,null,null,null,"1.2",null,null,"Кількість поверхів",null,null,null,null,null,null,null,null,null,null,null,null,null,null,"од.     "]
[]
[null,null,null,null,"1.3",null,null,"Висота поверху",null,null,null,null,null,null,null,null,null,null,null,null,null,null,"м"]
[]
[null,null,null,null,"1.4",null,null,"Кількість під’їздів",null,null,null,null,null,null,null,null,null,null,null,null,null,null,"од."]
[]
[null,null,null,null,"1.5",null,null,"Кількість домогосподарств",null,null,null,null,null,null,null,null,null,null,null,null,null,null,"од."]
[]
[null,null,null,null,"1.6",null,null,"Кількість квартир та нежитлових приміщень",null,null,null,null,null,null,null,null,null,null,null,null,null,null,"од."]
[]
[]
[null,null,null,null,"1.7",null,null,"Загальна площа будинку за сертифікатом",null,null,null,null,null,null,null,null,null,null,null,null,null,null,"м2"]
[]
[null,null,null,null,"1.8",null,null,"Кондиціонована (опалювальна) площа будинку за сертифікатом",null,null,null,null,null,null,null,null,null,null,null,null,null,null,"м2"]
[]
[]
[null,null,null,null,"1.9",null,null,"Кондиціонований (опалювальний) об’єм за сертифікатом ",null,null,null,null,null,null,null,null,null,null,null,null,null,null,"м3"]
[]
[]
[]
[]
[]
[]
[]
[]
[]
[null,null,null,null,"2. КЛЮЧОВІ ТЕХНІЧНІ ДАНІ ПРО ОГОРОДЖУВАЛЬНІ КОНСТРУКЦІЇ "]
[null,null,null,null,"№",null,null,"Назва",null,null,null,null,null,null,null,null,null,null,null,"Од. виміру",null,null,null,"Кількість",null,null,null,null,null,null,null,null,"Конструкція та її оцінка*"]
[]
[null,null,null,null,1,null,null,2,null,null,null,null,null,null,null,null,null,null,null,3,null,null,null,4,null,null,null,null,null,null,null,null,5]
[]
[null,null,null,null,"2.1",null,null,"Зовнішні стіни"]
[]
[null,null,null,null,"2.1.1",null,null,"Площа зовнішніх стін",null,null,null,null,null,null,null,null,null,null,null,"м2"]
[]
[null,null,null,null,"2.1.2",null,null,"Приведений опір теплопередачі зовнішніх стін",null,null,null,null,null,null,null,null,null,null,null,"м2К/Вт"]
[]
[null,null,null,null,"2.2",null,null,"Дах (Суміщені перекриття, покриття опалюваних та неопалювальних горищ (технічних поверхів), покриття мансардного типу)"]
[]
[null,null,null,null,"2.2.1",null,null,"Площа перекриття/покриття даху",null,null,null,null,null,null,null,null,null,null,null,"м2"]
[]
[null,null,null,null,"2.2.2",null,null,"Приведений опір теплопередачі перекриття/покриття даху",null,null,null,null,null,null,null,null,null,null,null,"м2К/Вт"]
[]
[null,null,null,null,"2.2.3",null,null,"Висота технічного поверху",null,null,null,null,null,null,null,null,null,null,null,"м"]
[]
[null,null,null,null,"2.3",null,null,"Підвал (опалювальні підвали, перекриття над проїздами та неопалюваними підвалами, підлога по ґрунту)"]
[]
[null,null,null,null,"2.3.1",null,null,"Загальна площа перекриття підвалу",null,null,null,null,null,null,null,null,null,null,null,"м2"]
[]
[null,null,null,null,"2.3.2",null,null,"Приведений опір теплопередачі перекриття підвалу",null,null,null,null,null,null,null,null,null,null,null,"м2К/Вт"]
[]
[null,null,null,null,"2.4",null,null,"Світлопрозорі конструкції (віконні та балконні блоки)"]
[]
[null,null,null,null,"2.4.1",null,null,"Віконні та балконні блоки у місцях загального користування будинку"]
[]
[null,null,null,null,"2.4.1.1",null,null,"Загальна кількість віконних та балконних блоків:",null,null,null,null,null,null,null,null,null,null,null,"од."]
[]
[null,null,null,null,"2.4.1.2",null,null,"Загальна площа віконних та балконних блоків:",null,null,null,null,null,null,null,null,null,null,null,"м2"]
[]
[null,null,null,null,"2.4.1.3",null,null,"Приведений опір теплопередачі віконних та балконних блоків",null,null,null,null,null,null,null,null,null,null,null,"м2К/Вт"]
[]
[null,null,null,null,"2.4.2",null,null,"Віконні та балконні блоки квартир"]
[]
[null,null,null,null,"2.4.2.1",null,null,"Загальна кількість віконних та балконних блоків:",null,null,null,null,null,null,null,null,null,null,null,"од."]
[]
[null,null,null,null,"2.4.2.2",null,null,"Загальна площа віконних та балконних блоків:",null,null,null,null,null,null,null,null,null,null,null,"м2"]
[]
[null,null,null,null,"2.4.2.3",null,null,"Приведений опір теплопередачі віконних та балконних блоків",null,null,null,null,null,null,null,null,null,null,null,"м2К/Вт"]
[]
[null,null,null,null,"2.5",null,null,"Зовнішні двері"]
[]
[null,null,null,null,"2.5.1",null,null,"Загальна кількість зовнішніх дверей:",null,null,null,null,null,null,null,null,null,null,null,"од."]
[]
[null,null,null,null,"2.5.2",null,null,"Загальна площа зовнішніх дверей:",null,null,null,null,null,null,null,null,null,null,null,"м2"]
[]
[null,null,null,null,"2.5.3",null,null,"Приведений опір теплопередачі зовнішніх дверей",null,null,null,null,null,null,null,null,null,null,null,"м2К/Вт"]
[]
[null,null,null,null,"* Опис матеріалів, дефектів, деформації, рівень зносу, тип огороджувальної конструкції тощо. Оцінка стану: 4 – добре; 3 – задовільно; 2 – не задовільно (потребує реновації в поточному році); 1 – погано (вкрай необхідно здійснити реновацію або замінити елемент вже зараз, існує небезпека для людського життя або суттєві потенційні економічні втрати через подальші порушення будівлі)."]
[]
[]
[]
[]
[null,null,null,null,"3. ОСНОВНІ ПОКАЗНИКИ ІНЖЕНЕРНИХ СИСТЕМ"]
[null,null,null,null,"№",null,null,"Назва",null,null,null,null,null,null,null,null,null,null,null,null,null,null,null,null,null,"Інформація"]
[]
[null,null,null,null,1,null,null,2,null,null,null,null,null,null,null,null,null,null,null,null,null,null,null,null,null,3]
[]
[null,null,null,null,"3.1",null,null,"Система опалення"]
[]
[null,null,null,null,"3.1.1",null,null,"Тип та опис опалювальної системи"]
[]
[null,null,null,null,"3.1.2",null,null,"Довжина трубопроводів в неопалюваних приміщеннях "]
[]
[null,null,null,null,"3.1.3",null,null,"Кількість теплових вводів в будинок"]
[]
[null,null,null,null,"3.1.4",null,null,"Регулювання системи опалення  "]
[]
[null,null,null,null,"3.1.4.1",null,null,"Наявність ІТП"]
[]
[null,null,null,null,"3.1.4.2",null,null,"Наявність погодозалежного регулювання "]
[]
[null,null,null,null,"3.1.4.3",null,null,"Наявність та кількість балансувальних клапанів по стояках"]
[]
[null,null,null,null,"3.1.4.4",null,null,"Наявність та кількість терморегуляторів на опалювальних приладах"]
[]
[null,null,null,null,"3.1.5",null,null,"Опис системи розподілення (трубопроводів)"]
[]
[null,null,null,null,"3.1.6",null,null,"Кількість стояків/приладових віток системи опалення"]
[]
[null,null,null,null,"3.1.7",null,null,"Тип опалювальних приладів"]
[]
[null,null,null,null,"3.1.8",null,null,"Стан теплової ізоляції трубопроводів"]
[]
[null,null,null,null,"3.1.9",null,null,"Наявність вузла комерційного обліку "]
[]
[null,null,null,null,"3.2",null,null,"Гаряче водопостачання"]
[]
[null,null,null,null,"3.2.1",null,null,"Тип та опис системи гарячого водопостачання (теплообмінник, локальні підігрівачі ГВП і т.д.)"]
[]
[null,null,null,null,"3.2.2",null,null,"Довжина трубопроводів в неопалювальних приміщеннях"]
[]
[null,null,null,null,"3.2.3",null,null,"Забезпечення обліком гарячої води "]
[]
[null,null,null,null,"3.2.4",null,null,"Стан теплової ізоляції трубопроводів ГВП"]
[]
[null,null,null,null,"3.3",null,null,"Кондиціювання/Вентиляція/ Охолодження"]
[]
[null,null,null,null,"3.3.1",null,null,"Тип систем"]
[null,null,null,null,null,null,null,null,null,null,null,null,null,null,null,null,null,null,null,null,null,null,null,null,null,null,null,null,null,null,null,null,null,null,null,null,null,null,null,null,null,null,null,null,null,null,null,null,null,null,null,null,"Список для "]
[null,null,null,null,"3.3.2",null,null,"Наявність рекуперації",null,null,null,null,null,null,null,null,null,null,null,null,null,null,null,null,null,null,null,null,null,null,null,null,null,null,null,null,null,null,null,null,null,null,null,null,null,null,null,null,null,null,null,null,"ТАК"]
[null,null,null,null,null,null,null,null,null,null,null,null,null,null,null,null,null,null,null,null,null,null,null,null,null,null,null,null,null,null,null,null,null,null,null,null,null,null,null,null,null,null,null,null,null,null,null,null,null,null,null,null,"НІ"]
[null,null,null,null,"3.3.3",null,null,"Інші дані"]
[]
[null,null,null,null,"3.4",null,null,"Освітлення місць загального користування"]
[]
[null,null,null,null,"3.4.1",null,null,"Кількість ламп та їх потужність з розбивкою по типам"]
[]
[null,null,null,null,"3.4.2",null,null,"Наявність автоматичного керування "]
[]
[]
[]
[null,null,null,null,{"$f":"IF(AZ2=TRUE,\"4. ПЕРЕЛІК ЕНЕРГОЕФЕКТИВНИХ ЗАХОДІВ ДО ПАКЕТУ ЗАХОДІВ “[А]”*\",\"4. ПЕРЕЛІК ЕНЕРГОЕФЕКТИВНИХ ЗАХОДІВ ДО ПАКЕТУ ЗАХОДІВ “[Б]”*\")","v":"4. ПЕРЕЛІК ЕНЕРГОЕФЕКТИВНИХ ЗАХОДІВ ДО ПАКЕТУ ЗАХОДІВ “[Б]”*"}]
[null,null,null,null,"(У даному розділі для кожного заходу слід зробити відповідні позначки щодо його подальшого впровадження. Не можна видаляти ті або інші заходи, змінювати їх назву або додавати інші заходи. Усі коментарі, що пояснюють суть заходів, обраних для впровадження, слід подавати у розділі 6)"]
[]
[]
[]
[null,null,null,null,"4.1. Обов'язкові заходи"]
[null,null,null,null,"№",null,null,"Назва заходу",null,null,null,null,null,null,null,null,null,null,"Рішення** про впровадження заходу (ТАК/НІ)",null,null,null,null,"Чи виконана допустима підстава виключення заходів з переліку обов'язкових (ТАК/НІ)",null,null,null,null,"Опис підстави виключення заходу"]
[]
[]
[]
[]
[]
[]
[]
[null,null,null,null,"Для будинків із централізованим опаленням:"]
[]
[null,null,null,null,"4.1.1",null,null,"Встановлення вузла комерційного обліку теплової енергії",null,null,null,null,null,null,null,null,null,null,"ТАК",null,null,null,null,"НІ",null,null,null,null,null,null,null,null,null,null,null,null,null,null,null,null,null,null,null,null,null,null,null,null,null,null,null,{"$f":"IF(S235=\"ТАК\",TRUE,FALSE)","v":true},null,{"$f":"IF(AZ235=TRUE,1,0)","v":1},null,null,"Вузол комерційного обліку введено в експлуатацію"]
[null,null,null,null,null,null,null,null,null,null,null,null,null,null,null,null,null,null,null,null,null,null,null,null,null,null,null,null,null,null,null,null,null,null,null,null,null,null,null,null,null,null,null,null,null,null,null,null,null,null,null,null,null,null,null,null,"50% і більше споживачів перейшли на індивідуальне опалення"]
[null,null,null,null,null,null,null,null,null,null,null,null,null,null,null,null,null,null,null,null,null,null,null,null,null,null,null,null,null,null,null,null,null,null,null,null,null,null,null,null,null,null,null,null,null,null,null,null,null,null,null,null,null,null,null,null,"Технічна неможливість впровадження:"]
[null,null,null,null,"4.1.2",null,null,"Встановлення або модернізація індивідуального теплового пункту (ІТП)",null,null,null,null,null,null,null,null,null,null,"ТАК",null,null,null,null,"НІ",null,null,null,null,null,null,null,null,null,null,null,null,null,null,null,null,null,null,null,null,null,null,null,null,null,null,null,{"$f":"IF(S238=\"ТАК\",TRUE,FALSE)","v":true},null,{"$f":"IF(AZ238=TRUE,1,0)","v":1},null,null,"Захід впроваджується або планується до впровадження третіми сторонами "]
[null,null,null,null,null,null,null,null,null,null,null,null,null,null,null,null,null,null,null,null,null,null,null,null,null,null,null,null,null,null,null,null,null,null,null,null,null,null,null,null,null,null,null,null,null,null,null,null,null,null,null,null,null,null,null,null,"ІТП встановлено, експлуатується та забезпечує погодозалежне регулювання"]
[null,null,null,null,null,null,null,null,null,null,null,null,null,null,null,null,null,null,null,null,null,null,null,null,null,null,null,null,null,null,null,null,null,null,null,null,null,null,null,null,null,null,null,null,null,null,null,null,null,null,null,null,null,null,null,null,"50 % і більше споживачів перейшли на індивідуальне опалення"]
[null,null,null,null,"Для будинків з автономним опаленням:",null,null,null,null,null,null,null,null,null,null,null,null,null,null,null,null,null,null,null,null,null,null,null,null,null,null,null,null,null,null,null,null,null,null,null,null,null,null,null,null,null,null,null,null,null,null,null,null,null,null,null,"Технічна неможливість впровадження:"]
[null,null,null,null,null,null,null,null,null,null,null,null,null,null,null,null,null,null,null,null,null,null,null,null,null,null,null,null,null,null,null,null,null,null,null,null,null,null,null,null,null,null,null,null,null,null,null,null,null,null,null,null,null,null,null,null,"Захід впроваджується або планується до впровадження третіми сторонами "]
[null,null,null,null,"4.1.3",null,null,"Заміна або модернізація загальнобудинкового котла або/та допоміжного обладнання (наприклад, насосів, систем автоматичного регулювання тощо)",null,null,null,null,null,null,null,null,null,null,"ТАК",null,null,null,null,"НІ",null,null,null,null,null,null,null,null,null,null,null,null,null,null,null,null,null,null,null,null,null,null,null,null,null,null,null,{"$f":"IF(S243=\"ТАК\",TRUE,FALSE)","v":true},null,{"$f":"IF(AZ243=TRUE,1,0)","v":1},null,null,"Простий період окупності заходу (без врахування виплати часткового відшкодування) перевищує 10 років "]
[null,null,null,null,null,null,null,null,null,null,null,null,null,null,null,null,null,null,null,null,null,null,null,null,null,null,null,null,null,null,null,null,null,null,null,null,null,null,null,null,null,null,null,null,null,null,null,null,null,null,null,null,null,null,null,null,"Технічна неможливість впровадження:"]
[null,null,null,null,null,null,null,null,null,null,null,null,null,null,null,null,null,null,null,null,null,null,null,null,null,null,null,null,null,null,null,null,null,null,null,null,null,null,null,null,null,null,null,null,null,null,null,null,null,null,null,null,null,null,null,null,"Захід впроваджується або планується до впровадження третіми сторонами "]
[]
[]
[]
[null,null,null,null,"Незалежно від типу системи опалення (крім індивідуального опалення):"]
[]
[null,null,null,null,"4.1.4",null,null,"Теплоізоляція або/та заміна трубопроводів системи внутрішнього теплопостачання в неопалювальних приміщеннях",null,null,null,null,null,null,null,null,null,null,"ТАК",null,null,null,null,"НІ",null,null,null,null,null,null,null,null,null,null,null,null,null,null,null,null,null,null,null,null,null,null,null,null,null,null,null,{"$f":"IF(S251=\"ТАК\",TRUE,FALSE)","v":true},null,{"$f":"IF(AZ251=TRUE,1,0)","v":1},null,null,"Теплоізоляція трубопроводів теплопостачання наявна, трубопровід та теплоізоляція візуально знаходиться в задовільному стані"]
[null,null,null,null,null,null,null,null,null,null,null,null,null,null,null,null,null,null,null,null,null,null,null,null,null,null,null,null,null,null,null,null,null,null,null,null,null,null,null,null,null,null,null,null,null,null,null,null,null,null,null,null,null,null,null,null,"50 % і більше споживачів перейшли на індивідуальне опалення"]
[null,null,null,null,null,null,null,null,null,null,null,null,null,null,null,null,null,null,null,null,null,null,null,null,null,null,null,null,null,null,null,null,null,null,null,null,null,null,null,null,null,null,null,null,null,null,null,null,null,null,null,null,null,null,null,null,"Технічна неможливість впровадження:"]
[null,null,null,null,null,null,null,null,null,null,null,null,null,null,null,null,null,null,null,null,null,null,null,null,null,null,null,null,null,null,null,null,null,null,null,null,null,null,null,null,null,null,null,null,null,null,null,null,null,null,null,null,null,null,null,null,"Захід впроваджується або планується до впровадження третіми сторонами "]
[]
[null,null,null,null,"4.1.5",null,null,"Теплоізоляція або/та заміна трубопроводів системи гарячого водопостачання в неопалювальних приміщеннях",null,null,null,null,null,null,null,null,null,null,"ТАК",null,null,null,null,"НІ",null,null,null,null,null,null,null,null,null,null,null,null,null,null,null,null,null,null,null,null,null,null,null,null,null,null,null,{"$f":"IF(S256=\"ТАК\",TRUE,FALSE)","v":true},null,{"$f":"IF(AZ256=TRUE,1,0)","v":1},null,null,null,"Відсутні трубопроводи гарячого водопостачання у будинку в неопалювальних приміщеннях  "]
[null,null,null,null,null,null,null,null,null,null,null,null,null,null,null,null,null,null,null,null,null,null,null,null,null,null,null,null,null,null,null,null,null,null,null,null,null,null,null,null,null,null,null,null,null,null,null,null,null,null,null,null,null,null,null,null,null,"Теплоізоляція трубопроводів гарячого водопостачання наявна, трубопровід та теплоізоляція візуально знаходиться в задовільному стані"]
[null,null,null,null,null,null,null,null,null,null,null,null,null,null,null,null,null,null,null,null,null,null,null,null,null,null,null,null,null,null,null,null,null,null,null,null,null,null,null,null,null,null,null,null,null,null,null,null,null,null,null,null,null,null,null,null,null,"50 % і більше споживачів перейшли на індивідуальні системи гарячого водопостачання"]
[null,null,null,null,null,null,null,null,null,null,null,null,null,null,null,null,null,null,null,null,null,null,null,null,null,null,null,null,null,null,null,null,null,null,null,null,null,null,null,null,null,null,null,null,null,null,null,null,null,null,null,null,null,null,null,null,null,"Технічна неможливість впровадження:"]
[null,null,null,null,"4.1.6",null,null,"Гідравлічне балансування системи опалення шляхом встановлення автоматичних (балансувальних) клапанів",null,null,null,null,null,null,null,null,null,null,"ТАК",null,null,null,null,"НІ",null,null,null,null,null,null,null,null,null,null,null,null,null,null,null,null,null,null,null,null,null,null,null,null,null,null,null,{"$f":"IF(S260=\"ТАК\",TRUE,FALSE)","v":true},null,{"$f":"IF(AZ260=TRUE,1,0)","v":1},null,null,"Автоматичні або ручні балансувальні клапани встановлено на всіх стояках або по групах стояків  ","Захід впроваджується або планується до впровадження третіми сторонами "]
[null,null,null,null,null,null,null,null,null,null,null,null,null,null,null,null,null,null,null,null,null,null,null,null,null,null,null,null,null,null,null,null,null,null,null,null,null,null,null,null,null,null,null,null,null,null,null,null,null,null,null,null,null,null,null,null,"50 % і більше споживачів перейшли на індивідуальне опалення"]
[null,null,null,null,null,null,null,null,null,null,null,null,null,null,null,null,null,null,null,null,null,null,null,null,null,null,null,null,null,null,null,null,null,null,null,null,null,null,null,null,null,null,null,null,null,null,null,null,null,null,null,null,null,null,null,null,"Для двотрубної системи у вузлах обв’язки опалювальних приладів встановлені, чи будуть встановлюватися в рамках Проекту, терморегулятори чи електронні регулятори (з функцією автоматичного регулювання перепаду тиску або обмеження витрати теплоносія) "]
[null,null,null,null,null,null,null,null,null,null,null,null,null,null,null,null,null,null,null,null,null,null,null,null,null,null,null,null,null,null,null,null,null,null,null,null,null,null,null,null,null,null,null,null,null,null,null,null,null,null,null,null,null,null,null,null,"Технічна неможливість впровадження:"]
[null,null,null,null,"4.1.7",null,null,"Комплекс робіт із теплоізоляції та улаштування зовнішніх стін ",null,null,null,null,null,null,null,null,null,null,"ТАК",null,null,null,null,"НІ",null,null,null,null,null,null,null,null,null,null,null,null,null,null,null,null,null,null,null,null,null,null,null,null,null,null,null,{"$f":"IF(AZ2=FALSE,IF(S264=\"ТАК\",TRUE,FALSE),FALSE)","v":true},null,{"$f":"IF(AZ264=TRUE,1,0)","v":1},null,null,"Захід впроваджується або планується до впровадження третіми сторонами ","Наявне суцільне утеплення зовнішніх стін та простий період окупності заходу (без врахування виплати часткового відшкодування) більше 25 років. "]
[null,null,null,null,null,null,null,null,null,null,null,null,null,null,null,null,null,null,null,null,null,null,null,null,null,null,null,null,null,null,null,null,null,null,null,null,null,null,null,null,null,null,null,null,null,null,null,null,null,null,null,null,null,null,null,null,null,"Опір теплопередачі огороджуючих конструкцій відповідає вимогам  ДБН В.2.6-31:2016."]
[null,null,null,null,"4.1.8",null,null,"Комплекс робіт із теплоізоляції та улаштування опалювальних та неопалювальних горищ (технічних поверхів) та дахів",null,null,null,null,null,null,null,null,null,null,"ТАК",null,null,null,null,"НІ",null,null,null,null,null,null,null,null,null,null,null,null,null,null,null,null,null,null,null,null,null,null,null,null,null,null,null,{"$f":"IF(AZ2=FALSE,IF(S266=\"ТАК\",TRUE,FALSE),FALSE)","v":true},null,{"$f":"IF(AZ266=TRUE,1,0)","v":1},null,null,null,"Фасад будівлі підпадає під дію охорони об’єктів та/або пам’яток культурної спадщини згідно Законом України  «Про охорону культурної спадщини» №1805-ІІІ від 8 червня 2000 року."]
[null,null,null,null,null,null,null,null,null,null,null,null,null,null,null,null,null,null,null,null,null,null,null,null,null,null,null,null,null,null,null,null,null,null,null,null,null,null,null,null,null,null,null,null,null,null,null,null,null,null,null,null,null,null,null,null,"Опір теплопередачі огороджуючих конструкцій відповідає вимогам  ДБН В.2.6-31:2016.","Технічна неможливість впровадження:"]
[null,null,null,null,null,null,null,null,null,null,null,null,null,null,null,null,null,null,null,null,null,null,null,null,null,null,null,null,null,null,null,null,null,null,null,null,null,null,null,null,null,null,null,null,null,null,null,null,null,null,null,null,null,null,null,null,"Простий період окупності заходу (без врахування виплати часткового відшкодування) перевищує 15 років","Захід впроваджується або планується до впровадження третіми сторонами "]
[null,null,null,null,null,null,null,null,null,null,null,null,null,null,null,null,null,null,null,null,null,null,null,null,null,null,null,null,null,null,null,null,null,null,null,null,null,null,null,null,null,null,null,null,null,null,null,null,null,null,null,null,null,null,null,null,"Технічна неможливість впровадження:"]
[null,null,null,null,"4.1.9",null,null,"Комплекс робіт із теплоізоляції та улаштування плит перекриття підвалу",null,null,null,null,null,null,null,null,null,null,"ТАК",null,null,null,null,"НІ",null,null,null,null,null,null,null,null,null,null,null,null,null,null,null,null,null,null,null,null,null,null,null,null,null,null,null,{"$f":"IF(AZ2=FALSE,IF(S270=\"ТАК\",TRUE,FALSE),FALSE)","v":true},null,{"$f":"IF(AZ270=TRUE,1,0)","v":1},null,null,"Захід впроваджується або планується до впровадження третіми сторонами ","Опір теплопередачі огороджуючих конструкцій відповідає вимогам  ДБН В.2.6-31:2016."]
[null,null,null,null,null,null,null,null,null,null,null,null,null,null,null,null,null,null,null,null,null,null,null,null,null,null,null,null,null,null,null,null,null,null,null,null,null,null,null,null,null,null,null,null,null,null,null,null,null,null,null,null,null,null,null,null,null,"Простий період окупності заходу (без врахування виплати часткового відшкодування) перевищує 15 років"]
[null,null,null,null,null,null,null,null,null,null,null,null,null,null,null,null,null,null,null,null,null,null,null,null,null,null,null,null,null,null,null,null,null,null,null,null,null,null,null,null,null,null,null,null,null,null,null,null,null,null,null,null,null,null,null,null,null,"Технічна неможливість впровадження:"]
[null,null,null,null,"4.1.10",null,null,"Заміна або ремонт зовнішніх дверей або/та облаштування тамбурів зовнішнього входу",null,null,null,null,null,null,null,null,null,null,"ТАК",null,null,null,null,"НІ",null,null,null,null,null,null,null,null,null,null,null,null,null,null,null,null,null,null,null,null,null,null,null,null,null,null,null,{"$f":"IF(AZ2=FALSE,IF(S273=\"ТАК\",TRUE,FALSE),FALSE)","v":true},null,{"$f":"IF(AZ273=TRUE,1,0)","v":1},null,null,null,"Захід впроваджується або планується до впровадження третіми сторонами "]
[null,null,null,null,null,null,null,null,null,null,null,null,null,null,null,null,null,null,null,null,null,null,null,null,null,null,null,null,null,null,null,null,null,null,null,null,null,null,null,null,null,null,null,null,null,null,null,null,null,null,null,null,null,null,null,null,"Зовнішні двері знаходяться в задовільному стані"]
[null,null,null,null,null,null,null,null,null,null,null,null,null,null,null,null,null,null,null,null,null,null,null,null,null,null,null,null,null,null,null,null,null,null,null,null,null,null,null,null,null,null,null,null,null,null,null,null,null,null,null,null,null,null,null,null,"Технічна неможливість впровадження:"]
[null,null,null,null,"4.1.11",null,null,"Заміна або ремонт блоків віконних або/та блоків балконних дверних у приміщеннях (місцях) загального користування будівлі",null,null,null,null,null,null,null,null,null,null,"ТАК",null,null,null,null,"НІ",null,null,null,null,null,null,null,null,null,null,null,null,null,null,null,null,null,null,null,null,null,null,null,null,null,null,null,{"$f":"IF(AZ2=FALSE,IF(S276=\"ТАК\",TRUE,FALSE),FALSE)","v":true},null,{"$f":"IF(AZ276=TRUE,1,0)","v":1},null,null,"Захід впроваджується або планується до впровадження третіми сторонами "]
[null,null,null,null,null,null,null,null,null,null,null,null,null,null,null,null,null,null,null,null,null,null,null,null,null,null,null,null,null,null,null,null,null,null,null,null,null,null,null,null,null,null,null,null,null,null,null,null,null,null,null,null,null,null,null,null,"Блоки віконні та блоки балконні дверні у приміщеннях (місцях) загального користування будівлі знаходяться в задовільному стані "]
[null,null,null,null,null,null,null,null,null,null,null,null,null,null,null,null,null,null,null,null,null,null,null,null,null,null,null,null,null,null,null,null,null,null,null,null,null,null,null,null,null,null,null,null,null,null,null,null,null,null,null,null,null,null,null,null,"Технічна неможливість впровадження:"]
[null,null,null,null,null,null,null,null,null,null,null,null,null,null,null,null,null,null,null,null,null,null,null,null,null,null,null,null,null,null,null,null,null,null,null,null,null,null,null,null,null,null,null,null,null,null,null,null,null,null,null,null,null,null,null,null,"Захід впроваджується або планується до впровадження третіми сторонами "]
[]
[]
[null,null,null,null,"* Допускається передбачати часткове виконання заходів, якщо:\n- інженерна система децентралізована та зміна її технічних характеристик не впливає на інших споживачів будинку (наприклад встановлення рекуператорів);\n- зміна характеристик елементу централізованої інженерної системи не змінює її характеристики в цілому (наприклад заміна опалювальних приладів на прилади з аналогічною чи розрахунковою потужністю);\n- окремі елементи в розрізі обов’язкових заходів підпадають під допустимі підстави виключення обов’язкових заходів (наприклад часткова теплоізоляція трубопроводів, заміна вікон/зовнішніх дверей в місцях загального користування) або окремі елементи огороджувальних конструкцій підпадають під дію охорони об’єктів та/або пам’яток культурної спадщини згідно з Закону України «Про охорону культурної спадщини»;\n- заміна окремих елементів в розрізі додаткових заходів недоцільна на розсуд енергоаудитора/Заявника (наприклад часткова заміна вікон в квартирах, модернізація системи освітлення)."]
[]
[]
[]
[]
[]
[]
[]
[]
[]
[]
[null,null,null,null,"** Обов’язкові заходи виключаються зі складу проекту тільки за виконання умов зазначених у допустимих підставах виключення заходів з переліку обов'язкових відповідно до Додатку 5 цієї Програми. ОСББ може прийняти рішення про впровадження такого(их) заходів навіть при виконанні зазначених умов. Про таке рішення ОСББ має бути зроблено відповідний запис у колонці «Опис підстави виключення заходу»."]
[]
[]
[]
[]
[null,null,null,null,"4.2А. Додаткові заходи для Пакету Заходів «А»"]
[null,null,null,null,"№",null,null,"Назва заходу",null,null,null,null,null,null,null,null,null,null,null,null,null,null,null,null,null,null,null,null,null,"Рішення про впровадження заходу (ТАК/НІ)"]
[]
[]
[null,null,null,null,"4.2А.1",null,null,"Комплекс робіт із теплоізоляції та улаштування опалювальних та неопалювальних горищ (технічних поверхів) та дахів",null,null,null,null,null,null,null,null,null,null,null,null,null,null,null,null,null,null,null,null,null,"ТАК",null,null,null,null,null,null,null,null,null,null,null,null,null,null,null,null,null,null,null,null,null,{"$f":"IF(AZ2=TRUE,IF(AD302=\"ТАК\",TRUE,FALSE),FALSE)","v":false},null,{"$f":"IF(AZ302=TRUE,1,0)","v":0}]
[]
[null,null,null,null,"4.2А.2",null,null,"Модернізація системи гарячого водопостачання",null,null,null,null,null,null,null,null,null,null,null,null,null,null,null,null,null,null,null,null,null,"ТАК",null,null,null,null,null,null,null,null,null,null,null,null,null,null,null,null,null,null,null,null,null,{"$f":"IF(AZ2=TRUE,IF(AD304=\"ТАК\",TRUE,FALSE),FALSE)","v":false},null,{"$f":"IF(AZ304=TRUE,1,0)","v":0}]
[]
[null,null,null,null,"4.2А.3",null,null,"Встановлення вузлів розподільного обліку теплової енергії на потреби опалення або/та приладів - розподілювачів теплової енергії у квартирах ",null,null,null,null,null,null,null,null,null,null,null,null,null,null,null,null,null,null,null,null,null,"ТАК",null,null,null,null,null,null,null,null,null,null,null,null,null,null,null,null,null,null,null,null,null,{"$f":"IF(AZ2=TRUE,IF(AD306=\"ТАК\",TRUE,FALSE),FALSE)","v":false},null,{"$f":"IF(AZ306=TRUE,1,0)","v":0}]
[]
[]
[null,null,null,null,"4.2А.4",null,null,"Встановлення автоматичних регуляторів температури повітря у приміщеннях на опалювальних приладах водяної системи опалення у квартирах або/та у приміщеннях (місцях) загального користування будівлі",null,null,null,null,null,null,null,null,null,null,null,null,null,null,null,null,null,null,null,null,null,"ТАК",null,null,null,null,null,null,null,null,null,null,null,null,null,null,null,null,null,null,null,null,null,{"$f":"IF(AZ2=TRUE,IF(AD309=\"ТАК\",TRUE,FALSE),FALSE)","v":false},null,{"$f":"IF(AZ309=TRUE,1,0)","v":0}]
[]
[]
[]
[null,null,null,null,"4.2А.5",null,null,"Заміна або/та теплоізоляція трубопроводів системи опалення або/та приладів водяної системи опалення у приміщеннях (місцях) загального користування будівлі",null,null,null,null,null,null,null,null,null,null,null,null,null,null,null,null,null,null,null,null,null,"ТАК",null,null,null,null,null,null,null,null,null,null,null,null,null,null,null,null,null,null,null,null,null,{"$f":"IF(AZ2=TRUE,IF(AD313=\"ТАК\",TRUE,FALSE),FALSE)","v":false},null,{"$f":"IF(AZ313=TRUE,1,0)","v":0}]
[]
[]
[null,null,null,null,"4.2А.6",null,null,"Заміна або ремонт блоків віконних або/та блоків балконних дверних у приміщеннях (місцях) загального користування будівлі ",null,null,null,null,null,null,null,null,null,null,null,null,null,null,null,null,null,null,null,null,null,"ТАК",null,null,null,null,null,null,null,null,null,null,null,null,null,null,null,null,null,null,null,null,null,{"$f":"IF(AZ2=TRUE,IF(AD316=\"ТАК\",TRUE,FALSE),FALSE)","v":false},null,{"$f":"IF(AZ316=TRUE,1,0)","v":0}]
[]
[]
[null,null,null,null,"4.2А.7",null,null,"Заміна або ремонт зовнішніх дверей або/та облаштування тамбурів зовнішнього входу",null,null,null,null,null,null,null,null,null,null,null,null,null,null,null,null,null,null,null,null,null,"ТАК",null,null,null,null,null,null,null,null,null,null,null,null,null,null,null,null,null,null,null,null,null,{"$f":"IF(AZ2=TRUE,IF(AD319=\"ТАК\",TRUE,FALSE),FALSE)","v":false},null,{"$f":"IF(AZ319=TRUE,1,0)","v":0}]
[]
[null,null,null,null,"4.2А.8",null,null,"Комплекс робіт із модернізації та облаштування системи освітлення у приміщеннях (місцях) загального користування будівлі ",null,null,null,null,null,null,null,null,null,null,null,null,null,null,null,null,null,null,null,null,null,"ТАК",null,null,null,null,null,null,null,null,null,null,null,null,null,null,null,null,null,null,null,null,null,{"$f":"IF(AZ2=TRUE,IF(AD321=\"ТАК\",TRUE,FALSE),FALSE)","v":false},null,{"$f":"IF(AZ321=TRUE,1,0)","v":0}]
[]
[]
[]
[]
[null,null,null,null,"4.2Б. Додаткові заходи для Пакету заходів «Б»"]
[null,null,null,null,"№",null,null,"Назва заходу",null,null,null,null,null,null,null,null,null,null,null,null,null,null,null,null,null,null,null,null,null,"Рішення про впровадження заходу (ТАК/НІ)"]
[]
[]
[null,null,null,null,"4.2Б.1",null,null,"Комплекс робіт із теплоізоляції та улаштування зовнішніх стін нижче рівня ґрунту",null,null,null,null,null,null,null,null,null,null,null,null,null,null,null,null,null,null,null,null,null,"ТАК",null,null,null,null,null,null,null,null,null,null,null,null,null,null,null,null,null,null,null,null,null,{"$f":"IF(AZ2=FALSE,IF(AD330=\"ТАК\",TRUE,FALSE),FALSE)","v":true},null,{"$f":"IF(AZ330=TRUE,1,0)","v":1}]
[]
[null,null,null,null,"4.2Б.2",null,null,"Модернізація системи гарячого водопостачання",null,null,null,null,null,null,null,null,null,null,null,null,null,null,null,null,null,null,null,null,null,"ТАК",null,null,null,null,null,null,null,null,null,null,null,null,null,null,null,null,null,null,null,null,null,{"$f":"IF(AZ2=FALSE,IF(AD332=\"ТАК\",TRUE,FALSE),FALSE)","v":true},null,{"$f":"IF(AZ332=TRUE,1,0)","v":1}]
[]
[null,null,null,null,"4.2Б.3",null,null,"Заміна або/та теплоізоляція трубопроводів системи опалення або/та приладів водяної системи опалення у приміщеннях (місцях) загального користування будівлі",null,null,null,null,null,null,null,null,null,null,null,null,null,null,null,null,null,null,null,null,null,"ТАК",null,null,null,null,null,null,null,null,null,null,null,null,null,null,null,null,null,null,null,null,null,{"$f":"IF(AZ2=FALSE,IF(AD334=\"ТАК\",TRUE,FALSE),FALSE)","v":true},null,{"$f":"IF(AZ334=TRUE,1,0)","v":1}]
[]
[]
[null,null,null,null,"4.2Б.4",null,null,"Заміна або/та теплоізоляція трубопроводів системи опалення або/та приладів водяної системи опалення у квартирах",null,null,null,null,null,null,null,null,null,null,null,null,null,null,null,null,null,null,null,null,null,"ТАК",null,null,null,null,null,null,null,null,null,null,null,null,null,null,null,null,null,null,null,null,null,{"$f":"IF(AZ2=FALSE,IF(AD337=\"ТАК\",TRUE,FALSE),FALSE)","v":true},null,{"$f":"IF(AZ337=TRUE,1,0)","v":1}]
[]
[null,null,null,null,"4.2Б.5",null,null,"Встановлення вузлів розподільного обліку теплової енергії на потреби опалення або/та приладів - розподілювачів теплової енергії у квартирах",null,null,null,null,null,null,null,null,null,null,null,null,null,null,null,null,null,null,null,null,null,"ТАК",null,null,null,null,null,null,null,null,null,null,null,null,null,null,null,null,null,null,null,null,null,{"$f":"IF(AZ2=FALSE,IF(AD339=\"ТАК\",TRUE,FALSE),FALSE)","v":true},null,{"$f":"IF(AZ339=TRUE,1,0)","v":1}]
[]
[]
[null,null,null,null,"4.2Б.6",null,null,"Встановлення автоматичних регуляторів температури повітря у приміщеннях на опалювальних приладах водяної системи опалення у квартирах або/та у приміщеннях (місцях) загального користування будівлі",null,null,null,null,null,null,null,null,null,null,null,null,null,null,null,null,null,null,null,null,null,"ТАК",null,null,null,null,null,null,null,null,null,null,null,null,null,null,null,null,null,null,null,null,null,{"$f":"IF(AZ2=FALSE,IF(AD342=\"ТАК\",TRUE,FALSE),FALSE)","v":true},null,{"$f":"IF(AZ342=TRUE,1,0)","v":1}]
[]
[]
[]
[null,null,null,null,"4.2Б.7",null,null,"Заміна або ремонт блоків віконних або/та блоків балконних дверних у квартирах, утеплення і скління наявних балконів і лоджій",null,null,null,null,null,null,null,null,null,null,null,null,null,null,null,null,null,null,null,null,null,"ТАК",null,null,null,null,null,null,null,null,null,null,null,null,null,null,null,null,null,null,null,null,null,{"$f":"IF(AZ2=FALSE,IF(AD346=\"ТАК\",TRUE,FALSE),FALSE)","v":true},null,{"$f":"IF(AZ346=TRUE,1,0)","v":1}]
[]
[]
[null,null,null,null,"4.2Б.8",null,null,"Комплекс робіт із модернізації та облаштування системи освітлення у приміщеннях (місцях) загального користування будівлі",null,null,null,null,null,null,null,null,null,null,null,null,null,null,null,null,null,null,null,null,null,"ТАК",null,null,null,null,null,null,null,null,null,null,null,null,null,null,null,null,null,null,null,null,null,{"$f":"IF(AZ2=FALSE,IF(AD349=\"ТАК\",TRUE,FALSE),FALSE)","v":true},null,{"$f":"IF(AZ349=TRUE,1,0)","v":1}]
[]
[]
[null,null,null,null,"4.2Б.9",null,null,"Комплекс робіт із модернізації та облаштування системи вентиляції з встановленням рекуператорів",null,null,null,null,null,null,null,null,null,null,null,null,null,null,null,null,null,null,null,null,null,"ТАК",null,null,null,null,null,null,null,null,null,null,null,null,null,null,null,null,null,null,null,null,null,{"$f":"IF(AZ2=FALSE,IF(AD352=\"ТАК\",TRUE,FALSE),FALSE)","v":true},null,{"$f":"IF(AZ352=TRUE,1,0)","v":1}]
[]
[null,null,null,null,"4.2Б.10",null,null,"Інші типи модернізації системи внутрішнього теплопостачання",null,null,null,null,null,null,null,null,null,null,null,null,null,null,null,null,null,null,null,null,null,"ТАК",null,null,null,null,null,null,null,null,null,null,null,null,null,null,null,null,null,null,null,null,null,{"$f":"IF(AZ2=FALSE,IF(AD354=\"ТАК\",TRUE,FALSE),FALSE)","v":true},null,{"$f":"IF(AZ354=TRUE,1,0)","v":1}]
[]
[]
[]
[]
[null,null,null,null,"5. РІЧНЕ ЕНЕРГОСПОЖИВАННЯ"]
[null,null,null,null,"№",null,null,"Показник",null,null,null,null,null,null,null,null,null,null,"Од. вимірювання",null,null,null,null,null,"Фактичне споживання – відповідно до енергетичного сертифікату",null,null,null,null,null,"Розрахункове базове споживання"]
[]
[null,null,null,null,null,null,null,null,null,null,null,null,null,null,null,null,null,null,null,null,null,null,null,null,null,null,null,null,null,null,"до впровадження заходів\nвідповідно до енергетичного сертифікату",null,null,null,null,null,"після впровадження заходів"]
[]
[]
[]
[]
[]
[null,null,null,null,1,null,null,2,null,null,null,null,null,null,null,null,null,null,3,null,null,null,null,null,4,null,null,null,null,null,5,null,null,null,null,null,6]
[]
[null,null,null,null,"5.1",null,null,"Загальне річне споживання енергії:",null,null,null,null,null,null,null,null,null,null,"тис. кВт·год/рік",null,null,null,null,null,{"$f":"Y372+Y374+Y376+Y378+Y380","v":0},null,null,null,null,null,{"$f":"AE372+AE374+AE376+AE378+AE380","v":0},null,null,null,null,null,{"$f":"AK372+AK374+AK376+AK378+AK380","v":0}]
[null,null,null,null,null,null,null,null,null,null,null,null,null,null,null,null,null,null,"кВт·год/(м²·рік)",null,null,null,null,null,{"$f":"Y373+Y375+Y377+Y379+Y381","v":{"$error":"#DIV/0!"}},null,null,null,null,null,{"$f":"AE373+AE375+AE377+AE379+AE381","v":{"$error":"#DIV/0!"}},null,null,null,null,null,{"$f":"AK373+AK375+AK377+AK379+AK381","v":{"$error":"#DIV/0!"}}]
[null,null,null,null,"5.1.1",null,null,"Опалення",null,null,null,null,null,null,null,null,null,null,"тис. кВт·год/рік"]
[null,null,null,null,null,null,null,null,null,null,null,null,null,null,null,null,null,null,"кВт·год/(м²·рік)",null,null,null,null,null,{"$f":"Y372*1000/$AA$91","v":{"$error":"#DIV/0!"}},null,null,null,null,null,{"$f":"AE372*1000/$AA$91","v":{"$error":"#DIV/0!"}},null,null,null,null,null,{"$f":"AK372*1000/$AA$91","v":{"$error":"#DIV/0!"}}]
[null,null,null,null,"5.1.2",null,null,"Гаряче водопостачання",null,null,null,null,null,null,null,null,null,null,"тис. кВт·год/рік"]
[null,null,null,null,null,null,null,null,null,null,null,null,null,null,null,null,null,null,"кВт·год/(м²·рік)",null,null,null,null,null,{"$f":"Y374*1000/$AA$91","v":{"$error":"#DIV/0!"}},null,null,null,null,null,{"$f":"AE374*1000/$AA$91","v":{"$error":"#DIV/0!"}},null,null,null,null,null,{"$f":"AK374*1000/$AA$91","v":{"$error":"#DIV/0!"}}]
[null,null,null,null,"5.1.3",null,null,"Охолодження",null,null,null,null,null,null,null,null,null,null,"тис. кВт·год/рік"]
[null,null,null,null,null,null,null,null,null,null,null,null,null,null,null,null,null,null,"кВт·год/(м²·рік)",null,null,null,null,null,{"$f":"Y376*1000/$AA$91","v":{"$error":"#DIV/0!"}},null,null,null,null,null,{"$f":"AE376*1000/$AA$91","v":{"$error":"#DIV/0!"}},null,null,null,null,null,{"$f":"AK376*1000/$AA$91","v":{"$error":"#DIV/0!"}}]
[null,null,null,null,"5.1.4",null,null,"Вентиляція ",null,null,null,null,null,null,null,null,null,null,"тис. кВт·год/рік"]
[null,null,null,null,null,null,null,null,null,null,null,null,null,null,null,null,null,null,"кВт·год/(м²·рік)",null,null,null,null,null,{"$f":"Y378*1000/$AA$91","v":{"$error":"#DIV/0!"}},null,null,null,null,null,{"$f":"AE378*1000/$AA$91","v":{"$error":"#DIV/0!"}},null,null,null,null,null,{"$f":"AK378*1000/$AA$91","v":{"$error":"#DIV/0!"}}]
[null,null,null,null,"5.1.5",null,null,"Освітлення ",null,null,null,null,null,null,null,null,null,null,"тис. кВт·год/рік"]
[null,null,null,null,null,null,null,null,null,null,null,null,null,null,null,null,null,null,"кВт·год/(м²·рік)",null,null,null,null,null,{"$f":"Y380*1000/$AA$91","v":{"$error":"#DIV/0!"}},null,null,null,null,null,{"$f":"AE380*1000/$AA$91","v":{"$error":"#DIV/0!"}},null,null,null,null,null,{"$f":"AK380*1000/$AA$91","v":{"$error":"#DIV/0!"}}]
[null,null,null,null,"5.2",null,null,"Питоме споживання первинної енергії",null,null,null,null,null,null,null,null,null,null,"кВт·год/(м²·рік)",null,null,null,null,null,"Х"]
[]
[null,null,null,null,"5.3",null,null,"Питомі викиди парникових газів",null,null,null,null,null,null,null,null,null,null,"кг/(м²·рік)",null,null,null,null,null,"Х"]
[]
[null,null,null,null,"5.4",null,null,"Розрахункова питома річна енергопотреба",null,null,null,null,null,null,null,null,null,null,"кВт·год/(м²·рік)",null,null,null,null,null,"Х"]
[]
[null,null,null,null,"5.5",null,null,"Загальний відсоток економії енергії",null,null,null,null,null,null,null,null,null,null,"%",null,null,null,null,null,"Х",null,null,null,null,null,"Х",null,null,null,null,null,{"$f":"(AE370-AK370)/AE370","v":{"$error":"#DIV/0!"}}]
[]
[null,null,null,null,"5.6",null,null,"Фактична тривалість опалювального періоду ",null,null,null,null,null,null,null,null,null,null,"діб",null,null,null,null,null,null,null,null,null,null,null,"Х",null,null,null,null,null,"Х"]
[]
[null,null,null,null,"5.7",null,null,"Фактична середня температура зовнішнього повітря впродовж опалювального періоду ",null,null,null,null,null,null,null,null,null,null,"0С",null,null,null,null,null,null,null,null,null,null,null,"Х",null,null,null,null,null,"Х"]
[]
[]
[]
[]
[]
[null,null,null,null,"6. ТЕХНІЧНІ ТА ЕКОНОМІЧНІ ПОКАЗНИКИ ЕНЕРГОЕФЕКТИВНИХ ЗАХОДІВ"]
[null,null,null,null,"№",null,"№ заходу в розд. 4",null,"Назва заходу (відповідно\nдо розділу 4)",null,null,null,null,null,null,null,null,"Технічні показники заходів",null,null,null,null,null,null,null,null,null,null,null,null,null,null,null,null,"Оцінка вартості, грн. з ПДВ*",null,null,null,"Примітка"]
[]
[null,null,null,null,null,null,null,null,null,null,null,null,null,null,null,null,null,"Короткий опис заходу із зазначенням технічного (технологічного) рішення, основних характеристик обладнання, тощо",null,null,null,null,null,null,null,null,null,null,null,"Обсяг робіт"]
[null,null,null,null,null,null,null,null,null,null,null,null,null,null,null,null,null,null,null,null,null,null,null,null,null,null,null,null,null,"Од. вимір (м, од.)",null,"Кіль-кість"]
[]
[]
[]
[null,null,null,null,1,null,2,null,3,null,null,null,null,null,null,null,null,4,null,null,null,null,null,null,null,null,null,null,null,5,null,6,null,null,7,null,null,null,8]
[]
[null,null,null,null,{"$f":"\"6.1.\"&TEXT(AZ408,\"0\")","v":"6.1.1"},null,"4.1.1",null,"Встановлення вузла комерційного обліку теплової енергії",null,null,null,null,null,null,null,null,null,null,null,null,null,null,null,null,null,null,null,null,null,null,null,null,null,null,null,null,null,null,null,null,null,null,null,null,null,null,null,null,null,null,{"$f":"IF(AZ235=TRUE,1,0)","v":1}]
[]
[]
[null,null,null,null,{"$f":"\"6.1.\"&TEXT(AZ411,\"0\")","v":"6.1.2"},null,"4.1.2",null,"Встановлення або модернізація індивідуального теплового пункту (ІТП)",null,null,null,null,null,null,null,null,null,null,null,null,null,null,null,null,null,null,null,null,null,null,null,null,null,null,null,null,null,null,null,null,null,null,null,null,null,null,null,null,null,null,{"$f":"AZ408+IF(AZ238=TRUE,1,0)","v":2}]
[]
[]
[]
[null,null,null,null,{"$f":"\"6.1.\"&TEXT(AZ415,\"0\")","v":"6.1.3"},null,"4.1.3",null,"Заміна або модернізація загальнобудинкового котла або/та допоміжного обладнання (наприклад, насосів, систем автоматичного регулювання тощо)",null,null,null,null,null,null,null,null,null,null,null,null,null,null,null,null,null,null,null,null,null,null,null,null,null,null,null,null,null,null,null,null,null,null,null,null,null,null,null,null,null,null,{"$f":"AZ411+IF(AZ243=TRUE,1,0)","v":3}]
[]
[]
[]
[]
[]
[]
[null,null,null,null,{"$f":"\"6.1.\"&TEXT(AZ422,\"0\")","v":"6.1.4"},null,"4.1.4",null,"Теплоізоляція або/та заміна трубопроводів системи внутрішнього теплопостачання в неопалювальних приміщеннях",null,null,null,null,null,null,null,null,null,null,null,null,null,null,null,null,null,null,null,null,null,null,null,null,null,null,null,null,null,null,null,null,null,null,null,null,null,null,null,null,null,null,{"$f":"AZ415+IF(AZ251=TRUE,1,0)","v":4}]
[]
[]
[]
[]
[]
[null,null,null,null,{"$f":"\"6.1.\"&TEXT(AZ428,\"0\")","v":"6.1.5"},null,"4.1.5",null,"Теплоізоляція або/та заміна трубопроводів системи гарячого водопостачання в неопалювальних приміщеннях",null,null,null,null,null,null,null,null,null,null,null,null,null,null,null,null,null,null,null,null,null,null,null,null,null,null,null,null,null,null,null,null,null,null,null,null,null,null,null,null,null,null,{"$f":"AZ422+IF(AZ256=TRUE,1,0)","v":5}]
[]
[]
[]
[]
[]
[null,null,null,null,{"$f":"\"6.1.\"&TEXT(AZ434,\"0\")","v":"6.1.6"},null,"4.1.6",null,"Гідравлічне балансування системи опалення шляхом встановлення автоматичних (балансувальних) клапанів",null,null,null,null,null,null,null,null,null,null,null,null,null,null,null,null,null,null,null,null,null,null,null,null,null,null,null,null,null,null,null,null,null,null,null,null,null,null,null,null,null,null,{"$f":"AZ428+IF(AZ260=TRUE,1,0)","v":6}]
[]
[]
[]
[]
[]
[]
[null,null,null,null,{"$f":"\"6.1.\"&TEXT(AZ441,\"0\")","v":"6.1.7"},null,"4.1.7",null,"Комплекс робіт із теплоізоляції та улаштування зовнішніх стін ",null,null,null,null,null,null,null,null,null,null,null,null,null,null,null,null,null,null,null,null,null,null,null,null,null,null,null,null,null,null,null,null,null,null,null,null,null,null,null,null,null,null,{"$f":"AZ434+IF(AZ264=TRUE,1,0)","v":7}]
[]
[]
[]
[null,null,null,null,{"$f":"\"6.1.\"&TEXT(AZ445,\"0\")","v":"6.1.8"},null,"4.1.8",null,"Комплекс робіт із теплоізоляції та улаштування опалювальних та неопалювальних горищ (технічних поверхів) та дахів",null,null,null,null,null,null,null,null,null,null,null,null,null,null,null,null,null,null,null,null,null,null,null,null,null,null,null,null,null,null,null,null,null,null,null,null,null,null,null,null,null,null,{"$f":"AZ441+IF(AZ266=TRUE,1,0)","v":8}]
[]
[]
[]
[]
[]
[]
[null,null,null,null,{"$f":"\"6.1.\"&TEXT(AZ452,\"0\")","v":"6.1.9"},null,"4.1.9",null,"Комплекс робіт із теплоізоляції та улаштування плит перекриття підвалу",null,null,null,null,null,null,null,null,null,null,null,null,null,null,null,null,null,null,null,null,null,null,null,null,null,null,null,null,null,null,null,null,null,null,null,null,null,null,null,null,null,null,{"$f":"AZ445+IF(AZ270=TRUE,1,0)","v":9}]
[]
[]
[]
[null,null,null,null,{"$f":"\"6.1.\"&TEXT(AZ456,\"0\")","v":"6.1.10"},null,"4.1.10",null,"Заміна або ремонт зовнішніх дверей або/та облаштування тамбурів зовнішнього входу",null,null,null,null,null,null,null,null,null,null,null,null,null,null,null,null,null,null,null,null,null,null,null,null,null,null,null,null,null,null,null,null,null,null,null,null,null,null,null,null,null,null,{"$f":"AZ452+IF(AZ273=TRUE,1,0)","v":10}]
[]
[]
[]
[null,null,null,null,{"$f":"\"6.1.\"&TEXT(AZ460,\"0\")","v":"6.1.11"},null,"4.1.11",null,"Заміна або ремонт блоків віконних або/та блоків балконних дверних у приміщеннях (місцях) загального користування будівлі",null,null,null,null,null,null,null,null,null,null,null,null,null,null,null,null,null,null,null,null,null,null,null,null,null,null,null,null,null,null,null,null,null,null,null,null,null,null,null,null,null,null,{"$f":"AZ456+IF(AZ276=TRUE,1,0)","v":11}]
[]
[]
[]
[]
[]
[null,null,null,null,{"$f":"\"6.1.\"&TEXT(AZ466,\"0\")","v":"6.1.11"},null,"4.2А.1",null,"Комплекс робіт із теплоізоляції та улаштування опалювальних та неопалювальних горищ (технічних поверхів) та дахів",null,null,null,null,null,null,null,null,null,null,null,null,null,null,null,null,null,null,null,null,null,null,null,null,null,null,null,null,null,null,null,null,null,null,null,null,null,null,null,null,null,null,{"$f":"AZ460+IF(AZ302=TRUE,1,0)","v":11}]
[]
[]
[]
[]
[]
[]
[null,null,null,null,{"$f":"\"6.1.\"&TEXT(AZ473,\"0\")","v":"6.1.11"},null,"4.2А.2",null,"Модернізація системи гарячого водопостачання",null,null,null,null,null,null,null,null,null,null,null,null,null,null,null,null,null,null,null,null,null,null,null,null,null,null,null,null,null,null,null,null,null,null,null,null,null,null,null,null,null,null,{"$f":"AZ466+IF(AZ304=TRUE,1,0)","v":11}]
[]
[null,null,null,null,{"$f":"\"6.1.\"&TEXT(AZ475,\"0\")","v":"6.1.11"},null,"4.2А.3",null,"Встановлення вузлів розподільного обліку теплової енергії на потреби опалення або/та приладів - розподілювачів теплової енергії у квартирах ",null,null,null,null,null,null,null,null,null,null,null,null,null,null,null,null,null,null,null,null,null,null,null,null,null,null,null,null,null,null,null,null,null,null,null,null,null,null,null,null,null,null,{"$f":"AZ473+IF(AZ306=TRUE,1,0)","v":11}]
[]
[]
[]
[]
[]
[]
[null,null,null,null,{"$f":"\"6.1.\"&TEXT(AZ482,\"0\")","v":"6.1.11"},null,"4.2А.4",null,"Встановлення автоматичних регуляторів температури повітря у приміщеннях на опалювальних приладах водяної системи опалення у квартирах або/та у приміщеннях (місцях) загального користування будівлі",null,null,null,null,null,null,null,null,null,null,null,null,null,null,null,null,null,null,null,null,null,null,null,null,null,null,null,null,null,null,null,null,null,null,null,null,null,null,null,null,null,null,{"$f":"AZ475+IF(AZ309=TRUE,1,0)","v":11}]
[]
[]
[]
[]
[]
[]
[]
[]
[]
[]
[null,null,null,null,{"$f":"\"6.1.\"&TEXT(AZ493,\"0\")","v":"6.1.11"},null,"4.2А.5",null,"Заміна або/та теплоізоляція трубопроводів системи опалення або/та приладів водяної системи опалення у приміщеннях (місцях) загального користування будівлі",null,null,null,null,null,null,null,null,null,null,null,null,null,null,null,null,null,null,null,null,null,null,null,null,null,null,null,null,null,null,null,null,null,null,null,null,null,null,null,null,null,null,{"$f":"AZ482+IF(AZ313=TRUE,1,0)","v":11}]
[]
[]
[]
[]
[]
[]
[]
[null,null,null,null,{"$f":"\"6.1.\"&TEXT(AZ501,\"0\")","v":"6.1.11"},null,"4.2А.6",null,"Заміна або ремонт блоків віконних або/та блоків балконних дверних у приміщеннях (місцях) загального користування будівлі ",null,null,null,null,null,null,null,null,null,null,null,null,null,null,null,null,null,null,null,null,null,null,null,null,null,null,null,null,null,null,null,null,null,null,null,null,null,null,null,null,null,null,{"$f":"AZ493+IF(AZ316=TRUE,1,0)","v":11}]
[]
[]
[]
[]
[]
[null,null,null,null,{"$f":"\"6.1.\"&TEXT(AZ507,\"0\")","v":"6.1.11"},null,"4.2А.7",null,"Заміна або ремонт зовнішніх дверей або/та облаштування тамбурів зовнішнього входу",null,null,null,null,null,null,null,null,null,null,null,null,null,null,null,null,null,null,null,null,null,null,null,null,null,null,null,null,null,null,null,null,null,null,null,null,null,null,null,null,null,null,{"$f":"AZ501+IF(AZ319=TRUE,1,0)","v":11}]
[]
[]
[]
[null,null,null,null,{"$f":"\"6.1.\"&TEXT(AZ511,\"0\")","v":"6.1.11"},null,"4.2А.8",null,"Комплекс робіт із модернізації та облаштування системи освітлення у приміщеннях (місцях) загального користування будівлі ",null,null,null,null,null,null,null,null,null,null,null,null,null,null,null,null,null,null,null,null,null,null,null,null,null,null,null,null,null,null,null,null,null,null,null,null,null,null,null,null,null,null,{"$f":"AZ507+IF(AZ321=TRUE,1,0)","v":11}]
[]
[]
[]
[]
[]
[]
[null,null,null,null,{"$f":"\"6.1.\"&TEXT(AZ518,\"0\")","v":"6.1.12"},null,"4.2Б.1",null,"Комплекс робіт із теплоізоляції та улаштування зовнішніх стін нижче рівня ґрунту",null,null,null,null,null,null,null,null,null,null,null,null,null,null,null,null,null,null,null,null,null,null,null,null,null,null,null,null,null,null,null,null,null,null,null,null,null,null,null,null,null,null,{"$f":"AZ511+IF(AZ330=TRUE,1,0)","v":12}]
[]
[]
[]
[null,null,null,null,{"$f":"\"6.1.\"&TEXT(AZ522,\"0\")","v":"6.1.13"},null,"4.2Б.2",null,"Модернізація системи гарячого водопостачання",null,null,null,null,null,null,null,null,null,null,null,null,null,null,null,null,null,null,null,null,null,null,null,null,null,null,null,null,null,null,null,null,null,null,null,null,null,null,null,null,null,null,{"$f":"AZ518+IF(AZ332=TRUE,1,0)","v":13}]
[]
[null,null,null,null,{"$f":"\"6.1.\"&TEXT(AZ524,\"0\")","v":"6.1.14"},null,"4.2Б.3",null,"Заміна або/та теплоізоляція трубопроводів системи опалення або/та приладів водяної системи опалення у приміщеннях (місцях) загального користування будівлі",null,null,null,null,null,null,null,null,null,null,null,null,null,null,null,null,null,null,null,null,null,null,null,null,null,null,null,null,null,null,null,null,null,null,null,null,null,null,null,null,null,null,{"$f":"AZ522+IF(AZ334=TRUE,1,0)","v":14}]
[]
[]
[]
[]
[]
[]
[]
[null,null,null,null,{"$f":"\"6.1.\"&TEXT(AZ532,\"0\")","v":"6.1.15"},null,"4.2Б.4",null,"Заміна або/та теплоізоляція трубопроводів системи опалення або/та приладів водяної системи опалення у квартирах",null,null,null,null,null,null,null,null,null,null,null,null,null,null,null,null,null,null,null,null,null,null,null,null,null,null,null,null,null,null,null,null,null,null,null,null,null,null,null,null,null,null,{"$f":"AZ524+IF(AZ337=TRUE,1,0)","v":15}]
[]
[]
[]
[]
[]
[null,null,null,null,{"$f":"\"6.1.\"&TEXT(AZ538,\"0\")","v":"6.1.16"},null,"4.2Б.5",null,"Встановлення вузлів розподільного обліку теплової енергії на потреби опалення або/та приладів - розподілювачів теплової енергії у квартирах",null,null,null,null,null,null,null,null,null,null,null,null,null,null,null,null,null,null,null,null,null,null,null,null,null,null,null,null,null,null,null,null,null,null,null,null,null,null,null,null,null,null,{"$f":"AZ532+IF(AZ339=TRUE,1,0)","v":16}]
[]
[]
[]
[]
[]
[]
[null,null,null,null,{"$f":"\"6.1.\"&TEXT(AZ545,\"0\")","v":"6.1.17"},null,"4.2Б.6",null,"Встановлення автоматичних регуляторів температури повітря у приміщеннях на опалювальних приладах водяної системи опалення у квартирах або/та у приміщеннях (місцях) загального користування будівлі",null,null,null,null,null,null,null,null,null,null,null,null,null,null,null,null,null,null,null,null,null,null,null,null,null,null,null,null,null,null,null,null,null,null,null,null,null,null,null,null,null,null,{"$f":"AZ538+IF(AZ342=TRUE,1,0)","v":17}]
[]
[]
[]
[]
[]
[]
[]
[]
[]
[]
[null,null,null,null,{"$f":"\"6.1.\"&TEXT(AZ556,\"0\")","v":"6.1.18"},null,"4.2Б.7",null,"Заміна або ремонт блоків віконних або/та блоків балконних дверних у квартирах, утеплення і скління наявних балконів і лоджій",null,null,null,null,null,null,null,null,null,null,null,null,null,null,null,null,null,null,null,null,null,null,null,null,null,null,null,null,null,null,null,null,null,null,null,null,null,null,null,null,null,null,{"$f":"AZ545+IF(AZ346=TRUE,1,0)","v":18}]
[]
[]
[]
[]
[]
[null,null,null,null,{"$f":"\"6.1.\"&TEXT(AZ562,\"0\")","v":"6.1.19"},null,"4.2Б.8",null,"Комплекс робіт із модернізації та облаштування системи освітлення у приміщеннях (місцях) загального користування будівлі",null,null,null,null,null,null,null,null,null,null,null,null,null,null,null,null,null,null,null,null,null,null,null,null,null,null,null,null,null,null,null,null,null,null,null,null,null,null,null,null,null,null,{"$f":"AZ556+IF(AZ349=TRUE,1,0)","v":19}]
[]
[]
[]
[]
[]
[]
[null,null,null,null,{"$f":"\"6.1.\"&TEXT(AZ569,\"0\")","v":"6.1.20"},null,"4.2Б.9",null,"Комплекс робіт із модернізації та облаштування системи вентиляції з встановленням рекуператорів",null,null,null,null,null,null,null,null,null,null,null,null,null,null,null,null,null,null,null,null,null,null,null,null,null,null,null,null,null,null,null,null,null,null,null,null,null,null,null,null,null,null,{"$f":"AZ562+IF(AZ352=TRUE,1,0)","v":20}]
[]
[]
[]
[]
[]
[null,null,null,null,{"$f":"\"6.1.\"&TEXT(AZ575,\"0\")","v":"6.1.21"},null,"4.2Б.10",null,"Інші типи модернізації системи внутрішнього теплопостачання",null,null,null,null,null,null,null,null,null,null,null,null,null,null,null,null,null,null,null,null,null,null,null,null,null,null,null,null,null,null,null,null,null,null,null,null,null,null,null,null,null,null,{"$f":"AZ569+IF(AZ354=TRUE,1,0)","v":21}]
[]
[]
[null,null,null,null,"6.2",null,"Разом",null,null,null,null,null,null,null,null,null,null,null,null,null,null,null,null,null,null,null,null,null,null,null,null,null,null,null,{"$f":"SUBTOTAL(109,AI408:AL577)","v":0}]
[]
[]
[null,null,null,null,"* - зазначається без врахування вартості розробки проектної документації та її експертизи, технічного та авторського нагляду."]
[]
[]
[]
[null,null,null,null,"7. ОЧІКУВАНІ ТЕХНІЧНІ ТА ЕКОНОМІЧНІ ПОКАЗНИКИ ВПРОВАДЖЕННЯ ЗАХОДІВ"]
[]
[]
[null,null,null,null,null,null,"7.1. Вартість енергоресурсів"]
[null,null,null,null,"№ п/п",null,null,"Назва виду енергії/ енергоресурсу/ енергоносія*",null,null,null,null,null,null,null,null,"Одиниці виміру енергії/ енергоресурсу/ енергоносія",null,null,null,null,null,"Тариф, вартість одиниці виміру ",null,null,null,null,null,null,null,"Теплотворна здатність енергоресурсу**"]
[]
[]
[]
[null,null,null,null,1,null,null,2,null,null,null,null,null,null,null,null,3,null,null,null,null,null,4,null,null,null,5,null,null,null,6,null,null,null,null,null,7]
[]
[null,null,null,null,"7.1.1",null,null,"Теплова енергія від централізованого теплопостачання (ЦТП)",null,null,null,null,null,null,null,null,"Гкал",null,null,null,null,null,null,null,null,null,"грн/Гкал",null,null,null,"Х",null,null,null,null,null,"Х"]
[]
[]
[null,null,null,null,"7.1.2",null,null,"Централізоване гаряче водопостачання",null,null,null,null,null,null,null,null,"м³",null,null,null,null,null,null,null,null,null,"грн/м³",null,null,null,46.5,null,null,null,null,null,"кВт·год/м³"]
[]
[null,null,null,null,"7.1.3",null,null,"Природній газ",null,null,null,null,null,null,null,null,"м³",null,null,null,null,null,null,null,null,null,"грн/м³",null,null,null,9.3000000000000007,null,null,null,null,null,"кВт·год/м³"]
[]
[null,null,null,null,"7.1.4",null,null,"Деревина",null,null,null,null,null,null,null,null,"кг",null,null,null,null,null,null,null,null,null,"грн/кг",null,null,null,4,null,null,null,null,null,"кВт·год /кг"]
[]
[null,null,null,null,"7.1.5",null,null,"Вугілля",null,null,null,null,null,null,null,null,"кг",null,null,null,null,null,null,null,null,null,"грн/кг",null,null,null,6.4,null,null,null,null,null,"кВт·год /кг"]
[]
[null,null,null,null,"7.1.6",null,null,"Електроенергія",null,null,null,null,null,null,null,null,"кВт·год",null,null,null,null,null,null,null,null,null,"грн/кВт·год",null,null,null,"Х",null,null,null,null,null,"Х"]
[null,null,null,null,null,null,null,null,null,null,null,null,null,null,null,null,null,null,null,null,null,null,null,null,null,null,null,null,null,null,null,null,null,null,null,null,null,null,null,null,null,null,null,null,null,null,null,null,null,null,null,null,null,null,null,null,{"$f":"1000/1163","v":0.85984522785898498}]
[]
[null,null,null,null,"* - Заповнюється лише для тих видів енергії/ енергоресурсів/ енергоносіів, що споживаються будівлею.\n** -  Теплотворна здатність енергоресурсу –нижча теплотворна здатність палива для неконденсаційних котлів,  вища теплотворна здатність палива - для конденсаційних котлів, та  кількість теплоти затраченої на нагрів 1 м3 гарячої води.  За відсутності даних допускається приймати наступні значення:\n-\tприродній газ - 9,3 кВт·год /м³ (8000 ккал/ м³);\n-\tвугілля – 6,4 кВт·год /кг (5500 ккал/кг);\n-\tдеревина – 4,0 кВт·год /кг (3400 ккал/кг);\n-\tцентралізоване гаряче водопостачання – 46,5 кВт·год /м³ (40 000 ккал/м³) – різниця ентальпій гарячої води при 50 ºС і холодної води при 10 ºС,"]
[]
[]
[]
[]
[]
[]
[]
[]
[]
[null,null,null,null,null,null,"7.2. Розрахунок економії"]
[null,null,null,null,"№",null,null,"№ заходу  розділі 4",null,"Назва заходу (відповідно\nдо розділу 4)",null,null,null,null,null,null,null,"Економія енергії на рік",null,null,null,null,"Вид енергії/ енергоресурсу/ енергоносія, що економиться ***",null,null,null,null,"Частка виду енергії/ енергоресурсу/ енергоносія, що економиться, % ****",null,null,null,null,"Економія енергії у натуральних величинах на рік",null,null,null,"Одиниці виміру енергії у натуральних величинах",null,null,"Витрат\nгрн/рік"]
[]
[null,null,null,null,null,null,null,null,null,null,null,null,null,null,null,null,null,"кВт·год*",null,null,"%**"]
[]
[]
[]
[null,null,null,null,null,null,null,null,null,null,null,null,null,null,null,null,null,null,null,null,null,null,null,null,null,null,null,null,null,null,null,null,null,null,null,null,null,null,null,null,null,null,null,null,null,null,null,null,null,null,null,null,"Вугілля",{"$f":"W604","v":0},"кг",{"$f":"1/AE604","v":0.15625}]
[null,null,null,null,1,null,null,2,null,3,null,null,null,null,null,null,null,4,null,null,5,null,6,null,null,null,null,7,null,null,null,null,8,null,null,null,9,null,null,10,null,null,null,null,null,null,null,null,null,null,null,null,"Деревина",{"$f":"W602","v":0},"кг",{"$f":"1/AE602","v":0.25}]
[null,null,null,null,null,null,null,null,null,null,null,null,null,null,null,null,null,null,null,null,null,null,null,null,null,null,null,null,null,null,null,null,null,null,null,null,null,null,null,null,null,null,null,null,null,null,null,null,null,null,null,null,{"$f":"H606","v":"Електроенергія"},{"$f":"W606","v":0},"кВт·год",1]
[null,null,null,null,{"$f":"\"7.2.1.\"&TEXT(AZ629,\"0\")","v":"7.2.1.1"},null,null,"4.1.1",null,"Встановлення вузла комерційного обліку теплової енергії",null,null,null,null,null,null,null,null,null,null,{"$f":"R629/($AE$370*1000)","v":{"$error":"#DIV/0!"}},null,"ЦТП",null,null,null,null,{"$f":"IF((1-AB630-AB631)>1,1,1-AB630-AB631)","v":1},null,null,null,null,{"$f":"IF(W629=\"\",\"\",IFERROR(R629*AB629*VLOOKUP(W629,$BA$626:$BD$632,4),0))","v":0},null,null,null,{"$f":"IFERROR(VLOOKUP(W629,$BA$626:$BC$632,3),\"\")","v":"Гкал"},null,null,{"$f":"IFERROR(AG629*VLOOKUP(W629,$BA$626:$BC$632,2),0)+IFERROR(AG630*VLOOKUP(W630,$BA$626:$BC$632,2),0)+IFERROR(AG631*VLOOKUP(W631,$BA$626:$BC$632,2),0)","v":0},null,null,null,null,null,null,null,null,null,null,null,{"$f":"AZ408","v":1},"Природній газ",{"$f":"W600","v":0},"м³",{"$f":"1/AE600","v":0.10752688172043}]
[null,null,null,null,null,null,null,null,null,null,null,null,null,null,null,null,null,null,null,null,null,null,"Природній газ",null,null,null,null,0,null,null,null,null,{"$f":"IF(W630=\"\",\"\",IFERROR(R629*AB630*VLOOKUP(W630,$BA$626:$BD$632,4),0))","v":0},null,null,null,{"$f":"IFERROR(VLOOKUP(W630,$BA$626:$BC$632,3),\"\")","v":"м³"},null,null,null,null,null,null,null,null,null,null,null,null,null,null,null,"Центр ГВП",{"$f":"W598","v":0},"м³",{"$f":"1/AE598","v":2.1505376344085999E-2}]
[null,null,null,null,null,null,null,null,null,null,null,null,null,null,null,null,null,null,null,null,null,null,null,null,null,null,null,0,null,null,null,null,{"$f":"IF(W631=\"\",\"\",IFERROR(R629*AB631*VLOOKUP(W631,$BA$626:$BD$632,4),0))","v":""},null,null,null,{"$f":"IFERROR(VLOOKUP(W631,$BA$626:$BC$632,3),\"\")","v":""},null,null,null,null,null,null,null,null,null,null,null,null,null,null,null,"ЦТП",{"$f":"W595","v":0},"Гкал",{"$f":"1/1163","v":8.5984522785898497E-4}]
[null,null,null,null,{"$f":"\"7.2.1.\"&TEXT(AZ632,\"0\")","v":"7.2.1.2"},null,null,"4.1.2",null,"Встановлення або модернізація індивідуального теплового пункту (ІТП)",null,null,null,null,null,null,null,null,null,null,{"$f":"R632/($AE$370*1000)","v":{"$error":"#DIV/0!"}},null,"ЦТП",null,null,null,null,{"$f":"IF((1-AB634-AB635)>1,1,1-AB634-AB635)","v":1},null,null,null,null,{"$f":"IF(W632=\"\",\"\",IFERROR(R632*AB632*VLOOKUP(W632,$BA$626:$BD$632,4),0))","v":0},null,null,null,{"$f":"IFERROR(VLOOKUP(W632,$BA$626:$BC$632,3),\"\")","v":"Гкал"},null,null,{"$f":"IFERROR(AG632*VLOOKUP(W632,$BA$626:$BC$632,2),0)+IFERROR(AG634*VLOOKUP(W634,$BA$626:$BC$632,2),0)+IFERROR(AG635*VLOOKUP(W635,$BA$626:$BC$632,2),0)","v":0},null,null,null,null,null,null,null,null,null,null,null,{"$f":"AZ411","v":2}]
[null,null,null,null,null,null,null,null,null,null,null,null,null,null,null,null,null,null,null,null,null,null,null,null,null,null,null,{"$f":"1-AB634-AB636","v":1},null,null,null,null,"",null,null,null,""]
[null,null,null,null,null,null,null,null,null,null,null,null,null,null,null,null,null,null,null,null,null,null,"Природній газ",null,null,null,null,0,null,null,null,null,{"$f":"IF(W634=\"\",\"\",IFERROR(R632*AB634*VLOOKUP(W634,$BA$626:$BD$632,4),0))","v":0},null,null,null,{"$f":"IFERROR(VLOOKUP(W634,$BA$626:$BC$632,3),\"\")","v":"м³"}]
[null,null,null,null,null,null,null,null,null,null,null,null,null,null,null,null,null,null,null,null,null,null,null,null,null,null,null,0,null,null,null,null,{"$f":"IF(W635=\"\",\"\",IFERROR(R632*AB635*VLOOKUP(W635,$BA$626:$BD$632,4),0))","v":""},null,null,null,{"$f":"IFERROR(VLOOKUP(W635,$BA$626:$BC$632,3),\"\")","v":""}]
[null,null,null,null,null,null,null,null,null,null,null,null,null,null,null,null,null,null,null,null,null,null,null,null,null,null,null,null,null,null,null,null,{"$f":"IF(W636=\"\",\"\",IFERROR(R634*AB636*VLOOKUP(W636,$BA$626:$BD$632,4),0))","v":""},null,null,null,""]
[null,null,null,null,{"$f":"\"7.2.1.\"&TEXT(AZ637,\"0\")","v":"7.2.1.3"},null,null,"4.1.3",null,"Заміна або модернізація загальнобудинкового котла або/та допоміжного обладнання (наприклад, насосів, систем автоматичного регулювання тощо)",null,null,null,null,null,null,null,null,null,null,{"$f":"R637/($AE$370*1000)","v":{"$error":"#DIV/0!"}},null,"ЦТП",null,null,null,null,{"$f":"IF((1-AB640-AB643)>1,1,1-AB640-AB643)","v":1},null,null,null,null,{"$f":"IF(W637=\"\",\"\",IFERROR(R637*AB637*VLOOKUP(W637,$BA$626:$BD$632,4),0))","v":0},null,null,null,{"$f":"IFERROR(VLOOKUP(W637,$BA$626:$BC$632,3),\"\")","v":"Гкал"},null,null,{"$f":"IFERROR(AG637*VLOOKUP(W637,$BA$626:$BC$632,2),0)+IFERROR(AG640*VLOOKUP(W640,$BA$626:$BC$632,2),0)+IFERROR(AG643*VLOOKUP(W643,$BA$626:$BC$632,2),0)","v":0},null,null,null,null,null,null,null,null,null,null,null,{"$f":"AZ415","v":3}]
[null,null,null,null,null,null,null,null,null,null,null,null,null,null,null,null,null,null,null,null,null,null,null,null,null,null,null,{"$f":"1-AB639-AB641","v":0},null,null,null,null,"",null,null,null,""]
[null,null,null,null,null,null,null,null,null,null,null,null,null,null,null,null,null,null,null,null,null,null,null,null,null,null,null,1,null,null,null,null,"",null,null,null,""]
[null,null,null,null,null,null,null,null,null,null,null,null,null,null,null,null,null,null,null,null,null,null,"Природній газ",null,null,null,null,0,null,null,null,null,{"$f":"IF(W640=\"\",\"\",IFERROR(R637*AB640*VLOOKUP(W640,$BA$626:$BD$632,4),0))","v":0},null,null,null,"м³"]
[null,null,null,null,null,null,null,null,null,null,null,null,null,null,null,null,null,null,null,null,null,null,null,null,null,null,null,null,null,null,null,null,{"$f":"IF(W641=\"\",\"\",IFERROR(R640*AB641*VLOOKUP(W641,$BA$626:$BD$632,4),0))","v":""},null,null,null,""]
[null,null,null,null,null,null,null,null,null,null,null,null,null,null,null,null,null,null,null,null,null,null,null,null,null,null,null,null,null,null,null,null,"",null,null,null,""]
[null,null,null,null,null,null,null,null,null,null,null,null,null,null,null,null,null,null,null,null,null,null,null,null,null,null,null,0,null,null,null,null,{"$f":"IF(W643=\"\",\"\",IFERROR(R637*AB643*VLOOKUP(W643,$BA$626:$BD$632,4),0))","v":""},null,null,null,""]
[null,null,null,null,null,null,null,null,null,null,null,null,null,null,null,null,null,null,null,null,null,null,null,null,null,null,null,null,null,null,null,null,{"$f":"IF(W644=\"\",\"\",IFERROR(R642*AB644*VLOOKUP(W644,$BA$626:$BD$632,4),0))","v":""},null,null,null,""]
[null,null,null,null,null,null,null,null,null,null,null,null,null,null,null,null,null,null,null,null,null,null,null,null,null,null,null,null,null,null,null,null,"",null,null,null,""]
[null,null,null,null,{"$f":"\"7.2.1.\"&TEXT(AZ646,\"0\")","v":"7.2.1.4"},null,null,"4.1.4",null,"Теплоізоляція або/та заміна трубопроводів системи внутрішнього теплопостачання в неопалювальних приміщеннях",null,null,null,null,null,null,null,null,null,null,{"$f":"R646/($AE$370*1000)","v":{"$error":"#DIV/0!"}},null,"ЦТП",null,null,null,null,{"$f":"IF((1-AB648-AB650)>1,1,1-AB648-AB650)","v":1},null,null,null,null,{"$f":"IF(W646=\"\",\"\",IFERROR(R646*AB646*VLOOKUP(W646,$BA$626:$BD$632,4),0))","v":0},null,null,null,{"$f":"IFERROR(VLOOKUP(W646,$BA$626:$BC$632,3),\"\")","v":"Гкал"},null,null,{"$f":"IFERROR(AG648*VLOOKUP(W648,$BA$626:$BC$632,2),0)+IFERROR(AG646*VLOOKUP(W646,$BA$626:$BC$632,2),0)+IFERROR(AG650*VLOOKUP(W650,$BA$626:$BC$632,2),0)","v":0},null,null,null,null,null,null,null,null,null,null,null,{"$f":"AZ422","v":4}]
[null,null,null,null,null,null,null,null,null,null,null,null,null,null,null,null,null,null,null,null,null,null,null,null,null,null,null,{"$f":"1-AB648-AB650","v":1},null,null,null,null,{"$f":"IF(W647=\"\",\"\",IFERROR(R647*AB647*VLOOKUP(W647,$BA$626:$BD$632,4),0))","v":""},null,null,null,""]
[null,null,null,null,null,null,null,null,null,null,null,null,null,null,null,null,null,null,null,null,null,null,null,null,null,null,null,0,null,null,null,null,{"$f":"IF(W648=\"\",\"\",IFERROR(R646*AB648*VLOOKUP(W648,$BA$626:$BD$632,4),0))","v":""},null,null,null,""]
[null,null,null,null,null,null,null,null,null,null,null,null,null,null,null,null,null,null,null,null,null,null,null,null,null,null,null,null,null,null,null,null,{"$f":"IF(W649=\"\",\"\",IFERROR(R648*AB649*VLOOKUP(W649,$BA$626:$BD$632,4),0))","v":""},null,null,null,""]
[null,null,null,null,null,null,null,null,null,null,null,null,null,null,null,null,null,null,null,null,null,null,null,null,null,null,null,0,null,null,null,null,{"$f":"IF(W650=\"\",\"\",IFERROR(R646*AB650*VLOOKUP(W650,$BA$626:$BD$632,4),0))","v":""},null,null,null,""]
[null,null,null,null,null,null,null,null,null,null,null,null,null,null,null,null,null,null,null,null,null,null,null,null,null,null,null,null,null,null,null,null,{"$f":"IF(W651=\"\",\"\",IFERROR(R649*AB651*VLOOKUP(W651,$BA$626:$BD$632,4),0))","v":""},null,null,null,""]
[null,null,null,null,{"$f":"\"7.2.1.\"&TEXT(AZ652,\"0\")","v":"7.2.1.5"},null,null,"4.1.5",null,"Теплоізоляція або/та заміна трубопроводів системи гарячого водопостачання в неопалювальних приміщеннях",null,null,null,null,null,null,null,null,null,null,{"$f":"R652/($AE$370*1000)","v":{"$error":"#DIV/0!"}},null,"ЦТП",null,null,null,null,{"$f":"IF((1-AB654-AB656)>1,1,1-AB654-AB656)","v":1},null,null,null,null,{"$f":"IF(W652=\"\",\"\",IFERROR(R652*AB652*VLOOKUP(W652,$BA$626:$BD$632,4),0))","v":0},null,null,null,{"$f":"IFERROR(VLOOKUP(W652,$BA$626:$BC$632,3),\"\")","v":"Гкал"},null,null,{"$f":"IFERROR(AG652*VLOOKUP(W652,$BA$626:$BC$632,2),0)+IFERROR(AG654*VLOOKUP(W654,$BA$626:$BC$632,2),0)+IFERROR(AG656*VLOOKUP(W656,$BA$626:$BC$632,2),0)","v":0},null,null,null,null,null,null,null,null,null,null,null,{"$f":"AZ428","v":5}]
[null,null,null,null,null,null,null,null,null,null,null,null,null,null,null,null,null,null,null,null,null,null,null,null,null,null,null,{"$f":"1-AB654-AB656","v":1},null,null,null,null,{"$f":"IF(W653=\"\",\"\",IFERROR(R653*AB653*VLOOKUP(W653,$BA$626:$BD$632,4),0))","v":""},null,null,null,""]
[null,null,null,null,null,null,null,null,null,null,null,null,null,null,null,null,null,null,null,null,null,null,"Природній газ",null,null,null,null,0,null,null,null,null,{"$f":"IF(W654=\"\",\"\",IFERROR(R652*AB654*VLOOKUP(W654,$BA$626:$BD$632,4),0))","v":0},null,null,null,"м³"]
[null,null,null,null,null,null,null,null,null,null,null,null,null,null,null,null,null,null,null,null,null,null,null,null,null,null,null,null,null,null,null,null,{"$f":"IF(W655=\"\",\"\",IFERROR(R654*AB655*VLOOKUP(W655,$BA$626:$BD$632,4),0))","v":""},null,null,null,""]
[null,null,null,null,null,null,null,null,null,null,null,null,null,null,null,null,null,null,null,null,null,null,null,null,null,null,null,0,null,null,null,null,{"$f":"IF(W656=\"\",\"\",IFERROR(R652*AB656*VLOOKUP(W656,$BA$626:$BD$632,4),0))","v":""},null,null,null,""]
[null,null,null,null,null,null,null,null,null,null,null,null,null,null,null,null,null,null,null,null,null,null,null,null,null,null,null,null,null,null,null,null,{"$f":"IF(W657=\"\",\"\",IFERROR(R655*AB657*VLOOKUP(W657,$BA$626:$BD$632,4),0))","v":""},null,null,null,""]
[null,null,null,null,{"$f":"\"7.2.1.\"&TEXT(AZ658,\"0\")","v":"7.2.1.6"},null,null,"4.1.6",null,"Гідравлічне балансування системи опалення шляхом встановлення автоматичних (балансувальних) клапанів",null,null,null,null,null,null,null,null,null,null,{"$f":"R658/($AE$370*1000)","v":{"$error":"#DIV/0!"}},null,"ЦТП",null,null,null,null,{"$f":"IF((1-AB660-AB663)>1,1,1-AB660-AB663)","v":1},null,null,null,null,{"$f":"IF(W658=\"\",\"\",IFERROR(R658*AB658*VLOOKUP(W658,$BA$626:$BD$632,4),0))","v":0},null,null,null,{"$f":"IFERROR(VLOOKUP(W658,$BA$626:$BC$632,3),\"\")","v":"Гкал"},null,null,{"$f":"IFERROR(AG658*VLOOKUP(W658,$BA$626:$BC$632,2),0)+IFERROR(AG660*VLOOKUP(W660,$BA$626:$BC$632,2),0)+IFERROR(AG663*VLOOKUP(W663,$BA$626:$BC$632,2),0)","v":0},null,null,null,null,null,null,null,null,null,null,null,{"$f":"AZ434","v":6}]
[null,null,null,null,null,null,null,null,null,null,null,null,null,null,null,null,null,null,null,null,null,null,null,null,null,null,null,{"$f":"1-AB660-AB662","v":1},null,null,null,null,{"$f":"IF(W659=\"\",\"\",IFERROR(R659*AB659*VLOOKUP(W659,$BA$626:$BD$632,4),0))","v":""},null,null,null,""]
[null,null,null,null,null,null,null,null,null,null,null,null,null,null,null,null,null,null,null,null,null,null,"Природній газ",null,null,null,null,0,null,null,null,null,{"$f":"IF(W660=\"\",\"\",IFERROR(R658*AB660*VLOOKUP(W660,$BA$626:$BD$632,4),0))","v":0},null,null,null,"м³"]
[null,null,null,null,null,null,null,null,null,null,null,null,null,null,null,null,null,null,null,null,null,null,null,null,null,null,null,null,null,null,null,null,{"$f":"IF(W661=\"\",\"\",IFERROR(R660*AB661*VLOOKUP(W661,$BA$626:$BD$632,4),0))","v":""},null,null,null,""]
[null,null,null,null,null,null,null,null,null,null,null,null,null,null,null,null,null,null,null,null,null,null,null,null,null,null,null,null,null,null,null,null,"",null,null,null,""]
[null,null,null,null,null,null,null,null,null,null,null,null,null,null,null,null,null,null,null,null,null,null,null,null,null,null,null,0,null,null,null,null,{"$f":"IF(W663=\"\",\"\",IFERROR(R658*AB663*VLOOKUP(W663,$BA$626:$BD$632,4),0))","v":""},null,null,null,""]
[null,null,null,null,null,null,null,null,null,null,null,null,null,null,null,null,null,null,null,null,null,null,null,null,null,null,null,null,null,null,null,null,{"$f":"IF(W664=\"\",\"\",IFERROR(R662*AB664*VLOOKUP(W664,$BA$626:$BD$632,4),0))","v":""},null,null,null,""]
[null,null,null,null,{"$f":"\"7.2.1.\"&TEXT(AZ665,\"0\")","v":"7.2.1.7"},null,null,"4.1.7",null,"Комплекс робіт із теплоізоляції та улаштування зовнішніх стін ",null,null,null,null,null,null,null,null,null,null,{"$f":"R665/($AE$370*1000)","v":{"$error":"#DIV/0!"}},null,"ЦТП",null,null,null,null,{"$f":"IF((1-AB666-AB668)>1,1,1-AB666-AB668)","v":1},null,null,null,null,{"$f":"IF(W665=\"\",\"\",IFERROR(R665*AB665*VLOOKUP(W665,$BA$626:$BD$632,4),0))","v":0},null,null,null,{"$f":"IFERROR(VLOOKUP(W665,$BA$626:$BC$632,3),\"\")","v":"Гкал"},null,null,{"$f":"IFERROR(AG665*VLOOKUP(W665,$BA$626:$BC$632,2),0)+IFERROR(AG666*VLOOKUP(W666,$BA$626:$BC$632,2),0)+IFERROR(AG668*VLOOKUP(W668,$BA$626:$BC$632,2),0)","v":0},null,null,null,null,null,null,null,null,null,null,null,{"$f":"AZ441","v":7}]
[null,null,null,null,null,null,null,null,null,null,null,null,null,null,null,null,null,null,null,null,null,null,null,null,null,null,null,0,null,null,null,null,{"$f":"IF(W666=\"\",\"\",IFERROR(R665*AB666*VLOOKUP(W666,$BA$626:$BD$632,4),0))","v":""},null,null,null,{"$f":"IFERROR(VLOOKUP(W666,$BA$626:$BC$632,3),\"\")","v":""}]
[null,null,null,null,null,null,null,null,null,null,null,null,null,null,null,null,null,null,null,null,null,null,null,null,null,null,null,null,null,null,null,null,{"$f":"IF(W667=\"\",\"\",IFERROR(R666*AB667*VLOOKUP(W667,$BA$626:$BD$632,4),0))","v":""},null,null,null,""]
[null,null,null,null,null,null,null,null,null,null,null,null,null,null,null,null,null,null,null,null,null,null,null,null,null,null,null,0,null,null,null,null,{"$f":"IF(W668=\"\",\"\",IFERROR(R665*AB668*VLOOKUP(W668,$BA$626:$BD$632,4),0))","v":""},null,null,null,{"$f":"IFERROR(VLOOKUP(W668,$BA$626:$BC$632,3),\"\")","v":""}]
[null,null,null,null,{"$f":"\"7.2.1.\"&TEXT(AZ669,\"0\")","v":"7.2.1.8"},null,null,"4.1.8",null,"Комплекс робіт із теплоізоляції та улаштування опалювальних та неопалювальних горищ (технічних поверхів) та дахів",null,null,null,null,null,null,null,null,null,null,{"$f":"R669/($AE$370*1000)","v":{"$error":"#DIV/0!"}},null,"ЦТП",null,null,null,null,{"$f":"IF((1-AB671-AB674)>1,1,1-AB671-AB674)","v":1},null,null,null,null,{"$f":"IF(W669=\"\",\"\",IFERROR(R669*AB669*VLOOKUP(W669,$BA$626:$BD$632,4),0))","v":0},null,null,null,{"$f":"IFERROR(VLOOKUP(W669,$BA$626:$BC$632,3),\"\")","v":"Гкал"},null,null,{"$f":"IFERROR(AG669*VLOOKUP(W669,$BA$626:$BC$632,2),0)+IFERROR(AG671*VLOOKUP(W671,$BA$626:$BC$632,2),0)+IFERROR(AG674*VLOOKUP(W674,$BA$626:$BC$632,2),0)","v":0},null,null,null,null,null,null,null,null,null,null,null,{"$f":"AZ445","v":8}]
[null,null,null,null,null,null,null,null,null,null,null,null,null,null,null,null,null,null,null,null,null,null,null,null,null,null,null,{"$f":"1-AB671-AB673","v":1},null,null,null,null,{"$f":"IF(W670=\"\",\"\",IFERROR(R670*AB670*VLOOKUP(W670,$BA$626:$BD$632,4),0))","v":""},null,null,null,""]
[null,null,null,null,null,null,null,null,null,null,null,null,null,null,null,null,null,null,null,null,null,null,null,null,null,null,null,0,null,null,null,null,{"$f":"IF(W671=\"\",\"\",IFERROR(R669*AB671*VLOOKUP(W671,$BA$626:$BD$632,4),0))","v":""},null,null,null,""]
[null,null,null,null,null,null,null,null,null,null,null,null,null,null,null,null,null,null,null,null,null,null,null,null,null,null,null,null,null,null,null,null,{"$f":"IF(W672=\"\",\"\",IFERROR(R671*AB672*VLOOKUP(W672,$BA$626:$BD$632,4),0))","v":""},null,null,null,""]
[null,null,null,null,null,null,null,null,null,null,null,null,null,null,null,null,null,null,null,null,null,null,null,null,null,null,null,null,null,null,null,null,"",null,null,null,""]
[null,null,null,null,null,null,null,null,null,null,null,null,null,null,null,null,null,null,null,null,null,null,null,null,null,null,null,0,null,null,null,null,{"$f":"IF(W674=\"\",\"\",IFERROR(R669*AB674*VLOOKUP(W674,$BA$626:$BD$632,4),0))","v":""},null,null,null,""]
[null,null,null,null,null,null,null,null,null,null,null,null,null,null,null,null,null,null,null,null,null,null,null,null,null,null,null,null,null,null,null,null,{"$f":"IF(W675=\"\",\"\",IFERROR(R673*AB675*VLOOKUP(W675,$BA$626:$BD$632,4),0))","v":""},null,null,null,""]
[null,null,null,null,{"$f":"\"7.2.1.\"&TEXT(AZ676,\"0\")","v":"7.2.1.9"},null,null,"4.1.9",null,"Комплекс робіт із теплоізоляції та улаштування плит перекриття підвалу",null,null,null,null,null,null,null,null,null,null,{"$f":"R676/($AE$370*1000)","v":{"$error":"#DIV/0!"}},null,"ЦТП",null,null,null,null,{"$f":"IF((1-AB677-AB679)>1,1,1-AB677-AB679)","v":1},null,null,null,null,{"$f":"IF(W676=\"\",\"\",IFERROR(R676*AB676*VLOOKUP(W676,$BA$626:$BD$632,4),0))","v":0},null,null,null,{"$f":"IFERROR(VLOOKUP(W676,$BA$626:$BC$632,3),\"\")","v":"Гкал"},null,null,{"$f":"IFERROR(AG676*VLOOKUP(W676,$BA$626:$BC$632,2),0)+IFERROR(AG677*VLOOKUP(W677,$BA$626:$BC$632,2),0)+IFERROR(AG679*VLOOKUP(W679,$BA$626:$BC$632,2),0)","v":0},null,null,null,null,null,null,null,null,null,null,null,{"$f":"AZ452","v":9}]
[null,null,null,null,null,null,null,null,null,null,null,null,null,null,null,null,null,null,null,null,null,null,null,null,null,null,null,0,null,null,null,null,{"$f":"IF(W677=\"\",\"\",IFERROR(R676*AB677*VLOOKUP(W677,$BA$626:$BD$632,4),0))","v":""},null,null,null,{"$f":"IFERROR(VLOOKUP(W677,$BA$626:$BC$632,3),\"\")","v":""}]
[null,null,null,null,null,null,null,null,null,null,null,null,null,null,null,null,null,null,null,null,null,null,null,null,null,null,null,null,null,null,null,null,{"$f":"IF(W678=\"\",\"\",IFERROR(R677*AB678*VLOOKUP(W678,$BA$626:$BD$632,4),0))","v":""},null,null,null,""]
[null,null,null,null,null,null,null,null,null,null,null,null,null,null,null,null,null,null,null,null,null,null,null,null,null,null,null,0,null,null,null,null,{"$f":"IF(W679=\"\",\"\",IFERROR(R676*AB679*VLOOKUP(W679,$BA$626:$BD$632,4),0))","v":""},null,null,null,{"$f":"IFERROR(VLOOKUP(W679,$BA$626:$BC$632,3),\"\")","v":""}]
[null,null,null,null,{"$f":"\"7.2.1.\"&TEXT(AZ680,\"0\")","v":"7.2.1.10"},null,null,"4.1.10",null,"Заміна або ремонт зовнішніх дверей або/та облаштування тамбурів зовнішнього входу",null,null,null,null,null,null,null,null,null,null,{"$f":"R680/($AE$370*1000)","v":{"$error":"#DIV/0!"}},null,"ЦТП",null,null,null,null,{"$f":"IF((1-AB682-AB683)>1,1,1-AB682-AB683)","v":1},null,null,null,null,{"$f":"IF(W680=\"\",\"\",IFERROR(R680*AB680*VLOOKUP(W680,$BA$626:$BD$632,4),0))","v":0},null,null,null,{"$f":"IFERROR(VLOOKUP(W680,$BA$626:$BC$632,3),\"\")","v":"Гкал"},null,null,{"$f":"IFERROR(AG680*VLOOKUP(W680,$BA$626:$BC$632,2),0)+IFERROR(AG682*VLOOKUP(W682,$BA$626:$BC$632,2),0)+IFERROR(AG683*VLOOKUP(W683,$BA$626:$BC$632,2),0)","v":0},null,null,null,null,null,null,null,null,null,null,null,{"$f":"AZ456","v":10}]
[null,null,null,null,null,null,null,null,null,null,null,null,null,null,null,null,null,null,null,null,null,null,null,null,null,null,null,{"$f":"1-AB682-AB684","v":1},null,null,null,null,{"$f":"IF(W681=\"\",\"\",IFERROR(R681*AB681*VLOOKUP(W681,$BA$626:$BD$632,4),0))","v":""},null,null,null,""]
[null,null,null,null,null,null,null,null,null,null,null,null,null,null,null,null,null,null,null,null,null,null,"Електроенергія",null,null,null,null,0,null,null,null,null,{"$f":"IF(W682=\"\",\"\",IFERROR(R680*AB682*VLOOKUP(W682,$BA$626:$BD$632,4),0))","v":0},null,null,null,{"$f":"IFERROR(VLOOKUP(W682,$BA$626:$BC$632,3),\"\")","v":"кВт·год"}]
[null,null,null,null,null,null,null,null,null,null,null,null,null,null,null,null,null,null,null,null,null,null,null,null,null,null,null,0,null,null,null,null,{"$f":"IF(W683=\"\",\"\",IFERROR(R680*AB683*VLOOKUP(W683,$BA$626:$BD$632,4),0))","v":""},null,null,null,{"$f":"IFERROR(VLOOKUP(W683,$BA$626:$BC$632,3),\"\")","v":""}]
[null,null,null,null,null,null,null,null,null,null,null,null,null,null,null,null,null,null,null,null,null,null,null,null,null,null,null,null,null,null,null,null,{"$f":"IF(W684=\"\",\"\",IFERROR(R682*AB684*VLOOKUP(W684,$BA$626:$BD$632,4),0))","v":""},null,null,null,""]
[null,null,null,null,{"$f":"\"7.2.1.\"&TEXT(AZ685,\"0\")","v":"7.2.1.11"},null,null,"4.1.11",null,"Заміна або ремонт блоків віконних або/та блоків балконних дверних у приміщеннях (місцях) загального користування будівлі",null,null,null,null,null,null,null,null,null,null,{"$f":"R685/($AE$370*1000)","v":{"$error":"#DIV/0!"}},null,"ЦТП",null,null,null,null,{"$f":"IF((1-AB687-AB690)>1,1,1-AB687-AB690)","v":1},null,null,null,null,{"$f":"IF(W685=\"\",\"\",IFERROR(R685*AB685*VLOOKUP(W685,$BA$626:$BD$632,4),0))","v":0},null,null,null,{"$f":"IFERROR(VLOOKUP(W685,$BA$626:$BC$632,3),\"\")","v":"Гкал"},null,null,{"$f":"IFERROR(AG685*VLOOKUP(W685,$BA$626:$BC$632,2),0)+IFERROR(AG687*VLOOKUP(W687,$BA$626:$BC$632,2),0)+IFERROR(AG690*VLOOKUP(W690,$BA$626:$BC$632,2),0)","v":0},null,null,null,null,null,null,null,null,null,null,null,{"$f":"AZ460","v":11}]
[null,null,null,null,null,null,null,null,null,null,null,null,null,null,null,null,null,null,null,null,null,null,null,null,null,null,null,{"$f":"1-AB687-AB689","v":1},null,null,null,null,{"$f":"IF(W686=\"\",\"\",IFERROR(R686*AB686*VLOOKUP(W686,$BA$626:$BD$632,4),0))","v":""},null,null,null,""]
[null,null,null,null,null,null,null,null,null,null,null,null,null,null,null,null,null,null,null,null,null,null,"Природній газ",null,null,null,null,0,null,null,null,null,{"$f":"IF(W687=\"\",\"\",IFERROR(R685*AB687*VLOOKUP(W687,$BA$626:$BD$632,4),0))","v":0},null,null,null,"м³"]
[null,null,null,null,null,null,null,null,null,null,null,null,null,null,null,null,null,null,null,null,null,null,null,null,null,null,null,null,null,null,null,null,{"$f":"IF(W688=\"\",\"\",IFERROR(R687*AB688*VLOOKUP(W688,$BA$626:$BD$632,4),0))","v":""},null,null,null,""]
[null,null,null,null,null,null,null,null,null,null,null,null,null,null,null,null,null,null,null,null,null,null,null,null,null,null,null,null,null,null,null,null,"",null,null,null,""]
[null,null,null,null,null,null,null,null,null,null,null,null,null,null,null,null,null,null,null,null,null,null,null,null,null,null,null,0,null,null,null,null,{"$f":"IF(W690=\"\",\"\",IFERROR(R685*AB690*VLOOKUP(W690,$BA$626:$BD$632,4),0))","v":""},null,null,null,""]
[null,null,null,null,null,null,null,null,null,null,null,null,null,null,null,null,null,null,null,null,null,null,null,null,null,null,null,null,null,null,null,null,{"$f":"IF(W691=\"\",\"\",IFERROR(R689*AB691*VLOOKUP(W691,$BA$626:$BD$632,4),0))","v":""},null,null,null,""]
[null,null,null,null,{"$f":"\"7.2.1.\"&TEXT(AZ692,\"0\")","v":"7.2.1.11"},null,null,"4.2А.1",null,"Комплекс робіт із теплоізоляції та улаштування опалювальних та неопалювальних горищ (технічних поверхів) та дахів",null,null,null,null,null,null,null,null,null,null,{"$f":"R692/($AE$370*1000)","v":{"$error":"#DIV/0!"}},null,"ЦТП",null,null,null,null,{"$f":"IF((1-AB694-AB697)>1,1,1-AB694-AB697)","v":1},null,null,null,null,{"$f":"IF(W692=\"\",\"\",IFERROR(R692*AB692*VLOOKUP(W692,$BA$626:$BD$632,4),0))","v":0},null,null,null,"Гкал",null,null,{"$f":"IFERROR(AG692*VLOOKUP(W692,$BA$626:$BC$632,2),0)+IFERROR(AG694*VLOOKUP(W694,$BA$626:$BC$632,2),0)+IFERROR(AG697*VLOOKUP(W697,$BA$626:$BC$632,2),0)","v":0},null,null,null,null,null,null,null,null,null,null,null,{"$f":"AZ466","v":11}]
[null,null,null,null,null,null,null,null,null,null,null,null,null,null,null,null,null,null,null,null,null,null,null,null,null,null,null,{"$f":"1-AB694-AB696","v":1},null,null,null,null,{"$f":"IF(W693=\"\",\"\",IFERROR(R693*AB693*VLOOKUP(W693,$BA$626:$BD$632,4),0))","v":""},null,null,null,""]
[null,null,null,null,null,null,null,null,null,null,null,null,null,null,null,null,null,null,null,null,null,null,null,null,null,null,null,0,null,null,null,null,{"$f":"IF(W694=\"\",\"\",IFERROR(R692*AB694*VLOOKUP(W694,$BA$626:$BD$632,4),0))","v":""},null,null,null,""]
[null,null,null,null,null,null,null,null,null,null,null,null,null,null,null,null,null,null,null,null,null,null,null,null,null,null,null,null,null,null,null,null,{"$f":"IF(W695=\"\",\"\",IFERROR(R694*AB695*VLOOKUP(W695,$BA$626:$BD$632,4),0))","v":""},null,null,null,""]
[null,null,null,null,null,null,null,null,null,null,null,null,null,null,null,null,null,null,null,null,null,null,null,null,null,null,null,null,null,null,null,null,"",null,null,null,""]
[null,null,null,null,null,null,null,null,null,null,null,null,null,null,null,null,null,null,null,null,null,null,null,null,null,null,null,0,null,null,null,null,{"$f":"IF(W697=\"\",\"\",IFERROR(R692*AB697*VLOOKUP(W697,$BA$626:$BD$632,4),0))","v":""},null,null,null,""]
[null,null,null,null,null,null,null,null,null,null,null,null,null,null,null,null,null,null,null,null,null,null,null,null,null,null,null,null,null,null,null,null,{"$f":"IF(W698=\"\",\"\",IFERROR(R696*AB698*VLOOKUP(W698,$BA$626:$BD$632,4),0))","v":""},null,null,null,""]
[null,null,null,null,{"$f":"\"7.2.1.\"&TEXT(AZ699,\"0\")","v":"7.2.1.11"},null,null,"4.2А.2",null,"Модернізація системи гарячого водопостачання",null,null,null,null,null,null,null,null,null,null,{"$f":"R699/($AE$370*1000)","v":{"$error":"#DIV/0!"}},null,"ЦТП",null,null,null,null,{"$f":"IF((1-AB700-AB701)>1,1,1-AB700-AB701)","v":1},null,null,null,null,{"$f":"IF(W699=\"\",\"\",IFERROR(R699*AB699*VLOOKUP(W699,$BA$626:$BD$632,4),0))","v":0},null,null,null,{"$f":"IFERROR(VLOOKUP(W699,$BA$626:$BC$632,3),\"\")","v":"Гкал"},null,null,{"$f":"IFERROR(AG699*VLOOKUP(W699,$BA$626:$BC$632,2),0)+IFERROR(AG700*VLOOKUP(W700,$BA$626:$BC$632,2),0)+IFERROR(AG702*VLOOKUP(W702,$BA$626:$BC$632,2),0)","v":0},null,null,null,null,null,null,null,null,null,null,null,{"$f":"AZ473","v":11}]
[null,null,null,null,null,null,null,null,null,null,null,null,null,null,null,null,null,null,null,null,null,null,"Природній газ",null,null,null,null,0,null,null,null,null,{"$f":"IF(W700=\"\",\"\",IFERROR(R699*AB700*VLOOKUP(W700,$BA$626:$BD$632,4),0))","v":0},null,null,null,{"$f":"IFERROR(VLOOKUP(W700,$BA$626:$BC$632,3),\"\")","v":"м³"}]
[null,null,null,null,null,null,null,null,null,null,null,null,null,null,null,null,null,null,null,null,null,null,null,null,null,null,null,0,null,null,null,null,{"$f":"IF(W701=\"\",\"\",IFERROR(R699*AB701*VLOOKUP(W701,$BA$626:$BD$632,4),0))","v":""},null,null,null,{"$f":"IFERROR(VLOOKUP(W701,$BA$626:$BC$632,3),\"\")","v":""}]
[null,null,null,null,{"$f":"\"7.2.1.\"&TEXT(AZ702,\"0\")","v":"7.2.1.11"},null,null,"4.2А.3",null,"Встановлення вузлів розподільного обліку теплової енергії на потреби опалення або/та приладів - розподілювачів теплової енергії у квартирах ",null,null,null,null,null,null,null,null,null,null,{"$f":"R702/($AE$370*1000)","v":{"$error":"#DIV/0!"}},null,"ЦТП",null,null,null,null,{"$f":"IF((1-AB705-AB707)>1,1,1-AB705-AB707)","v":1},null,null,null,null,{"$f":"IF(W702=\"\",\"\",IFERROR(R702*AB702*VLOOKUP(W702,$BA$626:$BD$632,4),0))","v":0},null,null,null,{"$f":"IFERROR(VLOOKUP(W702,$BA$626:$BC$632,3),\"\")","v":"Гкал"},null,null,{"$f":"IFERROR(AG702*VLOOKUP(W702,$BA$626:$BC$632,2),0)+IFERROR(AG705*VLOOKUP(W705,$BA$626:$BC$632,2),0)+IFERROR(AG707*VLOOKUP(W707,$BA$626:$BC$632,2),0)","v":0},null,null,null,null,null,null,null,null,null,null,null,{"$f":"AZ475","v":11}]
[null,null,null,null,null,null,null,null,null,null,null,null,null,null,null,null,null,null,null,null,null,null,null,null,null,null,null,{"$f":"1-AB704-AB706","v":0},null,null,null,null,{"$f":"IF(W703=\"\",\"\",IFERROR(R703*AB703*VLOOKUP(W703,$BA$626:$BD$632,4),0))","v":""},null,null,null,""]
[null,null,null,null,null,null,null,null,null,null,null,null,null,null,null,null,null,null,null,null,null,null,null,null,null,null,null,1,null,null,null,null,"",null,null,null,""]
[null,null,null,null,null,null,null,null,null,null,null,null,null,null,null,null,null,null,null,null,null,null,"Природній газ",null,null,null,null,0,null,null,null,null,{"$f":"IF(W705=\"\",\"\",IFERROR(R702*AB705*VLOOKUP(W705,$BA$626:$BD$632,4),0))","v":0},null,null,null,"м³"]
[null,null,null,null,null,null,null,null,null,null,null,null,null,null,null,null,null,null,null,null,null,null,null,null,null,null,null,null,null,null,null,null,{"$f":"IF(W706=\"\",\"\",IFERROR(R705*AB706*VLOOKUP(W706,$BA$626:$BD$632,4),0))","v":""},null,null,null,""]
[null,null,null,null,null,null,null,null,null,null,null,null,null,null,null,null,null,null,null,null,null,null,null,null,null,null,null,0,null,null,null,null,{"$f":"IF(W707=\"\",\"\",IFERROR(R702*AB707*VLOOKUP(W707,$BA$626:$BD$632,4),0))","v":""},null,null,null,""]
[null,null,null,null,null,null,null,null,null,null,null,null,null,null,null,null,null,null,null,null,null,null,null,null,null,null,null,null,null,null,null,null,{"$f":"IF(W708=\"\",\"\",IFERROR(R706*AB708*VLOOKUP(W708,$BA$626:$BD$632,4),0))","v":""},null,null,null,""]
[null,null,null,null,null,null,null,null,null,null,null,null,null,null,null,null,null,null,null,null,null,null,null,null,null,null,null,null,null,null,null,null,"",null,null,null,""]
[null,null,null,null,{"$f":"\"7.2.1.\"&TEXT(AZ710,\"0\")","v":"7.2.1.11"},null,null,"4.2А.4",null,"Встановлення автоматичних регуляторів температури повітря у приміщеннях на опалювальних приладах водяної системи опалення у квартирах або/та у приміщеннях (місцях) загального користування будівлі",null,null,null,null,null,null,null,null,null,null,{"$f":"R710/($AE$370*1000)","v":{"$error":"#DIV/0!"}},null,"ЦТП",null,null,null,null,{"$f":"IF((1-AB714-AB718)>1,1,1-AB714-AB718)","v":1},null,null,null,null,{"$f":"IF(W710=\"\",\"\",IFERROR(R710*AB710*VLOOKUP(W710,$BA$626:$BD$632,4),0))","v":0},null,null,null,{"$f":"IFERROR(VLOOKUP(W710,$BA$626:$BC$632,3),\"\")","v":"Гкал"},null,null,{"$f":"IFERROR(AG710*VLOOKUP(W710,$BA$626:$BC$632,2),0)+IFERROR(AG714*VLOOKUP(W714,$BA$626:$BC$632,2),0)+IFERROR(AG718*VLOOKUP(W718,$BA$626:$BC$632,2),0)","v":0},null,null,null,null,null,null,null,null,null,null,null,{"$f":"AZ482","v":11}]
[null,null,null,null,null,null,null,null,null,null,null,null,null,null,null,null,null,null,null,null,null,null,null,null,null,null,null,{"$f":"1-AB712-AB714","v":1},null,null,null,null,"",null,null,null,""]
[null,null,null,null,null,null,null,null,null,null,null,null,null,null,null,null,null,null,null,null,null,null,null,null,null,null,null,0,null,null,null,null,"",null,null,null,""]
[null,null,null,null,null,null,null,null,null,null,null,null,null,null,null,null,null,null,null,null,null,null,null,null,null,null,null,1,null,null,null,null,"",null,null,null,""]
[null,null,null,null,null,null,null,null,null,null,null,null,null,null,null,null,null,null,null,null,null,null,"Природній газ",null,null,null,null,0,null,null,null,null,{"$f":"IF(W714=\"\",\"\",IFERROR(R710*AB714*VLOOKUP(W714,$BA$626:$BD$632,4),0))","v":0},null,null,null,"м³"]
[null,null,null,null,null,null,null,null,null,null,null,null,null,null,null,null,null,null,null,null,null,null,null,null,null,null,null,null,null,null,null,null,{"$f":"IF(W715=\"\",\"\",IFERROR(R714*AB715*VLOOKUP(W715,$BA$626:$BD$632,4),0))","v":""},null,null,null,""]
[null,null,null,null,null,null,null,null,null,null,null,null,null,null,null,null,null,null,null,null,null,null,null,null,null,null,null,null,null,null,null,null,"",null,null,null,""]
[null,null,null,null,null,null,null,null,null,null,null,null,null,null,null,null,null,null,null,null,null,null,null,null,null,null,null,null,null,null,null,null,"",null,null,null,""]
[null,null,null,null,null,null,null,null,null,null,null,null,null,null,null,null,null,null,null,null,null,null,null,null,null,null,null,0,null,null,null,null,{"$f":"IF(W718=\"\",\"\",IFERROR(R710*AB718*VLOOKUP(W718,$BA$626:$BD$632,4),0))","v":""},null,null,null,""]
[null,null,null,null,null,null,null,null,null,null,null,null,null,null,null,null,null,null,null,null,null,null,null,null,null,null,null,null,null,null,null,null,{"$f":"IF(W719=\"\",\"\",IFERROR(R717*AB719*VLOOKUP(W719,$BA$626:$BD$632,4),0))","v":""},null,null,null,""]
[null,null,null,null,null,null,null,null,null,null,null,null,null,null,null,null,null,null,null,null,null,null,null,null,null,null,null,null,null,null,null,null,"",null,null,null,""]
[null,null,null,null,null,null,null,null,null,null,null,null,null,null,null,null,null,null,null,null,null,null,null,null,null,null,null,null,null,null,null,null,"",null,null,null,""]
[null,null,null,null,{"$f":"\"7.2.1.\"&TEXT(AZ722,\"0\")","v":"7.2.1.11"},null,null,"4.2А.5",null,"Заміна або/та теплоізоляція трубопроводів системи опалення або/та приладів водяної системи опалення у приміщеннях (місцях) загального користування будівлі",null,null,null,null,null,null,null,null,null,null,{"$f":"R722/($AE$370*1000)","v":{"$error":"#DIV/0!"}},null,"ЦТП",null,null,null,null,{"$f":"IF((1-AB725-AB729)>1,1,1-AB725-AB729)","v":1},null,null,null,null,{"$f":"IF(W722=\"\",\"\",IFERROR(R722*AB722*VLOOKUP(W722,$BA$626:$BD$632,4),0))","v":0},null,null,null,{"$f":"IFERROR(VLOOKUP(W722,$BA$626:$BC$632,3),\"\")","v":"Гкал"},null,null,{"$f":"IFERROR(AG722*VLOOKUP(W722,$BA$626:$BC$632,2),0)+IFERROR(AG725*VLOOKUP(W725,$BA$626:$BC$632,2),0)+IFERROR(AG729*VLOOKUP(W729,$BA$626:$BC$632,2),0)","v":0},null,null,null,null,null,null,null,null,null,null,null,{"$f":"AZ493","v":11}]
[null,null,null,null,null,null,null,null,null,null,null,null,null,null,null,null,null,null,null,null,null,null,null,null,null,null,null,{"$f":"1-AB724-AB726","v":0},null,null,null,null,{"$f":"IF(W723=\"\",\"\",IFERROR(R723*AB723*VLOOKUP(W723,$BA$626:$BD$632,4),0))","v":""},null,null,null,""]
[null,null,null,null,null,null,null,null,null,null,null,null,null,null,null,null,null,null,null,null,null,null,null,null,null,null,null,1,null,null,null,null,"",null,null,null,""]
[null,null,null,null,null,null,null,null,null,null,null,null,null,null,null,null,null,null,null,null,null,null,"Природній газ",null,null,null,null,0,null,null,null,null,{"$f":"IF(W725=\"\",\"\",IFERROR(R722*AB725*VLOOKUP(W725,$BA$626:$BD$632,4),0))","v":0},null,null,null,"м³",null,null,null,null,null,null,null,null,null,null,null,null,null,null,{"$f":"AZ501","v":11}]
[null,null,null,null,null,null,null,null,null,null,null,null,null,null,null,null,null,null,null,null,null,null,null,null,null,null,null,null,null,null,null,null,{"$f":"IF(W726=\"\",\"\",IFERROR(R725*AB726*VLOOKUP(W726,$BA$626:$BD$632,4),0))","v":""},null,null,null,""]
[null,null,null,null,null,null,null,null,null,null,null,null,null,null,null,null,null,null,null,null,null,null,null,null,null,null,null,null,null,null,null,null,"",null,null,null,""]
[null,null,null,null,null,null,null,null,null,null,null,null,null,null,null,null,null,null,null,null,null,null,null,null,null,null,null,null,null,null,null,null,"",null,null,null,""]
[null,null,null,null,null,null,null,null,null,null,null,null,null,null,null,null,null,null,null,null,null,null,null,null,null,null,null,0,null,null,null,null,{"$f":"IF(W729=\"\",\"\",IFERROR(R722*AB729*VLOOKUP(W729,$BA$626:$BD$632,4),0))","v":""},null,null,null,""]
[null,null,null,null,null,null,null,null,null,null,null,null,null,null,null,null,null,null,null,null,null,null,null,null,null,null,null,null,null,null,null,null,{"$f":"IF(W730=\"\",\"\",IFERROR(R728*AB730*VLOOKUP(W730,$BA$626:$BD$632,4),0))","v":""},null,null,null,""]
[null,null,null,null,null,null,null,null,null,null,null,null,null,null,null,null,null,null,null,null,null,null,null,null,null,null,null,null,null,null,null,null,"",null,null,null,""]
[null,null,null,null,{"$f":"\"7.2.1.\"&TEXT(AZ732,\"0\")","v":"7.2.1.11"},null,null,"4.2А.6",null,"Заміна або ремонт блоків віконних або/та блоків балконних дверних у приміщеннях (місцях) загального користування будівлі ",null,null,null,null,null,null,null,null,null,null,{"$f":"R732/($AE$370*1000)","v":{"$error":"#DIV/0!"}},null,"ЦТП",null,null,null,null,{"$f":"IF((1-AB734-AB737)>1,1,1-AB734-AB737)","v":1},null,null,null,null,{"$f":"IF(W732=\"\",\"\",IFERROR(R732*AB732*VLOOKUP(W732,$BA$626:$BD$632,4),0))","v":0},null,null,null,{"$f":"IFERROR(VLOOKUP(W732,$BA$626:$BC$632,3),\"\")","v":"Гкал"},null,null,{"$f":"IFERROR(AG732*VLOOKUP(W732,$BA$626:$BC$632,2),0)+IFERROR(AG734*VLOOKUP(W734,$BA$626:$BC$632,2),0)+IFERROR(AG737*VLOOKUP(W737,$BA$626:$BC$632,2),0)","v":0},null,null,null,null,null,null,null,null,null,null,null,{"$f":"AZ501","v":11}]
[null,null,null,null,null,null,null,null,null,null,null,null,null,null,null,null,null,null,null,null,null,null,null,null,null,null,null,{"$f":"1-AB734-AB736","v":1},null,null,null,null,{"$f":"IF(W733=\"\",\"\",IFERROR(R733*AB733*VLOOKUP(W733,$BA$626:$BD$632,4),0))","v":""},null,null,null,""]
[null,null,null,null,null,null,null,null,null,null,null,null,null,null,null,null,null,null,null,null,null,null,"Природній газ",null,null,null,null,0,null,null,null,null,{"$f":"IF(W734=\"\",\"\",IFERROR(R732*AB734*VLOOKUP(W734,$BA$626:$BD$632,4),0))","v":0},null,null,null,"м³"]
[null,null,null,null,null,null,null,null,null,null,null,null,null,null,null,null,null,null,null,null,null,null,null,null,null,null,null,null,null,null,null,null,{"$f":"IF(W735=\"\",\"\",IFERROR(R734*AB735*VLOOKUP(W735,$BA$626:$BD$632,4),0))","v":""},null,null,null,""]
[null,null,null,null,null,null,null,null,null,null,null,null,null,null,null,null,null,null,null,null,null,null,null,null,null,null,null,null,null,null,null,null,"",null,null,null,""]
[null,null,null,null,null,null,null,null,null,null,null,null,null,null,null,null,null,null,null,null,null,null,null,null,null,null,null,0,null,null,null,null,{"$f":"IF(W737=\"\",\"\",IFERROR(R732*AB737*VLOOKUP(W737,$BA$626:$BD$632,4),0))","v":""},null,null,null,""]
[null,null,null,null,null,null,null,null,null,null,null,null,null,null,null,null,null,null,null,null,null,null,null,null,null,null,null,null,null,null,null,null,{"$f":"IF(W738=\"\",\"\",IFERROR(R736*AB738*VLOOKUP(W738,$BA$626:$BD$632,4),0))","v":""},null,null,null,""]
[null,null,null,null,{"$f":"\"7.2.1.\"&TEXT(AZ739,\"0\")","v":"7.2.1.11"},null,null,"4.2А.7",null,"Заміна або ремонт зовнішніх дверей або/та облаштування тамбурів зовнішнього входу",null,null,null,null,null,null,null,null,null,null,{"$f":"R739/($AE$370*1000)","v":{"$error":"#DIV/0!"}},null,"ЦТП",null,null,null,null,{"$f":"IF((1-AB741-AB742)>1,1,1-AB741-AB742)","v":1},null,null,null,null,{"$f":"IF(W739=\"\",\"\",IFERROR(R739*AB739*VLOOKUP(W739,$BA$626:$BD$632,4),0))","v":0},null,null,null,{"$f":"IFERROR(VLOOKUP(W739,$BA$626:$BC$632,3),\"\")","v":"Гкал"},null,null,{"$f":"IFERROR(AG739*VLOOKUP(W739,$BA$626:$BC$632,2),0)+IFERROR(AG741*VLOOKUP(W741,$BA$626:$BC$632,2),0)+IFERROR(AG742*VLOOKUP(W742,$BA$626:$BC$632,2),0)","v":0},null,null,null,null,null,null,null,null,null,null,null,{"$f":"AZ507","v":11}]
[null,null,null,null,null,null,null,null,null,null,null,null,null,null,null,null,null,null,null,null,null,null,null,null,null,null,null,{"$f":"1-AB741-AB743","v":1},null,null,null,null,{"$f":"IF(W740=\"\",\"\",IFERROR(R740*AB740*VLOOKUP(W740,$BA$626:$BD$632,4),0))","v":""},null,null,null,""]
[null,null,null,null,null,null,null,null,null,null,null,null,null,null,null,null,null,null,null,null,null,null,"Природній газ",null,null,null,null,0,null,null,null,null,{"$f":"IF(W741=\"\",\"\",IFERROR(R739*AB741*VLOOKUP(W741,$BA$626:$BD$632,4),0))","v":0},null,null,null,{"$f":"IFERROR(VLOOKUP(W741,$BA$626:$BC$632,3),\"\")","v":"м³"}]
[null,null,null,null,null,null,null,null,null,null,null,null,null,null,null,null,null,null,null,null,null,null,null,null,null,null,null,0,null,null,null,null,{"$f":"IF(W742=\"\",\"\",IFERROR(R739*AB742*VLOOKUP(W742,$BA$626:$BD$632,4),0))","v":""},null,null,null,{"$f":"IFERROR(VLOOKUP(W742,$BA$626:$BC$632,3),\"\")","v":""}]
[null,null,null,null,null,null,null,null,null,null,null,null,null,null,null,null,null,null,null,null,null,null,null,null,null,null,null,null,null,null,null,null,{"$f":"IF(W743=\"\",\"\",IFERROR(R741*AB743*VLOOKUP(W743,$BA$626:$BD$632,4),0))","v":""},null,null,null,""]
[null,null,null,null,{"$f":"\"7.2.1.\"&TEXT(AZ744,\"0\")","v":"7.2.1.11"},null,null,"4.2А.8",null,"Комплекс робіт із модернізації та облаштування системи освітлення у приміщеннях (місцях) загального користування будівлі ",null,null,null,null,null,null,null,null,null,null,{"$f":"R744/($AE$370*1000)","v":{"$error":"#DIV/0!"}},null,"Електроенергія",null,null,null,null,{"$f":"IF((1-AB746-AB749)>1,1,1-AB746-AB749)","v":1},null,null,null,null,{"$f":"IF(W744=\"\",\"\",IFERROR(R744*AB744*VLOOKUP(W744,$BA$626:$BD$632,4),0))","v":0},null,null,null,{"$f":"IFERROR(VLOOKUP(W744,$BA$626:$BC$632,3),\"\")","v":"кВт·год"},null,null,{"$f":"IFERROR(AG744*VLOOKUP(W744,$BA$626:$BC$632,2),0)+IFERROR(AG746*VLOOKUP(W746,$BA$626:$BC$632,2),0)+IFERROR(AG749*VLOOKUP(W749,$BA$626:$BC$632,2),0)","v":0},null,null,null,null,null,null,null,null,null,null,null,{"$f":"AZ511","v":11}]
[null,null,null,null,null,null,null,null,null,null,null,null,null,null,null,null,null,null,null,null,null,null,null,null,null,null,null,{"$f":"1-AB746-AB748","v":1},null,null,null,null,{"$f":"IF(W745=\"\",\"\",IFERROR(R745*AB745*VLOOKUP(W745,$BA$626:$BD$632,4),0))","v":""},null,null,null,""]
[null,null,null,null,null,null,null,null,null,null,null,null,null,null,null,null,null,null,null,null,null,null,null,null,null,null,null,0,null,null,null,null,{"$f":"IF(W746=\"\",\"\",IFERROR(R744*AB746*VLOOKUP(W746,$BA$626:$BD$632,4),0))","v":""},null,null,null,""]
[null,null,null,null,null,null,null,null,null,null,null,null,null,null,null,null,null,null,null,null,null,null,null,null,null,null,null,null,null,null,null,null,{"$f":"IF(W747=\"\",\"\",IFERROR(R746*AB747*VLOOKUP(W747,$BA$626:$BD$632,4),0))","v":""},null,null,null,""]
[null,null,null,null,null,null,null,null,null,null,null,null,null,null,null,null,null,null,null,null,null,null,null,null,null,null,null,null,null,null,null,null,"",null,null,null,""]
[null,null,null,null,null,null,null,null,null,null,null,null,null,null,null,null,null,null,null,null,null,null,null,null,null,null,null,0,null,null,null,null,{"$f":"IF(W749=\"\",\"\",IFERROR(R744*AB749*VLOOKUP(W749,$BA$626:$BD$632,4),0))","v":""},null,null,null,""]
[null,null,null,null,null,null,null,null,null,null,null,null,null,null,null,null,null,null,null,null,null,null,null,null,null,null,null,null,null,null,null,null,{"$f":"IF(W750=\"\",\"\",IFERROR(R748*AB750*VLOOKUP(W750,$BA$626:$BD$632,4),0))","v":""},null,null,null,""]
[null,null,null,null,{"$f":"\"7.2.1.\"&TEXT(AZ751,\"0\")","v":"7.2.1.12"},null,null,"4.2Б.1",null,"Комплекс робіт із теплоізоляції та улаштування зовнішніх стін нижче рівня ґрунту",null,null,null,null,null,null,null,null,null,null,{"$f":"R751/($AE$370*1000)","v":{"$error":"#DIV/0!"}},null,"ЦТП",null,null,null,null,{"$f":"IF((1-AB753-AB754)>1,1,1-AB753-AB754)","v":1},null,null,null,null,{"$f":"IF(W751=\"\",\"\",IFERROR(R751*AB751*VLOOKUP(W751,$BA$626:$BD$632,4),0))","v":0},null,null,null,{"$f":"IFERROR(VLOOKUP(W751,$BA$626:$BC$632,3),\"\")","v":"Гкал"},null,null,{"$f":"IFERROR(AG751*VLOOKUP(W751,$BA$626:$BC$632,2),0)+IFERROR(AG753*VLOOKUP(W753,$BA$626:$BC$632,2),0)+IFERROR(AG754*VLOOKUP(W754,$BA$626:$BC$632,2),0)","v":0},null,null,null,null,null,null,null,null,null,null,null,{"$f":"AZ518","v":12}]
[null,null,null,null,null,null,null,null,null,null,null,null,null,null,null,null,null,null,null,null,null,null,null,null,null,null,null,{"$f":"1-AB753-AB755","v":1},null,null,null,null,{"$f":"IF(W752=\"\",\"\",IFERROR(R752*AB752*VLOOKUP(W752,$BA$626:$BD$632,4),0))","v":""},null,null,null,""]
[null,null,null,null,null,null,null,null,null,null,null,null,null,null,null,null,null,null,null,null,null,null,"Природній газ",null,null,null,null,0,null,null,null,null,{"$f":"IF(W753=\"\",\"\",IFERROR(R751*AB753*VLOOKUP(W753,$BA$626:$BD$632,4),0))","v":0},null,null,null,{"$f":"IFERROR(VLOOKUP(W753,$BA$626:$BC$632,3),\"\")","v":"м³"}]
[null,null,null,null,null,null,null,null,null,null,null,null,null,null,null,null,null,null,null,null,null,null,null,null,null,null,null,0,null,null,null,null,{"$f":"IF(W754=\"\",\"\",IFERROR(R751*AB754*VLOOKUP(W754,$BA$626:$BD$632,4),0))","v":""},null,null,null,{"$f":"IFERROR(VLOOKUP(W754,$BA$626:$BC$632,3),\"\")","v":""}]
[null,null,null,null,null,null,null,null,null,null,null,null,null,null,null,null,null,null,null,null,null,null,null,null,null,null,null,null,null,null,null,null,{"$f":"IF(W755=\"\",\"\",IFERROR(R753*AB755*VLOOKUP(W755,$BA$626:$BD$632,4),0))","v":""},null,null,null,""]
[null,null,null,null,{"$f":"\"7.2.1.\"&TEXT(AZ756,\"0\")","v":"7.2.1.13"},null,null,"4.2Б.2",null,"Модернізація системи гарячого водопостачання",null,null,null,null,null,null,null,null,null,null,{"$f":"R756/($AE$370*1000)","v":{"$error":"#DIV/0!"}},null,"ЦТП",null,null,null,null,{"$f":"IF((1-AB757-AB758)>1,1,1-AB757-AB758)","v":1},null,null,null,null,{"$f":"IF(W756=\"\",\"\",IFERROR(R756*AB756*VLOOKUP(W756,$BA$626:$BD$632,4),0))","v":0},null,null,null,{"$f":"IFERROR(VLOOKUP(W756,$BA$626:$BC$632,3),\"\")","v":"Гкал"},null,null,{"$f":"IFERROR(AG756*VLOOKUP(W756,$BA$626:$BC$632,2),0)+IFERROR(AG757*VLOOKUP(W757,$BA$626:$BC$632,2),0)+IFERROR(AG758*VLOOKUP(W758,$BA$626:$BC$632,2),0)","v":0},null,null,null,null,null,null,null,null,null,null,null,{"$f":"AZ522","v":13}]
[null,null,null,null,null,null,null,null,null,null,null,null,null,null,null,null,null,null,null,null,null,null,"Природній газ",null,null,null,null,0,null,null,null,null,{"$f":"IF(W757=\"\",\"\",IFERROR(R756*AB757*VLOOKUP(W757,$BA$626:$BD$632,4),0))","v":0},null,null,null,{"$f":"IFERROR(VLOOKUP(W757,$BA$626:$BC$632,3),\"\")","v":"м³"}]
[null,null,null,null,null,null,null,null,null,null,null,null,null,null,null,null,null,null,null,null,null,null,null,null,null,null,null,0,null,null,null,null,{"$f":"IF(W758=\"\",\"\",IFERROR(R756*AB758*VLOOKUP(W758,$BA$626:$BD$632,4),0))","v":""},null,null,null,{"$f":"IFERROR(VLOOKUP(W758,$BA$626:$BC$632,3),\"\")","v":""}]
[null,null,null,null,{"$f":"\"7.2.1.\"&TEXT(AZ759,\"0\")","v":"7.2.1.14"},null,null,"4.2Б.3",null,"Заміна або/та теплоізоляція трубопроводів системи опалення або/та приладів водяної системи опалення у приміщеннях (місцях) загального користування будівлі",null,null,null,null,null,null,null,null,null,null,{"$f":"R759/($AE$370*1000)","v":{"$error":"#DIV/0!"}},null,"ЦТП",null,null,null,null,{"$f":"IF((1-AB762-AB765)>1,1,1-AB762-AB765)","v":1},null,null,null,null,{"$f":"IF(W759=\"\",\"\",IFERROR(R759*AB759*VLOOKUP(W759,$BA$626:$BD$632,4),0))","v":0},null,null,null,{"$f":"IFERROR(VLOOKUP(W759,$BA$626:$BC$632,3),\"\")","v":"Гкал"},null,null,{"$f":"IFERROR(AG759*VLOOKUP(W759,$BA$626:$BC$632,2),0)+IFERROR(AG762*VLOOKUP(W762,$BA$626:$BC$632,2),0)+IFERROR(AG765*VLOOKUP(W765,$BA$626:$BC$632,2),0)","v":0},null,null,null,null,null,null,null,null,null,null,null,{"$f":"AZ524","v":14}]
[null,null,null,null,null,null,null,null,null,null,null,null,null,null,null,null,null,null,null,null,null,null,null,null,null,null,null,{"$f":"1-AB761-AB763","v":0},null,null,null,null,{"$f":"IF(W760=\"\",\"\",IFERROR(R760*AB760*VLOOKUP(W760,$BA$626:$BD$632,4),0))","v":""},null,null,null,""]
[null,null,null,null,null,null,null,null,null,null,null,null,null,null,null,null,null,null,null,null,null,null,null,null,null,null,null,1,null,null,null,null,"",null,null,null,""]
[null,null,null,null,null,null,null,null,null,null,null,null,null,null,null,null,null,null,null,null,null,null,"Природній газ",null,null,null,null,0,null,null,null,null,{"$f":"IF(W762=\"\",\"\",IFERROR(R759*AB762*VLOOKUP(W762,$BA$626:$BD$632,4),0))","v":0},null,null,null,"м³"]
[null,null,null,null,null,null,null,null,null,null,null,null,null,null,null,null,null,null,null,null,null,null,null,null,null,null,null,null,null,null,null,null,{"$f":"IF(W763=\"\",\"\",IFERROR(R762*AB763*VLOOKUP(W763,$BA$626:$BD$632,4),0))","v":""},null,null,null,""]
[null,null,null,null,null,null,null,null,null,null,null,null,null,null,null,null,null,null,null,null,null,null,null,null,null,null,null,null,null,null,null,null,"",null,null,null,""]
[null,null,null,null,null,null,null,null,null,null,null,null,null,null,null,null,null,null,null,null,null,null,null,null,null,null,null,0,null,null,null,null,{"$f":"IF(W765=\"\",\"\",IFERROR(R759*AB765*VLOOKUP(W765,$BA$626:$BD$632,4),0))","v":""},null,null,null,""]
[null,null,null,null,null,null,null,null,null,null,null,null,null,null,null,null,null,null,null,null,null,null,null,null,null,null,null,null,null,null,null,null,{"$f":"IF(W766=\"\",\"\",IFERROR(R764*AB766*VLOOKUP(W766,$BA$626:$BD$632,4),0))","v":""},null,null,null,""]
[null,null,null,null,null,null,null,null,null,null,null,null,null,null,null,null,null,null,null,null,null,null,null,null,null,null,null,null,null,null,null,null,"",null,null,null,""]
[null,null,null,null,{"$f":"\"7.2.1.\"&TEXT(AZ768,\"0\")","v":"7.2.1.15"},null,null,"4.2Б.4",null,"Заміна або/та теплоізоляція трубопроводів системи опалення або/та приладів водяної системи опалення у квартирах",null,null,null,null,null,null,null,null,null,null,{"$f":"R768/($AE$370*1000)","v":{"$error":"#DIV/0!"}},null,"ЦТП",null,null,null,null,{"$f":"IF((1-AB770-AB773)>1,1,1-AB770-AB773)","v":1},null,null,null,null,{"$f":"IF(W768=\"\",\"\",IFERROR(R768*AB768*VLOOKUP(W768,$BA$626:$BD$632,4),0))","v":0},null,null,null,{"$f":"IFERROR(VLOOKUP(W768,$BA$626:$BC$632,3),\"\")","v":"Гкал"},null,null,{"$f":"IFERROR(AG768*VLOOKUP(W768,$BA$626:$BC$632,2),0)+IFERROR(AG770*VLOOKUP(W770,$BA$626:$BC$632,2),0)+IFERROR(AG773*VLOOKUP(W773,$BA$626:$BC$632,2),0)","v":0},null,null,null,null,null,null,null,null,null,null,null,{"$f":"AZ532","v":15}]
[null,null,null,null,null,null,null,null,null,null,null,null,null,null,null,null,null,null,null,null,null,null,null,null,null,null,null,{"$f":"1-AB770-AB772","v":1},null,null,null,null,{"$f":"IF(W769=\"\",\"\",IFERROR(R769*AB769*VLOOKUP(W769,$BA$626:$BD$632,4),0))","v":""},null,null,null,""]
[null,null,null,null,null,null,null,null,null,null,null,null,null,null,null,null,null,null,null,null,null,null,null,null,null,null,null,0,null,null,null,null,{"$f":"IF(W770=\"\",\"\",IFERROR(R768*AB770*VLOOKUP(W770,$BA$626:$BD$632,4),0))","v":""},null,null,null,""]
[null,null,null,null,null,null,null,null,null,null,null,null,null,null,null,null,null,null,null,null,null,null,null,null,null,null,null,null,null,null,null,null,{"$f":"IF(W771=\"\",\"\",IFERROR(R770*AB771*VLOOKUP(W771,$BA$626:$BD$632,4),0))","v":""},null,null,null,""]
[null,null,null,null,null,null,null,null,null,null,null,null,null,null,null,null,null,null,null,null,null,null,null,null,null,null,null,null,null,null,null,null,"",null,null,null,""]
[null,null,null,null,null,null,null,null,null,null,null,null,null,null,null,null,null,null,null,null,null,null,null,null,null,null,null,0,null,null,null,null,{"$f":"IF(W773=\"\",\"\",IFERROR(R768*AB773*VLOOKUP(W773,$BA$626:$BD$632,4),0))","v":""},null,null,null,""]
[null,null,null,null,null,null,null,null,null,null,null,null,null,null,null,null,null,null,null,null,null,null,null,null,null,null,null,null,null,null,null,null,{"$f":"IF(W774=\"\",\"\",IFERROR(R772*AB774*VLOOKUP(W774,$BA$626:$BD$632,4),0))","v":""},null,null,null,""]
[null,null,null,null,{"$f":"\"7.2.1.\"&TEXT(AZ775,\"0\")","v":"7.2.1.16"},null,null,"4.2Б.5",null,"Встановлення вузлів розподільного обліку теплової енергії на потреби опалення або/та приладів - розподілювачів теплової енергії у квартирах",null,null,null,null,null,null,null,null,null,null,{"$f":"R775/($AE$370*1000)","v":{"$error":"#DIV/0!"}},null,"ЦТП",null,null,null,null,{"$f":"IF((1-AB778-AB780)>1,1,1-AB778-AB780)","v":1},null,null,null,null,{"$f":"IF(W775=\"\",\"\",IFERROR(R775*AB775*VLOOKUP(W775,$BA$626:$BD$632,4),0))","v":0},null,null,null,{"$f":"IFERROR(VLOOKUP(W775,$BA$626:$BC$632,3),\"\")","v":"Гкал"},null,null,{"$f":"IFERROR(AG775*VLOOKUP(W775,$BA$626:$BC$632,2),0)+IFERROR(AG778*VLOOKUP(W778,$BA$626:$BC$632,2),0)+IFERROR(AG780*VLOOKUP(W780,$BA$626:$BC$632,2),0)","v":0},null,null,null,null,null,null,null,null,null,null,null,{"$f":"AZ538","v":16}]
[null,null,null,null,null,null,null,null,null,null,null,null,null,null,null,null,null,null,null,null,null,null,null,null,null,null,null,{"$f":"1-AB777-AB779","v":0},null,null,null,null,{"$f":"IF(W776=\"\",\"\",IFERROR(R776*AB776*VLOOKUP(W776,$BA$626:$BD$632,4),0))","v":""},null,null,null,""]
[null,null,null,null,null,null,null,null,null,null,null,null,null,null,null,null,null,null,null,null,null,null,null,null,null,null,null,1,null,null,null,null,"",null,null,null,""]
[null,null,null,null,null,null,null,null,null,null,null,null,null,null,null,null,null,null,null,null,null,null,"Природній газ",null,null,null,null,0,null,null,null,null,{"$f":"IF(W778=\"\",\"\",IFERROR(R775*AB778*VLOOKUP(W778,$BA$626:$BD$632,4),0))","v":0},null,null,null,"м³"]
[null,null,null,null,null,null,null,null,null,null,null,null,null,null,null,null,null,null,null,null,null,null,null,null,null,null,null,null,null,null,null,null,{"$f":"IF(W779=\"\",\"\",IFERROR(R778*AB779*VLOOKUP(W779,$BA$626:$BD$632,4),0))","v":""},null,null,null,""]
[null,null,null,null,null,null,null,null,null,null,null,null,null,null,null,null,null,null,null,null,null,null,null,null,null,null,null,0,null,null,null,null,{"$f":"IF(W780=\"\",\"\",IFERROR(R775*AB780*VLOOKUP(W780,$BA$626:$BD$632,4),0))","v":""},null,null,null,""]
[null,null,null,null,null,null,null,null,null,null,null,null,null,null,null,null,null,null,null,null,null,null,null,null,null,null,null,null,null,null,null,null,{"$f":"IF(W781=\"\",\"\",IFERROR(R779*AB781*VLOOKUP(W781,$BA$626:$BD$632,4),0))","v":""},null,null,null,""]
[null,null,null,null,null,null,null,null,null,null,null,null,null,null,null,null,null,null,null,null,null,null,null,null,null,null,null,null,null,null,null,null,"",null,null,null,""]
[null,null,null,null,{"$f":"\"7.2.1.\"&TEXT(AZ783,\"0\")","v":"7.2.1.17"},null,null,"4.2Б.6",null,"Встановлення автоматичних регуляторів температури повітря у приміщеннях на опалювальних приладах водяної системи опалення у квартирах або/та у приміщеннях (місцях) загального користування будівлі",null,null,null,null,null,null,null,null,null,null,{"$f":"R783/($AE$370*1000)","v":{"$error":"#DIV/0!"}},null,"ЦТП",null,null,null,null,{"$f":"IF((1-AB787-AB791)>1,1,1-AB787-AB791)","v":1},null,null,null,null,{"$f":"IF(W783=\"\",\"\",IFERROR(R783*AB783*VLOOKUP(W783,$BA$626:$BD$632,4),0))","v":0},null,null,null,{"$f":"IFERROR(VLOOKUP(W783,$BA$626:$BC$632,3),\"\")","v":"Гкал"},null,null,{"$f":"IFERROR(AG783*VLOOKUP(W783,$BA$626:$BC$632,2),0)+IFERROR(AG787*VLOOKUP(W787,$BA$626:$BC$632,2),0)+IFERROR(AG791*VLOOKUP(W791,$BA$626:$BC$632,2),0)","v":0},null,null,null,null,null,null,null,null,null,null,null,{"$f":"AZ545","v":17}]
[null,null,null,null,null,null,null,null,null,null,null,null,null,null,null,null,null,null,null,null,null,null,null,null,null,null,null,{"$f":"1-AB785-AB787","v":1},null,null,null,null,{"$f":"IF(W784=\"\",\"\",IFERROR(R784*AB784*VLOOKUP(W784,$BA$626:$BD$632,4),0))","v":""},null,null,null,""]
[null,null,null,null,null,null,null,null,null,null,null,null,null,null,null,null,null,null,null,null,null,null,null,null,null,null,null,0,null,null,null,null,"",null,null,null,""]
[null,null,null,null,null,null,null,null,null,null,null,null,null,null,null,null,null,null,null,null,null,null,null,null,null,null,null,1,null,null,null,null,"",null,null,null,""]
[null,null,null,null,null,null,null,null,null,null,null,null,null,null,null,null,null,null,null,null,null,null,null,null,null,null,null,0,null,null,null,null,{"$f":"IF(W787=\"\",\"\",IFERROR(R783*AB787*VLOOKUP(W787,$BA$626:$BD$632,4),0))","v":""},null,null,null,""]
[null,null,null,null,null,null,null,null,null,null,null,null,null,null,null,null,null,null,null,null,null,null,null,null,null,null,null,null,null,null,null,null,{"$f":"IF(W788=\"\",\"\",IFERROR(R787*AB788*VLOOKUP(W788,$BA$626:$BD$632,4),0))","v":""},null,null,null,""]
[null,null,null,null,null,null,null,null,null,null,null,null,null,null,null,null,null,null,null,null,null,null,null,null,null,null,null,null,null,null,null,null,"",null,null,null,""]
[null,null,null,null,null,null,null,null,null,null,null,null,null,null,null,null,null,null,null,null,null,null,null,null,null,null,null,null,null,null,null,null,"",null,null,null,""]
[null,null,null,null,null,null,null,null,null,null,null,null,null,null,null,null,null,null,null,null,null,null,null,null,null,null,null,0,null,null,null,null,{"$f":"IF(W791=\"\",\"\",IFERROR(R783*AB791*VLOOKUP(W791,$BA$626:$BD$632,4),0))","v":""},null,null,null,""]
[null,null,null,null,null,null,null,null,null,null,null,null,null,null,null,null,null,null,null,null,null,null,null,null,null,null,null,null,null,null,null,null,{"$f":"IF(W792=\"\",\"\",IFERROR(R790*AB792*VLOOKUP(W792,$BA$626:$BD$632,4),0))","v":""},null,null,null,""]
[null,null,null,null,null,null,null,null,null,null,null,null,null,null,null,null,null,null,null,null,null,null,null,null,null,null,null,null,null,null,null,null,"",null,null,null,""]
[null,null,null,null,null,null,null,null,null,null,null,null,null,null,null,null,null,null,null,null,null,null,null,null,null,null,null,null,null,null,null,null,"",null,null,null,""]
[null,null,null,null,{"$f":"\"7.2.1.\"&TEXT(AZ795,\"0\")","v":"7.2.1.18"},null,null,"4.2Б.7",null,"Заміна або ремонт блоків віконних або/та блоків балконних дверних у квартирах, утеплення і скління наявних балконів і лоджій",null,null,null,null,null,null,null,null,null,null,{"$f":"R795/($AE$370*1000)","v":{"$error":"#DIV/0!"}},null,"ЦТП",null,null,null,null,{"$f":"IF((1-AB797-AB800)>1,1,1-AB797-AB800)","v":1},null,null,null,null,{"$f":"IF(W795=\"\",\"\",IFERROR(R795*AB795*VLOOKUP(W795,$BA$626:$BD$632,4),0))","v":0},null,null,null,{"$f":"IFERROR(VLOOKUP(W795,$BA$626:$BC$632,3),\"\")","v":"Гкал"},null,null,{"$f":"IFERROR(AG795*VLOOKUP(W795,$BA$626:$BC$632,2),0)+IFERROR(AG797*VLOOKUP(W797,$BA$626:$BC$632,2),0)+IFERROR(AG800*VLOOKUP(W800,$BA$626:$BC$632,2),0)","v":0},null,null,null,null,null,null,null,null,null,null,null,{"$f":"AZ556","v":18}]
[null,null,null,null,null,null,null,null,null,null,null,null,null,null,null,null,null,null,null,null,null,null,null,null,null,null,null,{"$f":"1-AB797-AB799","v":1},null,null,null,null,"",null,null,null,""]
[null,null,null,null,null,null,null,null,null,null,null,null,null,null,null,null,null,null,null,null,null,null,null,null,null,null,null,0,null,null,null,null,{"$f":"IF(W797=\"\",\"\",IFERROR(R795*AB797*VLOOKUP(W797,$BA$626:$BD$632,4),0))","v":""},null,null,null,""]
[null,null,null,null,null,null,null,null,null,null,null,null,null,null,null,null,null,null,null,null,null,null,null,null,null,null,null,null,null,null,null,null,{"$f":"IF(W798=\"\",\"\",IFERROR(R797*AB798*VLOOKUP(W798,$BA$626:$BD$632,4),0))","v":""},null,null,null,""]
[null,null,null,null,null,null,null,null,null,null,null,null,null,null,null,null,null,null,null,null,null,null,null,null,null,null,null,null,null,null,null,null,"",null,null,null,""]
[null,null,null,null,null,null,null,null,null,null,null,null,null,null,null,null,null,null,null,null,null,null,null,null,null,null,null,0,null,null,null,null,{"$f":"IF(W800=\"\",\"\",IFERROR(R795*AB800*VLOOKUP(W800,$BA$626:$BD$632,4),0))","v":""},null,null,null,""]
[null,null,null,null,null,null,null,null,null,null,null,null,null,null,null,null,null,null,null,null,null,null,null,null,null,null,null,null,null,null,null,null,{"$f":"IF(W801=\"\",\"\",IFERROR(R799*AB801*VLOOKUP(W801,$BA$626:$BD$632,4),0))","v":""},null,null,null,""]
[null,null,null,null,{"$f":"\"7.2.1.\"&TEXT(AZ802,\"0\")","v":"7.2.1.19"},null,null,"4.2Б.8",null,"Комплекс робіт із модернізації та облаштування системи освітлення у приміщеннях (місцях) загального користування будівлі",null,null,null,null,null,null,null,null,null,null,{"$f":"R802/($AE$370*1000)","v":{"$error":"#DIV/0!"}},null,"Електроенергія",null,null,null,null,{"$f":"IF((1-AB804-AB807)>1,1,1-AB804-AB807)","v":1},null,null,null,null,{"$f":"IF(W802=\"\",\"\",IFERROR(R802*AB802*VLOOKUP(W802,$BA$626:$BD$632,4),0))","v":0},null,null,null,{"$f":"IFERROR(VLOOKUP(W802,$BA$626:$BC$632,3),\"\")","v":"кВт·год"},null,null,{"$f":"IFERROR(AG802*VLOOKUP(W802,$BA$626:$BC$632,2),0)+IFERROR(AG804*VLOOKUP(W804,$BA$626:$BC$632,2),0)+IFERROR(AG807*VLOOKUP(W807,$BA$626:$BC$632,2),0)","v":0},null,null,null,null,null,null,null,null,null,null,null,{"$f":"AZ562","v":19}]
[null,null,null,null,null,null,null,null,null,null,null,null,null,null,null,null,null,null,null,null,null,null,null,null,null,null,null,{"$f":"1-AB804-AB806","v":1},null,null,null,null,"",null,null,null,""]
[null,null,null,null,null,null,null,null,null,null,null,null,null,null,null,null,null,null,null,null,null,null,null,null,null,null,null,0,null,null,null,null,{"$f":"IF(W804=\"\",\"\",IFERROR(R802*AB804*VLOOKUP(W804,$BA$626:$BD$632,4),0))","v":""},null,null,null,""]
[null,null,null,null,null,null,null,null,null,null,null,null,null,null,null,null,null,null,null,null,null,null,null,null,null,null,null,null,null,null,null,null,{"$f":"IF(W805=\"\",\"\",IFERROR(R804*AB805*VLOOKUP(W805,$BA$626:$BD$632,4),0))","v":""},null,null,null,""]
[null,null,null,null,null,null,null,null,null,null,null,null,null,null,null,null,null,null,null,null,null,null,null,null,null,null,null,null,null,null,null,null,"",null,null,null,""]
[null,null,null,null,null,null,null,null,null,null,null,null,null,null,null,null,null,null,null,null,null,null,null,null,null,null,null,0,null,null,null,null,{"$f":"IF(W807=\"\",\"\",IFERROR(R802*AB807*VLOOKUP(W807,$BA$626:$BD$632,4),0))","v":""},null,null,null,""]
[null,null,null,null,null,null,null,null,null,null,null,null,null,null,null,null,null,null,null,null,null,null,null,null,null,null,null,null,null,null,null,null,{"$f":"IF(W808=\"\",\"\",IFERROR(R806*AB808*VLOOKUP(W808,$BA$626:$BD$632,4),0))","v":""},null,null,null,""]
[null,null,null,null,{"$f":"\"7.2.1.\"&TEXT(AZ809,\"0\")","v":"7.2.1.20"},null,null,"4.2Б.9",null,"Комплекс робіт із модернізації та облаштування системи вентиляції з встановленням рекуператорів",null,null,null,null,null,null,null,null,null,null,{"$f":"R809/($AE$370*1000)","v":{"$error":"#DIV/0!"}},null,"ЦТП",null,null,null,null,{"$f":"IF((1-AB811-AB813)>1,1,1-AB811-AB813)","v":1},null,null,null,null,{"$f":"IF(W809=\"\",\"\",IFERROR(R809*AB809*VLOOKUP(W809,$BA$626:$BD$632,4),0))","v":0},null,null,null,{"$f":"IFERROR(VLOOKUP(W809,$BA$626:$BC$632,3),\"\")","v":"Гкал"},null,null,{"$f":"IFERROR(AG809*VLOOKUP(W809,$BA$626:$BC$632,2),0)+IFERROR(AG811*VLOOKUP(W811,$BA$626:$BC$632,2),0)+IFERROR(AG813*VLOOKUP(W813,$BA$626:$BC$632,2),0)","v":0},null,null,null,null,null,null,null,null,null,null,null,{"$f":"AZ569","v":20}]
[null,null,null,null,null,null,null,null,null,null,null,null,null,null,null,null,null,null,null,null,null,null,null,null,null,null,null,{"$f":"1-AB811-AB813","v":1},null,null,null,null,"",null,null,null,""]
[null,null,null,null,null,null,null,null,null,null,null,null,null,null,null,null,null,null,null,null,null,null,"Електроенергія",null,null,null,null,0,null,null,null,null,{"$f":"IF(W811=\"\",\"\",IFERROR(R809*AB811*VLOOKUP(W811,$BA$626:$BD$632,4),0))","v":0},null,null,null,"кВт·год"]
[null,null,null,null,null,null,null,null,null,null,null,null,null,null,null,null,null,null,null,null,null,null,null,null,null,null,null,null,null,null,null,null,{"$f":"IF(W812=\"\",\"\",IFERROR(R811*AB812*VLOOKUP(W812,$BA$626:$BD$632,4),0))","v":""},null,null,null,""]
[null,null,null,null,null,null,null,null,null,null,null,null,null,null,null,null,null,null,null,null,null,null,null,null,null,null,null,0,null,null,null,null,{"$f":"IF(W813=\"\",\"\",IFERROR(R809*AB813*VLOOKUP(W813,$BA$626:$BD$632,4),0))","v":""},null,null,null,""]
[null,null,null,null,null,null,null,null,null,null,null,null,null,null,null,null,null,null,null,null,null,null,null,null,null,null,null,null,null,null,null,null,{"$f":"IF(W814=\"\",\"\",IFERROR(R812*AB814*VLOOKUP(W814,$BA$626:$BD$632,4),0))","v":""},null,null,null,""]
[null,null,null,null,{"$f":"\"7.2.1.\"&TEXT(AZ815,\"0\")","v":"7.2.1.21"},null,null,"4.2Б.10",null,"Інші типи модернізації системи внутрішнього теплопостачання",null,null,null,null,null,null,null,null,null,null,{"$f":"R815/($AE$370*1000)","v":{"$error":"#DIV/0!"}},null,"ЦТП",null,null,null,null,{"$f":"IF((1-AB816-AB817)>1,1,1-AB816-AB817)","v":1},null,null,null,null,{"$f":"IF(W815=\"\",\"\",IFERROR(R815*AB815*VLOOKUP(W815,$BA$626:$BD$632,4),0))","v":0},null,null,null,{"$f":"IFERROR(VLOOKUP(W815,$BA$626:$BC$632,3),\"\")","v":"Гкал"},null,null,{"$f":"IFERROR(AG815*VLOOKUP(W815,$BA$626:$BC$632,2),0)+IFERROR(AG816*VLOOKUP(W816,$BA$626:$BC$632,2),0)+IFERROR(AG817*VLOOKUP(W817,$BA$626:$BC$632,2),0)","v":0},null,null,null,null,null,null,null,null,null,null,null,{"$f":"AZ575","v":21}]
[null,null,null,null,null,null,null,null,null,null,null,null,null,null,null,null,null,null,null,null,null,null,null,null,null,null,null,0,null,null,null,null,{"$f":"IF(W816=\"\",\"\",IFERROR(R815*AB816*VLOOKUP(W816,$BA$626:$BD$632,4),0))","v":""},null,null,null,{"$f":"IFERROR(VLOOKUP(W816,$BA$626:$BC$632,3),\"\")","v":""}]
[null,null,null,null,null,null,null,null,null,null,null,null,null,null,null,null,null,null,null,null,null,null,null,null,null,null,null,0,null,null,null,null,{"$f":"IF(W817=\"\",\"\",IFERROR(R815*AB817*VLOOKUP(W817,$BA$626:$BD$632,4),0))","v":""},null,null,null,{"$f":"IFERROR(VLOOKUP(W817,$BA$626:$BC$632,3),\"\")","v":""}]
[null,null,null,null,"7.2.2",null,null,"Разом:",null,null,null,null,null,null,null,null,null,{"$f":"SUBTOTAL(109,R629:T817)","v":0},null,null,{"$f":"R818/($AE$370*1000)","v":{"$error":"#DIV/0!"}},null,"Х",null,null,null,null,"Х",null,null,null,null,"X",null,null,null,"Х",null,null,{"$f":"SUBTOTAL(109,AN629:AN817)","v":0}]
[]
[null,null,null,null,"7.2.3",null,null,"Окупність пакету заходів, років",null,null,null,null,null,null,null,null,null,null,null,null,null,null,null,null,null,null,null,{"$f":"X858/AN818","v":{"$error":"#DIV/0!"}}]
[]
[]
[null,null,null,null,"* - Розрахунок економії енергії здійснюється комплексно, з врахуванням взаємного впливу заходів з енергоефективності.\n** - Відсоткове відношення економії енергії розраховується відносно загального річного споживання енергії (п. 5.1 Опису Проекту).\n*** - У разі економії декількох видів енергії/ енергоресурсів/ енергоносіїв при впровадженні одного заходу з енергоефективності рекомендується вказувати всі види енергії/ енергоресурсів/ енергоносіїв шляхом поділу рядка. \n**** - В комірці вказується частка від економії енергії, що впливає на економію відповідного виду енергії/ енергоресурсу/ енергоносія в рамках одного заходу з енергоефективності. Сума часток повинна бути рівна 100%. Розподіл може здійснюватися за часткою кондиціонованої площі, на якій використовується відповідний вид енергії/ енергоресурсу/ енергоносія, чи іншим способом. У разі економії одного виду енергії/ енергоресурсу/ енергоносія вказується 100%."]
[]
[]
[]
[]
[]
[]
[]
[]
[]
[]
[]
[]
[]
[null,null,null,null,"8. ФІНАНСОВИЙ ПЛАН РЕАЛІЗАЦІЇ ПРОЕКТУ"]
[null,null,null,null,"№",null,null,"Стаття витрат",null,null,null,null,null,null,null,null,null,null,null,null,null,null,null,"Оцінка вартості, грн. з ПДВ",null,null,null,null,null,null,"Розмір відшкодування за умовами Програми підтримки енергомодернізації\nбагатоквартирних будинків\n«ЕНЕРГОДІМ», %"]
[]
[]
[]
[]
[null,null,null,null,1,null,null,2,null,null,null,null,null,null,null,null,null,null,null,null,null,null,null,3,null,null,null,null,null,null,4]
[]
[null,null,null,null,"8.1",null,null,"Проведення енергоаудиту",null,null,null,null,null,null,null,null,null,null,null,null,null,null,null,null,null,null,null,null,null,null,70]
[]
[null,null,null,null,"8.2",null,null,"Розробка проектної документації та її експертиза",null,null,null,null,null,null,null,null,null,null,null,null,null,null,null,null,null,null,null,null,null,null,70]
[]
[null,null,null,null,"8.3",null,null,"Будівельні роботи (сума оцінки вартості витрат відповідно до Розділу 6)",null,null,null,null,null,null,null,null,null,null,null,null,null,null,null,{"$f":"AI578","v":0},null,null,null,null,null,null,{"$f":"IF(AZ2=TRUE,\"40\",\"50\")","v":"50"}]
[]
[null,null,null,null,"8.4",null,null,"Технічний та авторський нагляд",null,null,null,null,null,null,null,null,null,null,null,null,null,null,null,null,null,null,null,null,null,null,70]
[]
[null,null,null,null,"8.5",null,null,"Сертифікація енергоефективності після реалізації проекту ",null,null,null,null,null,null,null,null,null,null,null,null,null,null,null,null,null,null,null,null,null,null,70]
[]
[null,null,null,null,"8.6",null,null,"Обстеження інженерних систем будівлі, на яких здійснено заходи із забезпечення (підвищення рівня) енергетичної ефективності",null,null,null,null,null,null,null,null,null,null,null,null,null,null,null,null,null,null,null,null,null,null,70]
[]
[]
[null,null,null,null,"8.7",null,null,"Всього",null,null,null,null,null,null,null,null,null,null,null,null,null,null,null,{"$f":"X845+X847+X849+X851+X853+X855","v":0},null,null,null,null,null,null,"Х"]
[]
[]
[]
[null,null,null,null,"Енергетичний аудитор:"]
[]
[null,null,null,null,"(ПІБ, № атестаційного сертифіката аудитора)",null,null,null,null,null,null,null,null,null,null,null,null,null,null,null,null,null,null,null,null,null,null,null,null,null,null,null,"   (підпис) (МП)"]
[]
[]
[]
[null,null,null,null,"Голова правління ОСББ:"]
[]
[null,null,null,null,"(ПІБ)",null,null,null,null,null,null,null,null,null,null,null,null,null,null,null,null,null,null,null,null,null,null,null,null,null,null,null,"   (підпис) (МП)"]
[]
[]
[]
[]
[]
[]
[]
[]
[null,null,null,null,null,null,null,null,null,null,null,null,null,null,null,null,null,null,null,null,null,null,null,null,null,null,null,null,null,null,null,null,null,null,null,null,null,null,null,null,null,"Додаток 1 до ОПИСУ ПРОЕКТУ"]
[]
[null,null,null,null,"ФОТОФІКСАЦІЯ ПОТОЧНОГО СТАНУ ІНЖЕНЕРНИХ МЕРЕЖ ТА ЗОВНІШНІХ\n ОГОРОДЖУВАЛЬНИХ КОНСТРУКЦІЙ БУДИНКУ"]
[]
[]
[]
[null,null,null,null,"№",null,null,"Назва заходу",null,null,null,null,null,null,null,null,null,null,"Вимоги до фотознімків",null,null,null,null,null,null,null,null,null,null,null,null,null,null,null,null,"№ (ім’я) файлу(ів) з фотознімком(ами)"]
[]
[null,null,null,null,"Для будинків із централізованим опаленням:"]
[]
[null,null,null,null,"4.1.1",null,null,"Встановлення вузла комерційного обліку теплової енергії",null,null,null,null,null,null,null,null,null,null,"Необхідно надати фотознімок(и) частини трубопроводів від існуючого елеваторного вузла (ІТП) до місця перетину зовнішньої стіни подавальним трубопроводом\nабо існуючого вузла комерційного обліку теплової енергії.",null,null,null,null,null,null,null,null,null,null,null,null,null,null,null,null,"4.1.1.1\n……..\n4.1.1.X"]
[null,null,null,null,"4.1.2",null,null,"Встановлення або модернізація індивідуального теплового пункту (ІТП)",null,null,null,null,null,null,null,null,null,null,"Необхідно надати фотознімок(и) існуючого елеваторного вузла або існуючого індивідуального теплового пункту.",null,null,null,null,null,null,null,null,null,null,null,null,null,null,null,null,"4.1.2.1\n……..\n4.1.2.X"]
[null,null,null,null,"Для будинків з автономним опаленням:"]
[]
[null,null,null,null,"4.1.3",null,null,"Заміна або модернізація загальнобудинкового котла або/та допоміжного обладнання (наприклад, насосів, систем автоматичного регулювання тощо)",null,null,null,null,null,null,null,null,null,null,"Необхідно надати фотознімок(и) існуючого загальнобудинкового котла та допоміжного обладнання (наприклад, насосів, систем автоматичного регулювання тощо) що планується замінити або модернізувати.",null,null,null,null,null,null,null,null,null,null,null,null,null,null,null,null,"4.1.3.1\n……..\n4.1.3.X"]
[null,null,null,null,"Незалежно від типу системи опалення (крім індивідуального опалення):"]
[]
[null,null,null,null,"4.1.4",null,null,"Теплоізоляція або/та заміна трубопроводів системи внутрішнього теплопостачання в неопалювальних приміщеннях",null,null,null,null,null,null,null,null,null,null,"Необхідно надати фотознімки різних ділянок трубопроводів, що потребують теплоізоляції та/або заміни у кількості не менше 5 фотознімків.",null,null,null,null,null,null,null,null,null,null,null,null,null,null,null,null,"4.1.4.1\n……..\n4.1.4.X"]
[null,null,null,null,"4.1.5",null,null,"Теплоізоляція або/та заміна трубопроводів системи гарячого водопостачання в неопалювальних приміщеннях",null,null,null,null,null,null,null,null,null,null,"Необхідно надати фотознімки різних ділянок трубопроводів, що потребують теплоізоляції та/або заміни у кількості не менше 5 фотознімків.",null,null,null,null,null,null,null,null,null,null,null,null,null,null,null,null,"4.1.5.1\n……..\n4.1.5.X"]
[null,null,null,null,"4.1.6",null,null,"Гідравлічне балансування системи опалення шляхом встановлення автоматичних (балансувальних) клапанів",null,null,null,null,null,null,null,null,null,null,"Необхідно надати фотознімки різних місць відгалуження вертикальних (горизонтальних) стояків від зворотного трубопроводу",null,null,null,null,null,null,null,null,null,null,null,null,null,null,null,null,"4.1.6.1\n……..\n4.1.6.X"]
[null,null,null,null,"4.1.7",null,null,"Комплекс робіт із теплоізоляції та улаштування зовнішніх стін ",null,null,null,null,null,null,null,null,null,null,"Необхідно надати загальні фотознімки будинку з усіх сторін (4-ри географічні напрямки) в кількостях не менше 3-х фотознімків з різного ракурсу для кожної сторони.",null,null,null,null,null,null,null,null,null,null,null,null,null,null,null,null,"4.1.7.1\n……..\n4.1.7.X"]
[null,null,null,null,"4.1.8",null,null,"Комплекс робіт із теплоізоляції та улаштування опалювальних та неопалювальних горищ (технічних поверхів) та дахів",null,null,null,null,null,null,null,null,null,null,"Необхідно надати загальні фотознімки горища (технічного поверху, даху) в кількості не менше 3-х з різних ракурсів.",null,null,null,null,null,null,null,null,null,null,null,null,null,null,null,null,"4.1.8.1\n……..\n4.1.8.X"]
[null,null,null,null,"4.1.9",null,null,"Комплекс робіт із теплоізоляції та улаштування плит перекриття підвалу",null,null,null,null,null,null,null,null,null,null,"Необхідно надати загальні фотознімки плит перекриття підвалу, або їх ділянок, в кількості не менше 3-х з різних ракурсів.",null,null,null,null,null,null,null,null,null,null,null,null,null,null,null,null,"4.1.9.1\n……..\n4.1.9.X"]
[null,null,null,null,"4.1.10",null,null,"Заміна або ремонт зовнішніх дверей або/та облаштування тамбурів зовнішнього входу",null,null,null,null,null,null,null,null,null,null,"Необхідно надати фотознімки всіх зовнішніх дверей або/та тамбурів зовнішнього входу, що потребують заміни/облаштування. ",null,null,null,null,null,null,null,null,null,null,null,null,null,null,null,null,"4.1.10.1\n……..\n4.1.10.X"]
[null,null,null,null,"4.1.11",null,null,"Заміна або ремонт блоків віконних або/та блоків балконних дверних у приміщеннях (місцях) загального користування будівлі",null,null,null,null,null,null,null,null,null,null,"Необхідно надати фотознімки різних блоків віконних або/та блоків балконних дверних, що потребують заміни/ремонту, у кількості не менше 5 фотознімків.",null,null,null,null,null,null,null,null,null,null,null,null,null,null,null,null,"4.1.11.1\n……..\n4.1.11.X"]
[null,null,null,null,"4.2А.1",null,null,"Комплекс робіт із теплоізоляції та улаштування опалювальних та неопалювальних горищ (технічних поверхів) та дахів",null,null,null,null,null,null,null,null,null,null,"Необхідно надати загальні фотознімки горища (технічного поверху, даху) в кількості не менше 3-х з різних ракурсів.",null,null,null,null,null,null,null,null,null,null,null,null,null,null,null,null,"4.2.А.1.1\n……..\n4.2.А.1.Х"]
[null,null,null,null,"4.2А.2",null,null,"Модернізація системи гарячого водопостачання",null,null,null,null,null,null,null,null,null,null,"Необхідно надати загальний фотознімок(и) обладнання з підготовки гарячої води. У разі підготовки гарячої води на центральному тепловому пункті або на котельні фотознімки не надаються.",null,null,null,null,null,null,null,null,null,null,null,null,null,null,null,null,"4.2.А.2.1\n……..\n4.2.А.2.Х"]
[null,null,null,null,"4.2А.3",null,null,"Встановлення вузлів розподільного обліку теплової енергії на потреби опалення або/та приладів - розподілювачів теплової енергії у квартирах ",null,null,null,null,null,null,null,null,null,null,"Фотознімки не надаються."]
[null,null,null,null,"4.2А.4",null,null,"Встановлення автоматичних регуляторів температури повітря у приміщеннях на опалювальних приладах водяної системи опалення у квартирах або/та у приміщеннях (місцях) загального користування будівлі",null,null,null,null,null,null,null,null,null,null,"Фотознімки не надаються."]
[null,null,null,null,"4.2А.5",null,null,"Заміна або/та теплоізоляція трубопроводів системи опалення або/та приладів водяної системи опалення у приміщеннях (місцях) загального користування будівлі",null,null,null,null,null,null,null,null,null,null,"Необхідно надати фотознімки різних ділянок трубопроводів або/та приладів водяної системи опалення, що потребують теплоізоляції та/або заміни у кількості не менше 5 фотознімків.",null,null,null,null,null,null,null,null,null,null,null,null,null,null,null,null,"4.2.А.5.1\n……..\n4.2.А.5.Х"]
[null,null,null,null,"4.2А.6",null,null,"Заміна або ремонт блоків віконних або/та блоків балконних дверних у приміщеннях (місцях) загального користування будівлі ",null,null,null,null,null,null,null,null,null,null,"Необхідно надати фотознімки різних блоків віконних або/та блоків балконних дверних, що потребують заміни/ремонту, у кількості не менше 5 фотознімків.",null,null,null,null,null,null,null,null,null,null,null,null,null,null,null,null,"4.2.А.6.1\n……..\n4.2.А.6.Х"]
[null,null,null,null,"4.2А.7",null,null,"Заміна або ремонт зовнішніх дверей або/та облаштування тамбурів зовнішнього входу",null,null,null,null,null,null,null,null,null,null,"Необхідно надати фотознімки всіх зовнішніх дверей або/та тамбурів зовнішнього входу, що потребують заміни/облаштування. ",null,null,null,null,null,null,null,null,null,null,null,null,null,null,null,null,"4.2.А.7.1\n……..\n4.2.А.7.Х"]
[null,null,null,null,"4.2А.8",null,null,"Комплекс робіт із модернізації та облаштування системи освітлення у приміщеннях (місцях) загального користування будівлі ",null,null,null,null,null,null,null,null,null,null,"Фотознімки не надаються."]
[null,null,null,null,"4.2Б.1",null,null,"Комплекс робіт із теплоізоляції та улаштування зовнішніх стін нижче рівня ґрунту",null,null,null,null,null,null,null,null,null,null,"Необхідно надати загальні фотознімки цоколю з усіх сторін (4-ри географічні напрямки) в кількостях не менше 2-х фото з різного ракурсу для кожної сторони.",null,null,null,null,null,null,null,null,null,null,null,null,null,null,null,null,"4.2.Б.1.1\n……..\n4.2.Б.1.Х"]
[null,null,null,null,"4.2Б.2",null,null,"Модернізація системи гарячого водопостачання",null,null,null,null,null,null,null,null,null,null,"Необхідно надати загальний фотознімок обладнання з підготовки гарячої води. У разі підготовки гарячої води на центральному тепловому пункті фотознімки не надаються.",null,null,null,null,null,null,null,null,null,null,null,null,null,null,null,null,"4.2.Б.2.1\n……..\n4.2.Б.2.Х"]
[null,null,null,null,"4.2Б.3",null,null,"Заміна або/та теплоізоляція трубопроводів системи опалення або/та приладів водяної системи опалення у приміщеннях (місцях) загального користування будівлі",null,null,null,null,null,null,null,null,null,null,"Необхідно надати фотознімки різних ділянок трубопроводів або/та приладів водяної системи опалення, що потребують теплоізоляції та/або заміни у кількості не менше 5 фотознімків.",null,null,null,null,null,null,null,null,null,null,null,null,null,null,null,null,"4.2.Б.3.1\n……..\n4.2.Б.3.Х"]
[null,null,null,null,"4.2Б.4",null,null,"Заміна або/та теплоізоляція трубопроводів системи опалення або/та приладів водяної системи опалення у квартирах",null,null,null,null,null,null,null,null,null,null,"Необхідно надати фотознімки різних ділянок трубопроводів або/та приладів водяної системи опалення, що потребують теплоізоляції та/або заміни у кількості не менше 5 фотознімків.",null,null,null,null,null,null,null,null,null,null,null,null,null,null,null,null,"4.2.Б.4.1\n……..\n4.2.Б.4.Х"]
[null,null,null,null,"4.2Б.5",null,null,"Встановлення вузлів розподільного обліку теплової енергії на потреби опалення або/та приладів - розподілювачів теплової енергії у квартирах",null,null,null,null,null,null,null,null,null,null,"Фотознімки не надаються."]
[null,null,null,null,"4.2Б.6",null,null,"Встановлення автоматичних регуляторів температури повітря у приміщеннях на опалювальних приладах водяної системи опалення у квартирах або/та у приміщеннях (місцях) загального користування будівлі",null,null,null,null,null,null,null,null,null,null,"Фотознімки не надаються."]
[null,null,null,null,"4.2Б.7",null,null,"Заміна або ремонт блоків віконних або/та блоків балконних дверних у квартирах, утеплення і скління наявних балконів і лоджій",null,null,null,null,null,null,null,null,null,null,"Необхідно надати фотознімки різних блоків віконних або/та блоків балконних дверних, що потребують заміни/ремонту, у кількості не менше 5 фотознімків.\nНеобхідно надати фотознімки різних блоків віконних, блоків балконних дверних, наявних балконів і лоджій, що потребують заміни/облаштування/скління, у кількості не менше 5% від загальної кількості квартир, де впроваджується захід.",null,null,null,null,null,null,null,null,null,null,null,null,null,null,null,null,"4.2.Б.7.1\n……..\n4.2.Б.7.Х"]
[null,null,null,null,"4.2Б.8",null,null,"Комплекс робіт із модернізації та облаштування системи освітлення у приміщеннях (місцях) загального користування будівлі",null,null,null,null,null,null,null,null,null,null,"Фотознімки не надаються."]
[null,null,null,null,"4.2Б.9",null,null,"Комплекс робіт із модернізації та облаштування системи вентиляції з встановленням рекуператорів",null,null,null,null,null,null,null,null,null,null,"Необхідно надати загальні фотознімки будинку з усіх сторін (4-ри географічні напрямки) в кількостях не менше 3-х фотознімків з різного ракурсу для кожної сторони.  Фотознімки в цьому рядку не надаються, якщо вони надані в рядку 4.1.7. (Комплекс робіт із теплоізоляції та улаштування зовнішніх стін).",null,null,null,null,null,null,null,null,null,null,null,null,null,null,null,null,"4.2.Б.9.1\n……..\n4.2.Б.9.Х"]
[null,null,null,null,"4.2Б.10",null,null,"Інші типи модернізації системи внутрішнього теплопостачання",null,null,null,null,null,null,null,null,null,null,"Необхідно надати фотознімки обладнання, що планується замінити, та різних ділянок трубопроводів, що потребують теплоізоляції та/або заміни, у кількості не менше 5 фотознімків.",null,null,null,null,null,null,null,null,null,null,null,null,null,null,null,null,"4.2.Б.10.1\n……..\n4.2.Б.10.Х"]
[null,null,null,null,null,null,null,null,null,null,null,null,null,null,null,null,null,null,null,null,null,null,null,null,null,null,null,null,null,null,null,null,null,null,null,null,null,null,null,null,null,null,null,null,null,"Комірка для введення посилання (зазначається у разі використання фалообміннику для передачі фотознімків):"]
[null,null,null,null,"           Ми, що підписалися нижче, запевняємо, що фотознімки зазначені у колонці «№ (ім’я) файлу(ів) з фотознімком(ами)»  знаходяться  на електронному носії, наданому Фонду разом з Заявкою №1, через банк-партнер, зроблені на будинку Бенефіціара та відповідають фактичному стану будинку Бенефіціара ОСББ \"______________\", ____________________________.",null,null,null,null,null,null,null,null,null,null,null,null,null,null,null,null,null,null,null,null,null,null,null,null,null,null,null,null,null,null,null,null,null,null,null,null,null,null,null,null,null,null,null,null,null,null,null,null,"           Ми, що підписалися нижче, запевняємо, що фотознімки зазначені у колонці «№ (ім’я) файлу(ів) з фотознімком(ами)»  знаходяться  на електронному носії, наданому Фонду разом з Заявкою №1, через банк-партнер, зроблені на будинку Бенефіціара та відповідають фактичному стану будинку Бенефіціара",null,{"$f":"BB923&\" \"&B32&\".\"","v":"           Ми, що підписалися нижче, запевняємо, що фотознімки зазначені у колонці «№ (ім’я) файлу(ів) з фотознімком(ами)»  знаходяться  на електронному носії, наданому Фонду разом з Заявкою №1, через банк-партнер, зроблені на будинку Бенефіціара та відповідають фактичному стану будинку Бенефіціара ОСББ \"______________\", ____________________________."}]
[null,null,null,null,null,null,null,null,null,null,null,null,null,null,null,null,null,null,null,null,null,null,null,null,null,null,null,null,null,null,null,null,null,null,null,null,null,null,null,null,null,null,null,null,null,null,null,null,null,null,null,null,null,{"$f":"\"           Ми, що підписалися нижче, запевняємо, що фотознімки зазначені у колонці «№ (ім’я) файлу(ів) з фотознімком(ами)» знаходяться за посиланням \"&AT923&\", зроблені на будинку Бенефіціара та відповідають фактичному стану будинку Бенефіціара \"","v":"           Ми, що підписалися нижче, запевняємо, що фотознімки зазначені у колонці «№ (ім’я) файлу(ів) з фотознімком(ами)» знаходяться за посиланням , зроблені на будинку Бенефіціара та відповідають фактичному стану будинку Бенефіціара "},null,{"$f":"BB924&\" \"&B32&\".\"","v":"           Ми, що підписалися нижче, запевняємо, що фотознімки зазначені у колонці «№ (ім’я) файлу(ів) з фотознімком(ами)» знаходяться за посиланням , зроблені на будинку Бенефіціара та відповідають фактичному стану будинку Бенефіціара  ОСББ \"______________\", ____________________________."}]
[null,null,null,null,"Енергетичний аудитор:",null,null,null,null,null,null,null,null,null,null,null,null,null,null,null,null,null,null,null,null,null,null,null,null,null,null,null,null,null,null,null,null,null,null,null,null,null,null,null,null,null,null,null,null,null,null,null,null,"           Ми, що підписалися нижче, запевняємо, що фотознімки зазначені у колонці «№ (ім’я) файлу(ів) з фотознімком(ами)» завантажені через Веб-портал електронних послуг, зроблені на будинку Бенефіціара та відповідають фактичному стану будинку Бенефіціара ",null,{"$f":"BB925&\" \"&B32&\".\"","v":"           Ми, що підписалися нижче, запевняємо, що фотознімки зазначені у колонці «№ (ім’я) файлу(ів) з фотознімком(ами)» завантажені через Веб-портал електронних послуг, зроблені на будинку Бенефіціара та відповідають фактичному стану будинку Бенефіціара  ОСББ \"______________\", ____________________________."}]
[]
[null,null,null,null,"(ПІБ, № атестаційного сертифіката аудитора)",null,null,null,null,null,null,null,null,null,null,null,null,null,null,null,null,null,null,null,null,null,null,null,null,null,null,null,"   (підпис) (МП)"]
[]
[]
[]
[null,null,null,null,"Голова правління ОСББ:"]
[]
[null,null,null,null,"(ПІБ)",null,null,null,null,null,null,null,null,null,null,null,null,null,null,null,null,null,null,null,null,null,null,null,null,null,null,null,"   (підпис) (МП)"]